Workbook

Sheet Combinded R1
A1: Q6 - In what capacity have you worked in Latin American higher education?
C2: English | E2: Portugues | G2: Spanish | J2: Total
B3: Answer | C3: % | D3: Count | E3: % | F3: Count | G3: % | H3: Count
A4: 1 | B4: External Consultant | C4: 0.3 | D4: 3 | E4: 0.1071 | F4: 3 | G4: 0.2 | H4: 7 | J4: =D4+F4+H4 -> 13
A5: 2 | B5: University manager with responsibility for internationalisation or IoC | C5: 0.2 | D5: 2 | E5: 0.1429 | F5: 4 | G5: 0.2571 | H5: 9 | J5: =D5+F5+H5 -> 15
A6: 3 | B6: Faculty member | C6: 0.2 | D6: 2 | E6: 0.3929 | F6: 11 | G6: 0.1714 | H6: 6 | J6: =D6+F6+H6 -> 19
A7: 4 | B7: International Office | C7: 0.1 | D7: 1 | E7: 0.1071 | F7: 3 | G7: 0.2286 | H7: 8 | J7: =D7+F7+H7 -> 12
A8: 5 | B8: For a Government Agency | C8: 0.1 | D8: 1 | E8: 0.1429 | F8: 4 | G8: 0.0571 | H8: 2 | J8: =D8+F8+H8 -> 7
A9: 6 | B9: Other (please specify) | C9: 0.1 | D9: 1 | E9: 0.1071 | F9: 3 | G9: 0.0857 | H9: 3 | J9: =D9+F9+H9 -> 7
B10: Total | C10: 1 | D10: 10 | E10: 1 | F10: 28 | G10: 1 | H10: 35
A13: Q8 - Please indicate the countries in Latin America where you have most knowledge of approaches to internationalisation of Higher Education.
C14: English | E14: Portugues | G14: Spanish
B15: Answer | C15: % | D15: Count | E15: % | F15: Count | G15: % | H15: Count | J15: Total N
A16: 1 | B16: Argentina | C16: 0 | D16: 0 | E16: 0.1509 | F16: 8 | G16: 0.12 | H16: 9 | J16: =D16+F16+H16 -> 17
A17: 2 | B17: Bolivia | C17: 0 | D17: 0 | E17: 0.0377 | F17: 2 | G17: 0.0133 | H17: 1 | J17: =D17+F17+H17 -> 3
A18: 3 | B18: Brazil | C18: 0.1364 | D18: 3 | E18: 0.2075 | F18: 11 | G18: 0.0933 | H18: 7 | J18: =D18+F18+H18 -> 21
A19: 4 | B19: Chile | C19: 0.1818 | D19: 4 | E19: 0.1321 | F19: 7 | G19: 0.12 | H19: 9 | J19: =D19+F19+H19 -> 20
A20: 5 | B20: Colombia | C20: 0.1818 | D20: 4 | E20: 0.0943 | F20: 5 | G20: 0.1867 | H20: 14 | J20: =D20+F20+H20 -> 23
A21: 6 | B21: Costa Rica | C21: 0.0455 | D21: 1 | E21: 0.0566 | F21: 3 | G21: 0.0133 | H21: 1 | J21: =D21+F21+H21 -> 5
A22: 7 | B22: Cuba | C22: 0.0909 | D22: 2 | E22: 0.0189 | F22: 1 | G22: 0.0267 | H22: 2 | J22: =D22+F22+H22 -> 5
A23: 8 | B23: Dominican Republic | C23: 0.0455 | D23: 1 | E23: 0 | F23: 0 | G23: 0.0133 | H23: 1 | J23: =D23+F23+H23 -> 2
A24: 9 | B24: Ecuador | C24: 0 | D24: 0 | E24: 0.0189 | F24: 1 | G24: 0.0667 | H24: 5 | J24: =D24+F24+H24 -> 6
A25: 10 | B25: El Salvador | C25: 0 | D25: 0 | E25: 0 | F25: 0 | G25: 0 | H25: 0 | J25: =D25+F25+H25 -> 0
A26: 11 | B26: Guatemala | C26: 0 | D26: 0 | E26: 0 | F26: 0 | G26: 0 | H26: 0 | J26: =D26+F26+H26 -> 0
A27: 12 | B27: Haiti | C27: 0 | D27: 0 | E27: 0 | F27: 0 | G27: 0 | H27: 0 | J27: =D27+F27+H27 -> 0
A28: 13 | B28: Honduras | C28: 0 | D28: 0 | E28: 0 | F28: 0 | G28: 0 | H28: 0 | J28: =D28+F28+H28 -> 0
A29: 14 | B29: Mexico | C29: 0.1818 | D29: 4 | E29: 0.0943 | F29: 5 | G29: 0.1867 | H29: 14 | J29: =D29+F29+H29 -> 23
A30: 15 | B30: Nicaragua | C30: 0 | D30: 0 | E30: 0 | F30: 0 | G30: 0 | H30: 0 | J30: =D30+F30+H30 -> 0
A31: 16 | B31: Panama | C31: 0.0455 | D31: 1 | E31: 0 | F31: 0 | G31: 0.0133 | H31: 1 | J31: =D31+F31+H31 -> 2
A32: 17 | B32: Paraguay | C32: 0 | D32: 0 | E32: 0.0377 | F32: 2 | G32: 0.0267 | H32: 2 | J32: =D32+F32+H32 -> 4
A33: 18 | B33: Peru | C33: 0.0455 | D33: 1 | E33: 0.0189 | F33: 1 | G33: 0.08 | H33: 6 | J33: =D33+F33+H33 -> 8
A34: 19 | B34: Uruguay | C34: 0 | D34: 0 | E34: 0.1132 | F34: 6 | G34: 0.04 | H34: 3 | J34: =D34+F34+H34 -> 9
A35: 20 | B35: Venezuela | C35: 0 | D35: 0 | E35: 0 | F35: 0 | G35: 0 | H35: 0 | J35: =D35+F35+H35 -> 0
A36: 21 | B36: I am not familiar with approaches to the internationalisation of higher education in Latin America | C36: 0.0455 | D36: 1 | E36: 0.0189 | F36: 1 | G36: 0 | H36: 0 | J36: =D36+F36+H36 -> 2
B37: Total | C37: 1 | D37: 22 | E37: 1 | F37: 53 | G37: 1 | H37: 75
A40: Q9 - Please rate your level of familiarity with approaches to internationalization of the curriculum in the Latin American countries you selected in the previous question.
A41: # | B41: Question | C41: Total N combined | J41: 1 - Not at all familiar | N41: 2 - Low familiarity | R41: 3 - High familiarity | V41: 4 - Very high familiarity | Z41: Unsure
C42: Not at all | D42: Low | E42: High | F42: V High | G42: Unsure | I42: Eng | J42: Port | K42: Span | L42: Combined | M42: Eng | N42: Port | O42: Span | P42: Combined | Q42: Eng | R42: Port | S42: Span | T42: Combined | U42: Eng | V42: Port | W42: Span | X42: Combined | Y42: Eng | Z42: Span | AA42: Port | AB42: Combined
A43: 1 | B43: Argentina | C43: 2 | D43: 11 | E43: 8 | F43: 2 | G43: 10 | I43: 1 | J43: 1 | K43: 0 | L43: =(I43+J43+K43) -> 2 | M43: 0 | N43: 6 | O43: 5 | P43: =(M43+N43+O43) -> 11 | Q43: 0 | R43: 2 | S43: 6 | T43: =(Q43+R43+S43) -> 8 | U43: 0 | V43: 0 | W43: 2 | X43: =(U43+V43+W43) -> 2 | Y43: 0 | Z43: 0 | AA43: 10 | AB43: =(Y43+Z43+AA43) -> 10
A44: 2 | B44: Bolivia | C44: 5 | D44: 6 | E44: 2 | F44: 0 | G44: 6 | I44: 1 | J44: 2 | K44: 2 | L44: =(I44+J44+K44) -> 5 | M44: 0 | N44: 2 | O44: 4 | P44: =(M44+N44+O44) -> 6 | Q44: 0 | R44: 1 | S44: 1 | T44: =(Q44+R44+S44) -> 2 | U44: 0 | V44: 0 | W44: 0 | X44: =(U44+V44+W44) -> 0 | Y44: 0 | Z44: 1 | AA44: 5 | AB44: =(Y44+Z44+AA44) -> 6
A45: 3 | B45: Brazil | C45: 0 | D45: 7 | E45: 11 | F45: 6 | G45: 13 | I45: 0 | J45: 0 | K45: 0 | L45: =(I45+J45+K45) -> 0 | M45: 1 | N45: 1 | O45: 5 | P45: =(M45+N45+O45) -> 7 | Q45: 2 | R45: 4 | S45: 5 | T45: =(Q45+R45+S45) -> 11 | U45: 0 | V45: 5 | W45: 1 | X45: =(U45+V45+W45) -> 6 | Y45: 0 | Z45: 2 | AA45: 11 | AB45: =(Y45+Z45+AA45) -> 13
A46: 4 | B46: Chile | C46: 2 | D46: 9 | E46: 9 | F46: 4 | G46: 10 | I46: 0 | J46: 2 | K46: 0 | L46: =(I46+J46+K46) -> 2 | M46: 2 | N46: 5 | O46: 2 | P46: =(M46+N46+O46) -> 9 | Q46: 2 | R46: 2 | S46: 5 | T46: =(Q46+R46+S46) -> 9 | U46: 1 | V46: 0 | W46: 3 | X46: =(U46+V46+W46) -> 4 | Y46: 0 | Z46: 1 | AA46: 9 | AB46: =(Y46+Z46+AA46) -> 10
A47: 5 | B47: Colombia | C47: 1 | D47: 6 | E47: 8 | F47: 11 | G47: 8 | I47: 0 | J47: 1 | K47: 0 | L47: =(I47+J47+K47) -> 1 | M47: 0 | N47: 4 | O47: 2 | P47: =(M47+N47+O47) -> 6 | Q47: 2 | R47: 2 | S47: 4 | T47: =(Q47+R47+S47) -> 8 | U47: 2 | V47: 1 | W47: 8 | X47: =(U47+V47+W47) -> 11 | Y47: 0 | Z47: 0 | AA47: 8 | AB47: =(Y47+Z47+AA47) -> 8
A48: 6 | B48: Costa Rica | C48: 6 | D48: 7 | E48: 1 | F48: 1 | G48: 6 | I48: 0 | J48: 3 | K48: 3 | L48: =(I48+J48+K48) -> 6 | M48: 2 | N48: 3 | O48: 2 | P48: =(M48+N48+O48) -> 7 | Q48: 0 | R48: 0 | S48: 1 | T48: =(Q48+R48+S48) -> 1 | U48: 0 | V48: 0 | W48: 1 | X48: =(U48+V48+W48) -> 1 | Y48: 0 | Z48: 0 | AA48: 6 | AB48: =(Y48+Z48+AA48) -> 6
A49: 7 | B49: Cuba | C49: 6 | D49: 6 | E49: 4 | F49: 2 | G49: 7 | I49: 0 | J49: 3 | K49: 3 | L49: =(I49+J49+K49) -> 6 | M49: 1 | N49: 2 | O49: 3 | P49: =(M49+N49+O49) -> 6 | Q49: 1 | R49: 0 | S49: 3 | T49: =(Q49+R49+S49) -> 4 | U49: 1 | V49: 1 | W49: 0 | X49: =(U49+V49+W49) -> 2 | Y49: 0 | Z49: 1 | AA49: 6 | AB49: =(Y49+Z49+AA49) -> 7
A50: 8 | B50: Dominican Republic | C50: 6 | D50: 7 | E50: 0 | F50: 1 | G50: 6 | I50: 0 | J50: 4 | K50: 2 | L50: =(I50+J50+K50) -> 6 | M50: 2 | N50: 1 | O50: 4 | P50: =(M50+N50+O50) -> 7 | Q50: 0 | R50: 0 | S50: 0 | T50: =(Q50+R50+S50) -> 0 | U50: 0 | V50: 0 | W50: 1 | X50: =(U50+V50+W50) -> 1 | Y50: 0 | Z50: 1 | AA50: 5 | AB50: =(Y50+Z50+AA50) -> 6
A51: 9 | B51: Ecuador | C51: 4 | D51: 7 | E51: 3 | F51: 1 | G51: 6 | I51: 0 | J51: 3 | K51: 1 | L51: =(I51+J51+K51) -> 4 | M51: 1 | N51: 2 | O51: 4 | P51: =(M51+N51+O51) -> 7 | Q51: 0 | R51: 0 | S51: 3 | T51: =(Q51+R51+S51) -> 3 | U51: 0 | V51: 0 | W51: 1 | X51: =(U51+V51+W51) -> 1 | Y51: 0 | Z51: 1 | AA51: 5 | AB51: =(Y51+Z51+AA51) -> 6
A52: 10 | B52: El Salvador | C52: 9 | D52: 4 | E52: 0 | F52: 0 | G52: 6 | I52: 0 | J52: 4 | K52: 5 | L52: =(I52+J52+K52) -> 9 | M52: 1 | N52: 1 | O52: 2 | P52: =(M52+N52+O52) -> 4 | Q52: 0 | R52: 0 | S52: 0 | T52: =(Q52+R52+S52) -> 0 | U52: 0 | V52: 0 | W52: 0 | X52: =(U52+V52+W52) -> 0 | Y52: 0 | Z52: 1 | AA52: 5 | AB52: =(Y52+Z52+AA52) -> 6
A53: 11 | B53: Guatemala | C53: 10 | D53: 3 | E53: 0 | F53: 0 | G53: 6 | I53: 0 | J53: 4 | K53: 6 | L53: =(I53+J53+K53) -> 10 | M53: 1 | N53: 1 | O53: 1 | P53: =(M53+N53+O53) -> 3 | Q53: 0 | R53: 0 | S53: 0 | T53: =(Q53+R53+S53) -> 0 | U53: 0 | V53: 0 | W53: 0 | X53: =(U53+V53+W53) -> 0 | Y53: 0 | Z53: 1 | AA53: 5 | AB53: =(Y53+Z53+AA53) -> 6
A54: 12 | B54: Haiti | C54: 9 | D54: 4 | E54: 0 | F54: 0 | G54: 6 | I54: 0 | J54: 3 | K54: 6 | L54: =(I54+J54+K54) -> 9 | M54: 1 | N54: 2 | O54: 1 | P54: =(M54+N54+O54) -> 4 | Q54: 0 | R54: 0 | S54: 0 | T54: =(Q54+R54+S54) -> 0 | U54: 0 | V54: 0 | W54: 0 | X54: =(U54+V54+W54) -> 0 | Y54: 0 | Z54: 1 | AA54: 5 | AB54: =(Y54+Z54+AA54) -> 6
A55: 13 | B55: Honduras | C55: 10 | D55: 3 | E55: 0 | F55: 0 | G55: 6 | I55: 0 | J55: 4 | K55: 6 | L55: =(I55+J55+K55) -> 10 | M55: 1 | N55: 1 | O55: 1 | P55: =(M55+N55+O55) -> 3 | Q55: 0 | R55: 0 | S55: 0 | T55: =(Q55+R55+S55) -> 0 | U55: 0 | V55: 0 | W55: 0 | X55: =(U55+V55+W55) -> 0 | Y55: 0 | Z55: 1 | AA55: 5 | AB55: =(Y55+Z55+AA55) -> 6
A56: 14 | B56: Mexico | C56: 1 | D56: 8 | E56: 11 | F56: 7 | G56: 8 | I56: 0 | J56: 1 | K56: 0 | L56: =(I56+J56+K56) -> 1 | M56: 0 | N56: 5 | O56: 3 | P56: =(M56+N56+O56) -> 8 | Q56: 2 | R56: 1 | S56: 8 | T56: =(Q56+R56+S56) -> 11 | U56: 2 | V56: 1 | W56: 4 | X56: =(U56+V56+W56) -> 7 | Y56: 0 | Z56: 0 | AA56: 8 | AB56: =(Y56+Z56+AA56) -> 8
A57: 15 | B57: Nicaragua | C57: 9 | D57: 3 | E57: 0 | F57: 0 | G57: 5 | I57: 0 | J57: 3 | K57: 6 | L57: =(I57+J57+K57) -> 9 | M57: 1 | N57: 1 | O57: 1 | P57: =(M57+N57+O57) -> 3 | Q57: 0 | R57: 0 | S57: 0 | T57: =(Q57+R57+S57) -> 0 | U57: 0 | V57: 0 | W57: 0 | X57: =(U57+V57+W57) -> 0 | Y57: 0 | Z57: 1 | AA57: 4 | AB57: =(Y57+Z57+AA57) -> 5
A58: 16 | B58: Panama | C58: 9 | D58: 3 | E58: 2 | F58: 0 | G58: 6 | I58: 0 | J58: 4 | K58: 5 | L58: =(I58+J58+K58) -> 9 | M58: 1 | N58: 1 | O58: 1 | P58: =(M58+N58+O58) -> 3 | Q58: 1 | R58: 0 | S58: 1 | T58: =(Q58+R58+S58) -> 2 | U58: 0 | V58: 0 | W58: 0 | X58: =(U58+V58+W58) -> 0 | Y58: 0 | Z58: 1 | AA58: 5 | AB58: =(Y58+Z58+AA58) -> 6
A59: 17 | B59: Paraguay | C59: 5 | D59: 6 | E59: 2 | F59: 1 | G59: 6 | I59: 0 | J59: 1 | K59: 4 | L59: =(I59+J59+K59) -> 5 | M59: 1 | N59: 3 | O59: 2 | P59: =(M59+N59+O59) -> 6 | Q59: 0 | R59: 1 | S59: 1 | T59: =(Q59+R59+S59) -> 2 | U59: 0 | V59: 0 | W59: 1 | X59: =(U59+V59+W59) -> 1 | Y59: 0 | Z59: 1 | AA59: 5 | AB59: =(Y59+Z59+AA59) -> 6
A60: 18 | B60: Peru | C60: 3 | D60: 7 | E60: 4 | F60: 2 | G60: 6 | I60: 0 | J60: 2 | K60: 1 | L60: =(I60+J60+K60) -> 3 | M60: 1 | N60: 2 | O60: 4 | P60: =(M60+N60+O60) -> 7 | Q60: 0 | R60: 0 | S60: 4 | T60: =(Q60+R60+S60) -> 4 | U60: 0 | V60: 1 | W60: 1 | X60: =(U60+V60+W60) -> 2 | Y60: 0 | Z60: 1 | AA60: 5 | AB60: =(Y60+Z60+AA60) -> 6
A61: 19 | B61: Uruguay | C61: 3 | D61: 9 | E61: 4 | F61: 1 | G61: 9 | I61: 0 | J61: 1 | K61: 2 | L61: =(I61+J61+K61) -> 3 | M61: 1 | N61: 5 | O61: 3 | P61: =(M61+N61+O61) -> 9 | Q61: 0 | R61: 2 | S61: 2 | T61: =(Q61+R61+S61) -> 4 | U61: 0 | V61: 0 | W61: 1 | X61: =(U61+V61+W61) -> 1 | Y61: 0 | Z61: 1 | AA61: 8 | AB61: =(Y61+Z61+AA61) -> 9
A62: 20 | B62: Venezuela | C62: 7 | D62: 5 | E62: 1 | F62: 0 | G62: 6 | I62: 0 | J62: 2 | K62: 5 | L62: =(I62+J62+K62) -> 7 | M62: 1 | N62: 2 | O62: 2 | P62: =(M62+N62+O62) -> 5 | Q62: 0 | R62: 1 | S62: 0 | T62: =(Q62+R62+S62) -> 1 | U62: 0 | V62: 0 | W62: 0 | X62: =(U62+V62+W62) -> 0 | Y62: 0 | Z62: 1 | AA62: 5 | AB62: =(Y62+Z62+AA62) -> 6
A64: Q10 - Please rate your level of familiarity with approaches to internationalization of the curriculum in countries outside Latin America. | G64: Unfamiliar | H64: Familiar
G65: 0.38 | H65: 0.63
A67: # | B67: Field | C67: Minimum | D67: Maximum | E67: Mean | F67: Std Deviation | G67: Variance | H67: Count
A68: 1 | B68: English | C68: 3 | D68: 3 | E68: 3 | F68: 0 | G68: 0 | H68: 6
B69: Portugues | C69: 1 | D69: 3 | E69: 2.17 | F69: 0.55 | G69: 0.31 | H69: 12
B70: Spanaish | C70: 1 | D70: 4 | E70: 2.86 | F70: 0.74 | G70: 0.55 | H70: 14
C71: English | E71: Portugues | G71: Spanish
A72: # | B72: Answer | C72: % | D72: Count | E72: % | F72: Count | G72: % | H72: Count | I72: Count | J72: %
A73: 1 | B73: Very low familiarity | C73: 0 | D73: 0 | E73: 0.0833 | F73: 1 | G73: 0.0714 | H73: 1 | I73: =(D73+F73+H73) -> 2 | J73: =(I73/32)*100 -> 6.25
A74: 2 | B74: Low familiarity | C74: 0 | D74: 0 | E74: 0.6667 | F74: 8 | G74: 0.1429 | H74: 2 | I74: =(D74+F74+H74) -> 10 | J74: =(I74/32)*100 -> 31.25
A75: 3 | B75: High familiarity | C75: 1 | D75: 6 | E75: 0.25 | F75: 3 | G75: 0.6429 | H75: 9 | I75: =(D75+F75+H75) -> 18 | J75: =(I75/32)*100 -> 56.25
A76: 4 | B76: Very high familiarity | C76: 0 | D76: 0 | E76: 0 | F76: 0 | G76: 0.1429 | H76: 2 | I76: =(D76+F76+H76) -> 2 | J76: =(I76/32)*100 -> 6.25
B77: Total | C77: 1 | D77: 6 | E77: 1 | F77: 12 | G77: 1 | H77: 14 | I77: =SUM(I73:I76) -> 32
A79: Q14 - Please rate your current level of familiarity with Leask's IoC Conceptual Framework. | D79: Not at all Low | E79: High very high
D80: 0.23 | E80: 0.74
A83: # | B83: Field | C83: Minimum | D83: Maximum | E83: Mean | F83: Std Deviation | G83: Variance | H83: Count
B84: English | C84: 3 | D84: 4 | E84: 3.33 | F84: 0.47 | G84: 0.22 | H84: 6
B85: Portugues | C85: 1 | D85: 4 | E85: 2.3 | F85: 1 | G85: 1.01 | H85: 10
B86: Spanaish | C86: 1 | D86: 4 | E86: 2.86 | F86: 0.74 | G86: 0.55 | H86: 14
C88: English | E88: Portugues | G88: Spanish
A89: # | B89: Answer | C89: % | D89: Count | E89: % | F89: Count | G89: % | H89: Count | I89: Count | J89: %
A90: 1 | B90: Not at all | C90: 0 | D90: 0 | E90: 0.3 | F90: 3 | G90: 0.0714 | H90: 1 | I90: =(D90+F90+H90) -> 4 | J90: =(I90/30)*100 -> 13.33333333
A91: 2 | B91: Low | C91: 0 | D91: 0 | E91: 0.2 | F91: 2 | G91: 0.1429 | H91: 2 | I91: =(D91+F91+H91) -> 4 | J91: =(I91/30)*100 -> 13.33333333
A92: 3 | B92: High | C92: 0.6667 | D92: 4 | E92: 0.4 | F92: 4 | G92: 0.6429 | H92: 9 | I92: =(D92+F92+H92) -> 17 | J92: =(I92/30)*100 -> 56.66666667
A93: 4 | B93: Very High | C93: 0.3333 | D93: 2 | E93: 0.1 | F93: 1 | G93: 0.1429 | H93: 2 | I93: =(D93+F93+H93) -> 5 | J93: =(I93/30)*100 -> 16.66666667
B94: Total | C94: 1 | D94: 6 | E94: 1 | F94: 10 | G94: 1 | H94: 14
A96: Q14 - Rate the degree to which the following statements provide a useful starting point for discussions with academic staff concerning internationalisation of the curriculum in the Latin American context.
A97: # | B97: Field | C97: Minimum | D97: Maximum | E97: Mean | F97: Std Deviation | G97: Variance | H97: Count
A98: 1 | B98: The organization of knowledge into disciplines is a social and cultural construction that can be helpful. | C98: 2 | D98: 4 | E98: 3.33 | F98: 0.75 | G98: 0.56 | H98: 6
A99: 1 | B99: A organiza√ß√£o do conhecimento em disciplinas √© uma constru√ß√£o social e cultural, que pode ser √∫til | C99: 3 | D99: 4 | E99: 3.3 | F99: 0.46 | G99: 0.21 | H99: 10
A100: 1 | B100: La organizaci√≥n del conocimiento en disciplinas es una construcci√≥n social y cultural que puede ser constructiva | C100: 2 | D100: 4 | E100: 3.43 | F100: 0.62 | G100: 0.39 | H100: 14
A101: 2 | B101: The organization of knowledge into disciplines is a social and cultural construction that can be limiting. | C101: 2 | D101: 4 | E101: 3.17 | F101: 0.69 | G101: 0.47 | H101: 6
A102: 2 | B102: A organiza√ß√£o do conhecimento em disciplinas √© uma constru√ß√£o social e cultural, que pode ser limitadora | C102: 2 | D102: 4 | E102: 3.2 | F102: 0.75 | G102: 0.56 | H102: 10
A103: 2 | B103: La organizaci√≥n del conocimiento en disciplinas es una construcci√≥n social y cultural que puede resultar limitante | C103: 1 | D103: 5 | E103: 3 | F103: 1.07 | G103: 1.14 | H103: 14
A104: 3 | B104: Discipline communities are strong international communities. | C104: 3 | D104: 4 | E104: 3.5 | F104: 0.5 | G104: 0.25 | H104: 6
A105: 3 | B105: Comunidades disciplinares s√£o comunidades internacionais fortes | C105: 2 | D105: 5 | E105: 3.4 | F105: 0.92 | G105: 0.84 | H105: 10
A106: 3 | B106: Las comunidades disciplinarias son comunidades internacionales fuertes | C106: 3 | D106: 5 | E106: 3.57 | F106: 0.62 | G106: 0.39 | H106: 14
A107: 4 | B107: Solutions to the complex problems faced by the world requires problem-deÔ¨Åning and solving perspectives that cross cultural boundaries. | C107: 2 | D107: 4 | E107: 3.67 | F107: 0.75 | G107: 0.56 | H107: 6
A108: 4 | B108: Solu√ß√µes para os problemas complexos do mundo requerem perspectivas de defini√ß√£o e resolu√ß√£o de problemas que ultrapassem as fronteiras culturais | C108: 3 | D108: 4 | E108: 3.9 | F108: 0.3 | G108: 0.09 | H108: 10
A109: 4 | B109: Las soluciones a los complejos problemas que enfrenta el mundo requieren perspectivas de definici√≥n y resoluci√≥n de problemas que crucen las fronteras culturales | C109: 3 | D109: 5 | E109: 3.86 | F109: 0.52 | G109: 0.27 | H109: 14
A111: # | B111: Question | Y111: Total | AK111: Unsure
C113: 1 Not at all | E113: 2 Sometimes | G113: 3 Often | I113: 4 Always | K113: Unsure
A114: 1 | B114: The organization of knowledge into disciplines is a social and cultural construction that can be helpful. | C114: 0 | D114: 0 | E114: 0.1667 | F114: 1 | G114: 0.3333 | H114: 2 | I114: 0.5 | J114: 3 | K114: 0 | L114: 0
A115: 1 | B115: A organiza√ß√£o do conhecimento em disciplinas √© uma constru√ß√£o social e cultural, que pode ser √∫til | C115: 0 | D115: 0 | E115: 0 | F115: 0 | G115: 0.7 | H115: 7 | I115: 0.3 | J115: 3 | K115: 0 | L115: 0
A116: 1 | B116: La organizaci√≥n del conocimiento en disciplinas es una construcci√≥n social y cultural que puede ser constructiva | C116: 0 | D116: 0 | E116: 0.0714 | F116: 1 | G116: 0.4286 | H116: 6 | I116: 0.5 | J116: 7 | K116: 0 | L116: 0
D117: =SUM(D114:D116) -> 0 | F117: =SUM(F114:F116) -> 2 | H117: =SUM(H114:H116) -> 15 | J117: =SUM(J114:J116) -> 13 | L117: =SUM(L114:L116) -> 0
D118: =(D117/29)*100 -> 0 | F118: =(F117/29)*100 -> 6.896551724 | H118: =(H117/29)*100 -> 51.72413793 | J118: =(J117/29)*100 -> 44.82758621 | L118: =(L117/29)*100 -> 0
A120: 2 | B120: The organization of knowledge into disciplines is a social and cultural construction that can be limiting. | C120: 0 | D120: 0 | E120: 0.1667 | F120: 1 | G120: 0.5 | H120: 3 | I120: 0.3333 | J120: 2 | K120: 0 | L120: 0
A121: 2 | B121: A organiza√ß√£o do conhecimento em disciplinas √© uma constru√ß√£o social e cultural, que pode ser limitadora | C121: 0 | D121: 0 | E121: 0.2 | F121: 2 | G121: 0.4 | H121: 4 | I121: 0.4 | J121: 4 | K121: 0 | L121: 0
A122: 2 | B122: La organizaci√≥n del conocimiento en disciplinas es una construcci√≥n social y cultural que puede resultar limitante | C122: 0.0714 | D122: 1 | E122: 0.2857 | F122: 4 | G122: 0.2857 | H122: 4 | I122: 0.2857 | J122: 4 | K122: 0.0714 | L122: 1
D123: =SUM(D120:D122) -> 1 | F123: =SUM(F120:F122) -> 7 | H123: =SUM(H120:H122) -> 11 | J123: =SUM(J120:J122) -> 10 | L123: =SUM(L120:L122) -> 1
D124: =(D123/29)*100 -> 3.448275862 | F124: =(F123/29)*100 -> 24.13793103 | H124: =(H123/29)*100 -> 37.93103448 | J124: =(J123/29)*100 -> 34.48275862 | L124: =(L123/29)*100 -> 3.448275862
A126: 3 | B126: Discipline communities are strong international communities. | C126: 0 | D126: 0 | E126: 0 | F126: 0 | G126: 0.5 | H126: 3 | I126: 0.5 | J126: 3 | K126: 0 | L126: 0
A127: 3 | B127: Comunidades disciplinares s√£o comunidades internacionais fortes | C127: 0 | D127: 0 | E127: 0.1 | F127: 1 | G127: 0.6 | H127: 6 | I127: 0.1 | J127: 1 | K127: 0.2 | L127: 2
A128: 3 | B128: Las comunidades disciplinarias son comunidades internacionales fuertes | C128: 0 | D128: 0 | E128: 0 | F128: 0 | G128: 0.5 | H128: 7 | I128: 0.4286 | J128: 6 | K128: 0.0714 | L128: 1
D129: =SUM(D126:D128) -> 0 | F129: =SUM(F126:F128) -> 1 | H129: =SUM(H126:H128) -> 16 | J129: =SUM(J126:J128) -> 10 | L129: =SUM(L126:L128) -> 3
D130: =(D129/29)*100 -> 0 | F130: =(F129/29)*100 -> 3.448275862 | H130: =(H129/29)*100 -> 55.17241379 | J130: =(J129/29)*100 -> 34.48275862 | L130: =(L129/29)*100 -> 10.34482759
A132: 4 | B132: Solutions to the complex problems faced by the world requires problem-deÔ¨Åning and solving perspectives that cross cultural boundaries. | C132: 0 | D132: 0 | E132: 0.1667 | F132: 1 | G132: 0 | H132: 0 | I132: 0.8333 | J132: 5 | K132: 0 | L132: 0
A133: 4 | B133: Solu√ß√µes para os problemas complexos do mundo requerem perspectivas de defini√ß√£o e resolu√ß√£o de problemas que ultrapassem as fronteiras culturais | C133: 0 | D133: 0 | E133: 0 | F133: 0 | G133: 0.1 | H133: 1 | I133: 0.9 | J133: 9 | K133: 0 | L133: 0
A134: 4 | B134: Las soluciones a los complejos problemas que enfrenta el mundo requieren perspectivas de definici√≥n y resoluci√≥n de problemas que crucen las fronteras culturales | C134: 0 | D134: 0 | E134: 0 | F134: 0 | G134: 0.2143 | H134: 3 | I134: 0.7143 | J134: 10 | K134: 0.0714 | L134: 1
D135: =SUM(D132:D134) -> 0 | F135: =SUM(F132:F134) -> 1 | H135: =SUM(H132:H134) -> 4 | J135: =SUM(J132:J134) -> 24 | L135: =SUM(L132:L134) -> 1
D136: =(D135/29)*100 -> 0 | F136: =(F135/29)*100 -> 3.448275862 | H136: =(H135/29)*100 -> 13.79310345 | J136: =(J135/29)*100 -> 82.75862069 | L136: =(L135/29)*100 -> 3.448275862
A140: Q17 - Rate the degree to which the following ideas are considered in curriculum design today in the Latin America context.
A141: # | B141: Field | C141: Minimum | D141: Maximum | E141: Mean | F141: Std Deviation | G141: Variance | H141: Count
A143: 1 | B143: Assumptions that underpin current approaches to internationalisation of the curriculum in the discipline and related programs of study. | C143: 2 | D143: 5 | E143: 2.67 | F143: 1.11 | G143: 1.22 | H143: 6
A144: 1 | B144: Pressupostos que fundamentam as abordagens atuais da internacionaliza√ß√£o do curr√≠culo em disciplinas e programas de estudos | C144: 1 | D144: 5 | E144: 3.3 | F144: 1.42 | G144: 2.01 | H144: 10
A145: 1 | B145: Premisas que sustentan los enfoques actuales para la internacionalizaci√≥n del curr√≠culo en la disciplina y las carreras. | C145: 1 | D145: 3 | E145: 1.92 | F145: 0.47 | G145: 0.22 | H145: 13
A146: 2 | B146: Values that underpin current approaches to internationalisation of the curriculum in the discipline and related programs of study. | C146: 2 | D146: 3 | E146: 2.33 | F146: 0.47 | G146: 0.22 | H146: 6
A147: 2 | B147: Valores que fundamentam as atuais abordagens para a internacionaliza√ß√£o do curr√≠culo em disciplinas e programas de estudos | C147: 1 | D147: 5 | E147: 3.1 | F147: 1.3 | G147: 1.69 | H147: 10
A148: 2 | B148: Valores que sustentan los enfoques actuales de internacionalizaci√≥n del curr√≠culo en la disciplina y las carreras. | C148: 1 | D148: 5 | E148: 2.23 | F148: 0.89 | G148: 0.79 | H148: 13
A149: 3 | B149: Dominant paradigms that drive current approaches to internationalisation of the curriculum, teaching and learning in the university/discipline/program/their own teaching. | C149: 2 | D149: 3 | E149: 2.67 | F149: 0.47 | G149: 0.22 | H149: 6
A150: 3 | B150: Paradigmas dominantes que norteiam as atuais abordagens para a internacionaliza√ß√£o do curr√≠culo, ensino e aprendizagem na universidade/disciplina/curso | C150: 1 | D150: 5 | E150: 3.2 | F150: 1.25 | G150: 1.56 | H150: 10
A151: 3 | B151: Paradigmas dominantes que impulsan los enfoques actuales de internacionalizaci√≥n del curr√≠culo, la ense√±anza y el aprendizaje en la universidad/disciplina/carrera | C151: 1 | D151: 4 | E151: 2.31 | F151: 0.72 | G151: 0.52 | H151: 13
A152: 4 | B152: Alternative approaches to internationalisation of the curriculum e.g. in other places; other disciplines etc. | C152: 1 | D152: 2 | E152: 1.83 | F152: 0.37 | G152: 0.14 | H152: 6
A153: 4 | B153: Abordagens alternativas para a internacionaliza√ß√£o do curr√≠culo, por exemplo, em diferentes contextos, em diferentes disciplinas, etc. | C153: 1 | D153: 5 | E153: 2.9 | F153: 1.58 | G153: 2.49 | H153: 10
A154: 4 | B154: Enfoques alternativos para la internacionalizaci√≥n del curr√≠culo, por ejemplo, en otros lugares; otras disciplinas, etc. | C154: 1 | D154: 3 | E154: 2 | F154: 0.55 | G154: 0.31 | H154: 13
A155: 5 | B155: Thinking beyond dominant paradigms as an important part of the process of internationalisation of the curriculum. | C155: 1 | D155: 3 | E155: 1.83 | F155: 0.69 | G155: 0.47 | H155: 6
A156: 5 | B156: Pensamento al√©m dos paradigmas dominantes como parte importante do processo de internacionaliza√ß√£o do curr√≠culo | C156: 1 | D156: 5 | E156: 2.8 | F156: 1.33 | G156: 1.76 | H156: 10
A157: 5 | B157: Pensar m√°s all√° de los paradigmas dominantes como parte importante del proceso de internacionalizaci√≥n del curr√≠culo. | C157: 1 | D157: 5 | E157: 2.08 | F157: 1 | G157: 0.99 | H157: 13
A158: 6 | B158: Emerging paradigms that might be employed to internationalise the curriculum. | C158: 1 | D158: 3 | E158: 1.67 | F158: 0.75 | G158: 0.56 | H158: 6
A159: 6 | B159: Paradigmas emergentes que podem ser empregados para internacionalizar o curr√≠culo | C159: 2 | D159: 5 | E159: 2.9 | F159: 1.22 | G159: 1.49 | H159: 10
A160: 6 | B160: Paradigmas emergentes que se podr√≠an emplear para internacionalizar el curr√≠culo. | C160: 1 | D160: 5 | E160: 2.15 | F160: 0.95 | G160: 0.9 | H160: 13
A161: 7 | B161: Exploring emerging paradigms within the discipline as part of the process of internationalisation of the curriculum. | C161: 1 | D161: 3 | E161: 1.83 | F161: 0.69 | G161: 0.47 | H161: 6
A162: 7 | B162: Explora√ß√£o de paradigmas emergentes dentro de uma dada disciplina como parte importante do processo de internacionaliza√ß√£o do curr√≠culo | C162: 2 | D162: 5 | E162: 3 | F162: 1.18 | G162: 1.4 | H162: 10
A163: 7 | B163: Explorar paradigmas emergentes dentro de la disciplina como parte del proceso de internacionalizaci√≥n del curr√≠culo. | C163: 1 | D163: 3 | E163: 1.92 | F163: 0.73 | G163: 0.53 | H163: 13
A164: 8 | B164: Ways in which disciplinary culture influences approaches to internationalisation in their discipline. | C164: 2 | D164: 4 | E164: 3.17 | F164: 0.9 | G164: 0.81 | H164: 6
A165: 8 | B165: Formas pelas quais a cultura disciplinar influencia as abordagens de internacionaliza√ß√£o na √°rea de conhecimento relativa | C165: 2 | D165: 5 | E165: 3.5 | F165: 1.36 | G165: 1.85 | H165: 10
A166: 8 | B166: Formas en las que la cultura disciplinaria influye en los enfoques de internacionalizaci√≥n en las disciplinas. | C166: 1 | D166: 5 | E166: 2.23 | F166: 1.05 | G166: 1.1 | H166: 13
A167: 9 | B167: The opportunities of interdisciplinary approaches to internationalisation of the curriculum. | C167: 2 | D167: 3 | E167: 2.17 | F167: 0.37 | G167: 0.14 | H167: 6
A168: 9 | B168: As oportunidades de abordagens interdisciplinares para a internacionaliza√ß√£o do curr√≠culo | C168: 2 | D168: 5 | E168: 3 | F168: 1.18 | G168: 1.4 | H168: 10
A169: 9 | B169: Las oportunidades de los enfoques interdisciplinarios para la internacionalizaci√≥n del curr√≠culo. | C169: 1 | D169: 3 | E169: 2.08 | F169: 0.49 | G169: 0.24 | H169: 12
A175: # | B175: Question | C175: 1 Not at all | E175: 2 Sometimes | G175: 3 Often | I175: 4 Always | K175: Unsure | M175: Total
A176: 1 | B176: Assumptions that underpin current approaches to internationalisation of the curriculum in the discipline and related programs of study. | C176: 0 | D176: 0 | E176: 0.6667 | F176: 4 | G176: 0.1667 | H176: 1 | I176: 0 | J176: 0 | K176: 0.1667 | L176: 1 | M176: 6 | AA176: =(M176+M177+M178) -> 29
A177: 1 | B177: Pressupostos que fundamentam as abordagens atuais da internacionaliza√ß√£o do curr√≠culo em disciplinas e programas de estudos | C177: 0.1 | D177: 1 | E177: 0.3 | F177: 3 | G177: 0.1 | H177: 1 | I177: 0.2 | J177: 2 | K177: 0.3 | L177: 3 | M177: 10
A178: 1 | B178: Premisas que sustentan los enfoques actuales para la internacionalizaci√≥n del curr√≠culo en la disciplina y las carreras. | C178: 0.1538 | D178: 2 | E178: 0.7692 | F178: 10 | G178: 0.0769 | H178: 1 | I178: 0 | J178: 0 | K178: 0 | L178: 0 | M178: 13
D179: =SUM(D176:D178) -> 3 | F179: =SUM(F176:F178) -> 17 | H179: =SUM(H176:H178) -> 3 | J179: =SUM(J176:J178) -> 2 | L179: =SUM(L176:L178) -> 4
D180: =(D179/29)*100 -> 10.34482759 | F180: =(F179/29)*100 -> 58.62068966 | H180: =(H179/29)*100 -> 10.34482759 | J180: =(J179/29)*100 -> 6.896551724 | L180: =(L179/29)*100 -> 13.79310345 | M180: =SUM(M176:M179) -> 29
A182: 2 | B182: Values that underpin current approaches to internationalisation of the curriculum in the discipline and related programs of study. | C182: 0 | D182: 0 | E182: 0.6667 | F182: 4 | G182: 0.3333 | H182: 2 | I182: 0 | J182: 0 | K182: 0 | L182: 0 | M182: 6
A183: 2 | B183: Valores que fundamentam as atuais abordagens para a internacionaliza√ß√£o do curr√≠culo em disciplinas e programas de estudos | C183: 0.1 | D183: 1 | E183: 0.3 | F183: 3 | G183: 0.2 | H183: 2 | I183: 0.2 | J183: 2 | K183: 0.2 | L183: 2 | M183: 10
A184: 2 | B184: Valores que sustentan los enfoques actuales de internacionalizaci√≥n del curr√≠culo en la disciplina y las carreras. | C184: 0.0769 | D184: 1 | E184: 0.7692 | F184: 10 | G184: 0.0769 | H184: 1 | I184: 0 | J184: 0 | K184: 0.0769 | L184: 1 | M184: 13
D185: =SUM(D182:D184) -> 2 | F185: =SUM(F182:F184) -> 17 | H185: =SUM(H182:H184) -> 5 | J185: =SUM(J182:J184) -> 2 | L185: =SUM(L182:L184) -> 3
D186: =(D185/29)*100 -> 6.896551724 | F186: =(F185/29)*100 -> 58.62068966 | H186: =(H185/29)*100 -> 17.24137931 | J186: =(J185/29)*100 -> 6.896551724 | L186: =(L185/29)*100 -> 10.34482759
A188: 3 | B188: Dominant paradigms that drive current approaches to internationalisation of the curriculum, teaching and learning in the university/discipline/program/their own teaching. | C188: 0 | D188: 0 | E188: 0.3333 | F188: 2 | G188: 0.6667 | H188: 4 | I188: 0 | J188: 0 | K188: 0 | L188: 0 | M188: 6
A189: 3 | B189: Paradigmas dominantes que norteiam as atuais abordagens para a internacionaliza√ß√£o do curr√≠culo, ensino e aprendizagem na universidade/disciplina/curso | C189: 0.1 | D189: 1 | E189: 0.2 | F189: 2 | G189: 0.3 | H189: 3 | I189: 0.2 | J189: 2 | K189: 0.2 | L189: 2 | M189: 10
A190: 3 | B190: Paradigmas dominantes que impulsan los enfoques actuales de internacionalizaci√≥n del curr√≠culo, la ense√±anza y el aprendizaje en la universidad/disciplina/carrera | C190: 0.0769 | D190: 1 | E190: 0.6154 | F190: 8 | G190: 0.2308 | H190: 3 | I190: 0.0769 | J190: 1 | K190: 0 | L190: 0 | M190: 13
D191: =SUM(D188:D190) -> 2 | F191: =SUM(F188:F190) -> 12 | H191: =SUM(H188:H190) -> 10 | J191: =SUM(J188:J190) -> 3 | L191: =SUM(L188:L190) -> 2
D192: =(D191/29)*100 -> 6.896551724 | F192: =(F191/29)*100 -> 41.37931034 | H192: =(H191/29)*100 -> 34.48275862 | J192: =(J191/29)*100 -> 10.34482759 | L192: =(L191/29)*100 -> 6.896551724
A194: 4 | B194: Alternative approaches to internationalisation of the curriculum e.g. in other places; other disciplines etc. | C194: 0.1667 | D194: 1 | E194: 0.8333 | F194: 5 | G194: 0 | H194: 0 | I194: 0 | J194: 0 | K194: 0 | L194: 0 | M194: 6
A195: 4 | B195: Abordagens alternativas para a internacionaliza√ß√£o do curr√≠culo, por exemplo, em diferentes contextos, em diferentes disciplinas, etc. | C195: 0.2 | D195: 2 | E195: 0.4 | F195: 4 | G195: 0 | H195: 0 | I195: 0.1 | J195: 1 | K195: 0.3 | L195: 3 | M195: 10
A196: 4 | B196: Enfoques alternativos para la internacionalizaci√≥n del curr√≠culo, por ejemplo, en otros lugares; otras disciplinas, etc. | C196: 0.1538 | D196: 2 | E196: 0.6923 | F196: 9 | G196: 0.1538 | H196: 2 | I196: 0 | J196: 0 | K196: 0 | L196: 0 | M196: 13
D197: =SUM(D194:D196) -> 5 | F197: =SUM(F194:F196) -> 18 | H197: =SUM(H194:H196) -> 2 | J197: =SUM(J194:J196) -> 1 | L197: =SUM(L194:L196) -> 3
D198: =(D197/29)*100 -> 17.24137931 | F198: =(F197/29)*100 -> 62.06896552 | H198: =(H197/29)*100 -> 6.896551724 | J198: =(J197/29)*100 -> 3.448275862 | L198: =(L197/29)*100 -> 10.34482759
A200: 5 | B200: Thinking beyond dominant paradigms as an important part of the process of internationalisation of the curriculum. | C200: 0.3333 | D200: 2 | E200: 0.5 | F200: 3 | G200: 0.1667 | H200: 1 | I200: 0 | J200: 0 | K200: 0 | L200: 0 | M200: 6
A201: 5 | B201: Pensamento al√©m dos paradigmas dominantes como parte importante do processo de internacionaliza√ß√£o do curr√≠culo | C201: 0.1 | D201: 1 | E201: 0.5 | F201: 5 | G201: 0.1 | H201: 1 | I201: 0.1 | J201: 1 | K201: 0.2 | L201: 2 | M201: 10
A202: 5 | B202: Pensar m√°s all√° de los paradigmas dominantes como parte importante del proceso de internacionalizaci√≥n del curr√≠culo. | C202: 0.2308 | D202: 3 | E202: 0.6154 | F202: 8 | G202: 0.0769 | H202: 1 | I202: 0 | J202: 0 | K202: 0.0769 | L202: 1 | M202: 13
D203: =SUM(D200:D202) -> 6 | F203: =SUM(F200:F202) -> 16 | H203: =SUM(H200:H202) -> 3 | J203: =SUM(J200:J202) -> 1 | L203: =SUM(L200:L202) -> 3
D204: =(D203/29)*100 -> 20.68965517 | F204: =(F203/29)*100 -> 55.17241379 | H204: =(H203/29)*100 -> 10.34482759 | J204: =(J203/29)*100 -> 3.448275862 | L204: =(L203/29)*100 -> 10.34482759
A206: 6 | B206: Emerging paradigms that might be employed to internationalise the curriculum. | C206: 0.5 | D206: 3 | E206: 0.3333 | F206: 2 | G206: 0.1667 | H206: 1 | I206: 0 | J206: 0 | K206: 0 | L206: 0 | M206: 6
A207: 6 | B207: Paradigmas emergentes que podem ser empregados para internacionalizar o curr√≠culo | C207: 0 | D207: 0 | E207: 0.6 | F207: 6 | G207: 0.1 | H207: 1 | I207: 0.1 | J207: 1 | K207: 0.2 | L207: 2 | M207: 10
A208: 6 | B208: Paradigmas emergentes que se podr√≠an emplear para internacionalizar el curr√≠culo. | C208: 0.1538 | D208: 2 | E208: 0.6923 | F208: 9 | G208: 0.0769 | H208: 1 | I208: 0 | J208: 0 | K208: 0.0769 | L208: 1 | M208: 13
D209: =SUM(D206:D208) -> 5 | F209: =SUM(F206:F208) -> 17 | H209: =SUM(H206:H208) -> 3 | J209: =SUM(J206:J208) -> 1 | L209: =SUM(L206:L208) -> 3
D210: =(D209/29)*100 -> 17.24137931 | F210: =(F209/29)*100 -> 58.62068966 | H210: =(H209/29)*100 -> 10.34482759 | J210: =(J209/29)*100 -> 3.448275862 | L210: =(L209/29)*100 -> 10.34482759
A212: 7 | B212: Exploring emerging paradigms within the discipline as part of the process of internationalisation of the curriculum. | C212: 0.3333 | D212: 2 | E212: 0.5 | F212: 3 | G212: 0.1667 | H212: 1 | I212: 0 | J212: 0 | K212: 0 | L212: 0 | M212: 6
A213: 7 | B213: Explora√ß√£o de paradigmas emergentes dentro de uma dada disciplina como parte importante do processo de internacionaliza√ß√£o do curr√≠culo | C213: 0 | D213: 0 | E213: 0.5 | F213: 5 | G213: 0.2 | H213: 2 | I213: 0.1 | J213: 1 | K213: 0.2 | L213: 2 | M213: 10
A214: 7 | B214: Explorar paradigmas emergentes dentro de la disciplina como parte del proceso de internacionalizaci√≥n del curr√≠culo. | C214: 0.3077 | D214: 4 | E214: 0.4615 | F214: 6 | G214: 0.2308 | H214: 3 | I214: 0 | J214: 0 | K214: 0 | L214: 0 | M214: 13
D215: =SUM(D212:D214) -> 6 | F215: =SUM(F212:F214) -> 14 | H215: =SUM(H212:H214) -> 6 | J215: =SUM(J212:J214) -> 1 | L215: =SUM(L212:L214) -> 2
D216: =(D215/29)*100 -> 20.68965517 | F216: =(F215/29)*100 -> 48.27586207 | H216: =(H215/29)*100 -> 20.68965517 | J216: =(J215/29)*100 -> 3.448275862 | L216: =(L215/29)*100 -> 6.896551724
A218: 8 | B218: Ways in which disciplinary culture influences approaches to internationalisation in their discipline. | C218: 0 | D218: 0 | E218: 0.3333 | F218: 2 | G218: 0.1667 | H218: 1 | I218: 0.5 | J218: 3 | K218: 0 | L218: 0 | M218: 6
A219: 8 | B219: Formas pelas quais a cultura disciplinar influencia as abordagens de internacionaliza√ß√£o na √°rea de conhecimento relativa | C219: 0 | D219: 0 | E219: 0.4 | F219: 4 | G219: 0.1 | H219: 1 | I219: 0.1 | J219: 1 | K219: 0.4 | L219: 4 | M219: 10
A220: 8 | B220: Formas en las que la cultura disciplinaria influye en los enfoques de internacionalizaci√≥n en las disciplinas. | C220: 0.2308 | D220: 3 | E220: 0.4615 | F220: 6 | G220: 0.2308 | H220: 3 | I220: 0 | J220: 0 | K220: 0.0769 | L220: 1 | M220: 13
D221: =SUM(D218:D220) -> 3 | F221: =SUM(F218:F220) -> 12 | H221: =SUM(H218:H220) -> 5 | J221: =SUM(J218:J220) -> 4 | L221: =SUM(L218:L220) -> 5
D222: =(D221/29)*100 -> 10.34482759 | F222: =(F221/29)*100 -> 41.37931034 | H222: =(H221/29)*100 -> 17.24137931 | J222: =(J221/29)*100 -> 13.79310345 | L222: =(L221/29)*100 -> 17.24137931
A224: 9 | B224: The opportunities of interdisciplinary approaches to internationalisation of the curriculum. | C224: 0 | D224: 0 | E224: 0.8333 | F224: 5 | G224: 0.1667 | H224: 1 | I224: 0 | J224: 0 | K224: 0 | L224: 0 | M224: 6
A225: 9 | B225: As oportunidades de abordagens interdisciplinares para a internacionaliza√ß√£o do curr√≠culo | C225: 0 | D225: 0 | E225: 0.5 | F225: 5 | G225: 0.2 | H225: 2 | I225: 0.1 | J225: 1 | K225: 0.2 | L225: 2 | M225: 10
A226: 9 | B226: Las oportunidades de los enfoques interdisciplinarios para la internacionalizaci√≥n del curr√≠culo. | C226: 0.0833 | D226: 1 | E226: 0.75 | F226: 9 | G226: 0.1667 | H226: 2 | I226: 0 | J226: 0 | K226: 0 | L226: 0 | M226: 12
D227: =SUM(D224:D226) -> 1 | F227: =SUM(F224:F226) -> 19 | H227: =SUM(H224:H226) -> 5 | J227: =SUM(J224:J226) -> 1 | L227: =SUM(L224:L226) -> 2
D228: =(D227/29)*100 -> 3.448275862 | F228: =(F227/29)*100 -> 65.51724138 | H228: =(H227/29)*100 -> 17.24137931 | J228: =(J227/29)*100 -> 3.448275862 | L228: =(L227/29)*100 -> 6.896551724
A231: Q18 - Rate the degree to which the following ideas should be considered in curriculum design in the Latin America context.
A232: # | B232: Field | C232: Minimum | D232: Maximum | E232: Mean | F232: Std Deviation | G232: Variance | H232: Count
A233: 1 | B233: Assumptions that underpin current approaches to internationalisation of the curriculum in the discipline and related programs of study. | C233: 2 | D233: 4 | E233: 2.67 | F233: 0.75 | G233: 0.56 | H233: 6
A234: 1 | B234: Pressupostos que fundamentam as abordagens atuais da internacionaliza√ß√£o do curr√≠culo em disciplinas e programas de estudos | C234: 2 | D234: 4 | E234: 3 | F234: 0.63 | G234: 0.4 | H234: 10
A235: 1 | B235: Premisas que sustentan los enfoques actuales para la internacionalizaci√≥n del curr√≠culo en la disciplina y las carreras. | C235: 2 | D235: 4 | E235: 3.15 | F235: 0.66 | G235: 0.44 | H235: 13
... 659 more rows

Sheet EnglishR2
A1: Tradu√ß√£o
A2: Last Modified: 2022-06-23 00:23:22 MDT
A5: Q5 - I believe I understand the purpose of my involvement in this project and I voluntarily consent to take part by participating in this e-Delphi study.
A6: # | B6: Field | C6: Minimum | D6: Maximum | E6: Mean | F6: Std Deviation | G6: Variance | H6: Count
A7: 1 | B7: I believe I understand the purpose of my involvement in this project and I voluntarily consent to take part by participating in this e-Delphi study. | C7: 1 | D7: 1 | E7: 1 | F7: 0 | G7: 0 | H7: 7
A9: # | B9: Answer | C9: % | D9: Count
A10: 1 | B10: Yes | C10: 1 | D10: 7
A11: 2 | B11: No | C11: 0 | D11: 0
B12: Total | C12: 1 | D12: 7
A14: Q9 - Based on your experience in Latin American higher education rate the degree to which you think the following currently inform approaches to internationalisation of the curriculum in Latin American universities.
A15: 1 - Not at all
A17: 2 - Not much
A19: 3 - Somewhat
A21: 4 - Very much
A23: U - Unsure
A24: # | B24: Question | C24: 1 | E24: 2 | G24: 3 | I24: 4 | K24: U | M24: Total
A25: 1 | B25: Improving the position of the university on one or more global ranking scales. | C25: 0 | D25: 0 | E25: 0.5 | F25: 3 | G25: 0.3333 | H25: 2 | I25: 0.1667 | J25: 1 | K25: 0 | L25: 0 | M25: 6
A26: 2 | B26: Improving the quality of teaching and learning in the university. | C26: 0 | D26: 0 | E26: 0 | F26: 0 | G26: 0.6667 | H26: 4 | I26: 0.1667 | J26: 1 | K26: 0.1667 | L26: 1 | M26: 6
A27: 3 | B27: Improving the employability of students. | C27: 0 | D27: 0 | E27: 0.1667 | F27: 1 | G27: 0.5 | H27: 3 | I27: 0.3333 | J27: 2 | K27: 0 | L27: 0 | M27: 6
A28: 4 | B28: Internationalization of the curriculum is a primary responsibility of the International Office. | C28: 0.1667 | D28: 1 | E28: 0.1667 | F28: 1 | G28: 0.5 | H28: 3 | I28: 0.1667 | J28: 1 | K28: 0 | L28: 0 | M28: 6
A29: 5 | B29: Improving solidarity and equality in society | C29: 0.3333 | D29: 2 | E29: 0.1667 | F29: 1 | G29: 0.1667 | H29: 1 | I29: 0.1667 | J29: 1 | K29: 0.1667 | L29: 1 | M29: 6
A30: 6 | B30: The pursuit of cognitive justice | C30: 0.3333 | D30: 2 | E30: 0.1667 | F30: 1 | G30: 0.5 | H30: 3 | I30: 0 | J30: 0 | K30: 0 | L30: 0 | M30: 6
A31: 7 | B31: Decolonisation of the curriculum | C31: 0.3333 | D31: 2 | E31: 0.1667 | F31: 1 | G31: 0.3333 | H31: 2 | I31: 0.1667 | J31: 1 | K31: 0 | L31: 0 | M31: 6
A32: 8 | B32: Including diverse perspectives into the curriculum | C32: 0 | D32: 0 | E32: 0.3333 | F32: 2 | G32: 0.5 | H32: 3 | I32: 0.1667 | J32: 1 | K32: 0 | L32: 0 | M32: 6
A33: 9 | B33: Inclusive teaching and learning approaches | C33: 0 | D33: 0 | E33: 0.5 | F33: 3 | G33: 0.3333 | H33: 2 | I33: 0 | J33: 0 | K33: 0.1667 | L33: 1 | M33: 6
A34: 10 | B34: Study abroad and international exchange agreements. | C34: 0 | D34: 0 | E34: 0.1667 | F34: 1 | G34: 0.3333 | H34: 2 | I34: 0.5 | J34: 3 | K34: 0 | L34: 0 | M34: 6
A35: 11 | B35: Curriculum design as an ongoing evolutionary process. | C35: 0 | D35: 0 | E35: 0.6667 | F35: 4 | G35: 0.1667 | H35: 1 | I35: 0 | J35: 0 | K35: 0.1667 | L35: 1 | M35: 6
A36: 12 | B36: Academic staff/faculty have primary responsibility for internationalisation of the curriculum. | C36: 0 | D36: 0 | E36: 0.3333 | F36: 2 | G36: 0.1667 | H36: 1 | I36: 0.5 | J36: 3 | K36: 0 | L36: 0 | M36: 6
A37: 13 | B37: All students need to develop intercultural perspectives and competencies. | C37: 0 | D37: 0 | E37: 0.1667 | F37: 1 | G37: 0.6667 | H37: 4 | I37: 0 | J37: 0 | K37: 0.1667 | L37: 1 | M37: 6
A38: 14 | B38: Opportunities for collaborative online learning (COIL) or virtual exchange. | C38: 0 | D38: 0 | E38: 0.3333 | F38: 2 | G38: 0.5 | H38: 3 | I38: 0.1667 | J38: 1 | K38: 0 | L38: 0 | M38: 6
A39: 15 | B39: A range of people can provide useful support to academic staff to internationalise their curriculum (e.g., learning designers, teaching, and learning experts, online and learning management systems experts, international office staff). | C39: 0 | D39: 0 | E39: 0.3333 | F39: 2 | G39: 0.3333 | H39: 2 | I39: 0.1667 | J39: 1 | K39: 0.1667 | L39: 1 | M39: 6
A40: 16 | B40: Approaches to curriculum design should be systematic and process driven. | C40: 0 | D40: 0 | E40: 0.1667 | F40: 1 | G40: 0.5 | H40: 3 | I40: 0.1667 | J40: 1 | K40: 0.1667 | L40: 1 | M40: 6
A41: 17 | B41: Assessment exercises (such as external audits or internal institutional evaluations) that promote internationalization as a criterion of academic value/worth. | C41: 0 | D41: 0 | E41: 0.3333 | F41: 2 | G41: 0.5 | H41: 3 | I41: 0.1667 | J41: 1 | K41: 0 | L41: 0 | M41: 6
A43: Q64 - Other
A44: Other
A45: Leadership support as well as national policy support
A46: All of these approaches are present but not always in a systematic purposeful manner
A48: Q56 - Based on your experience in Latin American higher education rate the degree to which the following should inform approaches to internationalisation of the curriculum in Latin American universities.
A49: 1 - Not at all
A51: 2 - Not much
A53: 3 - Somewhat
A55: 4 - Very much
A57: U - Unsure
A58: # | B58: Question | C58: 1 | E58: 2 | G58: 3 | I58: 4 | K58: U | M58: Total
A59: 1 | B59: Improving the position of the university on one or more global ranking scales. | C59: 0.1667 | D59: 1 | E59: 0.8333 | F59: 5 | G59: 0 | H59: 0 | I59: 0 | J59: 0 | K59: 0 | L59: 0 | M59: 6
A60: 2 | B60: Improving the quality of teaching and learning in the university. | C60: 0 | D60: 0 | E60: 0 | F60: 0 | G60: 0.1667 | H60: 1 | I60: 0.6667 | J60: 4 | K60: 0.1667 | L60: 1 | M60: 6
A61: 3 | B61: Improving the employability of students. | C61: 0 | D61: 0 | E61: 0 | F61: 0 | G61: 0.1667 | H61: 1 | I61: 0.6667 | J61: 4 | K61: 0.1667 | L61: 1 | M61: 6
A62: 4 | B62: Internationalization of the curriculum is a primary responsibility of the International Office. | C62: 0.5 | D62: 3 | E62: 0.5 | F62: 3 | G62: 0 | H62: 0 | I62: 0 | J62: 0 | K62: 0 | L62: 0 | M62: 6
A63: 5 | B63: Improving solidarity and equality in society | C63: 0 | D63: 0 | E63: 0.1667 | F63: 1 | G63: 0 | H63: 0 | I63: 0.6667 | J63: 4 | K63: 0.1667 | L63: 1 | M63: 6
A64: 6 | B64: The pursuit of cognitive justice | C64: 0 | D64: 0 | E64: 0.1667 | F64: 1 | G64: 0 | H64: 0 | I64: 0.8333 | J64: 5 | K64: 0 | L64: 0 | M64: 6
A65: 7 | B65: Decolonisation of the curriculum | C65: 0 | D65: 0 | E65: 0 | F65: 0 | G65: 0.3333 | H65: 2 | I65: 0.5 | J65: 3 | K65: 0.1667 | L65: 1 | M65: 6
A66: 8 | B66: Including diverse perspectives into the curriculum | C66: 0 | D66: 0 | E66: 0 | F66: 0 | G66: 0 | H66: 0 | I66: 0.8333 | J66: 5 | K66: 0.1667 | L66: 1 | M66: 6
A67: 9 | B67: Inclusive teaching and learning approaches | C67: 0 | D67: 0 | E67: 0.1667 | F67: 1 | G67: 0 | H67: 0 | I67: 0.6667 | J67: 4 | K67: 0.1667 | L67: 1 | M67: 6
A68: 10 | B68: Study abroad and international exchange agreements. | C68: 0 | D68: 0 | E68: 0.1667 | F68: 1 | G68: 0.6667 | H68: 4 | I68: 0.1667 | J68: 1 | K68: 0 | L68: 0 | M68: 6
A69: 11 | B69: Curriculum design as an ongoing evolutionary process. | C69: 0 | D69: 0 | E69: 0 | F69: 0 | G69: 0.1667 | H69: 1 | I69: 0.6667 | J69: 4 | K69: 0.1667 | L69: 1 | M69: 6
A70: 12 | B70: Academic staff/faculty have primary responsibility for internationalisation of the curriculum. | C70: 0 | D70: 0 | E70: 0 | F70: 0 | G70: 0 | H70: 0 | I70: 0.8333 | J70: 5 | K70: 0.1667 | L70: 1 | M70: 6
A71: 13 | B71: All students need to develop intercultural perspectives and competencies. | C71: 0 | D71: 0 | E71: 0 | F71: 0 | G71: 0 | H71: 0 | I71: 0.8333 | J71: 5 | K71: 0.1667 | L71: 1 | M71: 6
A72: 14 | B72: Opportunities for collaborative online learning (COIL) or virtual exchange. | C72: 0 | D72: 0 | E72: 0 | F72: 0 | G72: 0.3333 | H72: 2 | I72: 0.6667 | J72: 4 | K72: 0 | L72: 0 | M72: 6
A73: 15 | B73: A range of people can provide useful support to academic staff to internationalise their curriculum (e.g., learning designers, teaching, and learning experts, online and learning management systems experts, international office staff). | C73: 0 | D73: 0 | E73: 0 | F73: 0 | G73: 0 | H73: 0 | I73: 1 | J73: 6 | K73: 0 | L73: 0 | M73: 6
A74: 16 | B74: Approaches to curriculum design should be systematic and process driven. | C74: 0 | D74: 0 | E74: 0 | F74: 0 | G74: 0 | H74: 0 | I74: 0.8333 | J74: 5 | K74: 0.1667 | L74: 1 | M74: 6
A75: 17 | B75: Assessment exercises (such as external audits or internal institutional evaluations) that promote internationalization as a criterion of academic value/worth. | C75: 0 | D75: 0 | E75: 0 | F75: 0 | G75: 0.6667 | H75: 4 | I75: 0.3333 | J75: 2 | K75: 0 | L75: 0 | M75: 6
A77: Q84 - Based on your experience in Latin American higher education are there any other drivers that you see as important in the Latin American context today?
A78: Based on your experience in Latin American higher education are there any other drivers that you see as important in the Latin American context today?
A79: institutional and national leadership support
A80: A desire for recognition and visibility, a strong sense of social responsibility, a search for regional identity
A81: Funding! The lack of funding and an increased pressure for securing that every member of the student body is developing the promised "international competencies" (not just the few that have the funds to participate in exchanges) is driving institutional conversations and internationalization policies torwards IoC. It's a bottom-up approach and that's why HEIs are paying attention.
A82: South-South cooperation
A84: Q57 - Based on your experience in Latin American higher education to what extent is higher education internationalization currently a priority for the following groups in Latin America?
A85: 1 - Not at all
A87: 2 - Low
A89: 3 - Medium
A91: 4 - High
A93: U - Unsure
A94: # | B94: Question | C94: 1 | E94: 2 | G94: 3 | I94: 4 | K94: U | M94: Total
A95: 1 | B95: Government (National) | C95: 0.1667 | D95: 1 | E95: 0.3333 | F95: 2 | G95: 0.1667 | H95: 1 | I95: 0.3333 | J95: 2 | K95: 0 | L95: 0 | M95: 6
A96: 2 | B96: Government (Regional) | C96: 0.3333 | D96: 2 | E96: 0.3333 | F96: 2 | G96: 0 | H96: 0 | I96: 0 | J96: 0 | K96: 0.3333 | L96: 2 | M96: 6
A97: 3 | B97: Government (Local) | C97: 0.6667 | D97: 4 | E97: 0 | F97: 0 | G97: 0 | H97: 0 | I97: 0 | J97: 0 | K97: 0.3333 | L97: 2 | M97: 6
A98: 4 | B98: Higher education institutions‚Äô leadership | C98: 0 | D98: 0 | E98: 0.1667 | F98: 1 | G98: 0.8333 | H98: 5 | I98: 0 | J98: 0 | K98: 0 | L98: 0 | M98: 6
A99: 5 | B99: Higher education faculty | C99: 0 | D99: 0 | E99: 0.1429 | F99: 1 | G99: 0.7143 | H99: 5 | I99: 0.1429 | J99: 1 | K99: 0 | L99: 0 | M99: 7
A100: 6 | B100: Students | C100: 0 | D100: 0 | E100: 0 | F100: 0 | G100: 0.5 | H100: 3 | I100: 0.5 | J100: 3 | K100: 0 | L100: 0 | M100: 6
A101: 7 | B101: Support staff | C101: 0 | D101: 0 | E101: 0.6667 | F101: 4 | G101: 0.3333 | H101: 2 | I101: 0 | J101: 0 | K101: 0 | L101: 0 | M101: 6
A102: 8 | B102: Administrative staff | C102: 0 | D102: 0 | E102: 0.8333 | F102: 5 | G102: 0.1667 | H102: 1 | I102: 0 | J102: 0 | K102: 0 | L102: 0 | M102: 6
A103: 9 | B103: Citizens in the local community | C103: 0 | D103: 0 | E103: 0.8333 | F103: 5 | G103: 0.1667 | H103: 1 | I103: 0 | J103: 0 | K103: 0 | L103: 0 | M103: 6
A104: 10 | B104: Industry | C104: 0 | D104: 0 | E104: 0.1667 | F104: 1 | G104: 0.5 | H104: 3 | I104: 0.1667 | J104: 1 | K104: 0.1667 | L104: 1 | M104: 6
A105: 11 | B105: Employers | C105: 0 | D105: 0 | E105: 0.1667 | F105: 1 | G105: 0.3333 | H105: 2 | I105: 0.3333 | J105: 2 | K105: 0.1667 | L105: 1 | M105: 6
A107: Q58 - Based on your experience in Latin American higher education, to what extent should higher education internationalization be a priority for the following groups in Latin America? 1 - Not at all 2 - Low 3 - Medium 4 - High U - Unsure
A108: # | B108: Question | C108: 1 | E108: 2 | G108: 3 | I108: 4 | K108: U | M108: Total
A109: 1 | B109: Government (National) | C109: 0 | D109: 0 | E109: 0 | F109: 0 | G109: 0.1667 | H109: 1 | I109: 0.8333 | J109: 5 | K109: 0 | L109: 0 | M109: 6
A110: 2 | B110: Government (Regional) | C110: 0 | D110: 0 | E110: 0.1667 | F110: 1 | G110: 0.1667 | H110: 1 | I110: 0.6667 | J110: 4 | K110: 0 | L110: 0 | M110: 6
A111: 3 | B111: Government (Local) | C111: 0 | D111: 0 | E111: 0.1667 | F111: 1 | G111: 0.1667 | H111: 1 | I111: 0.6667 | J111: 4 | K111: 0 | L111: 0 | M111: 6
A112: 4 | B112: Higher education institutions‚Äô leadership | C112: 0 | D112: 0 | E112: 0 | F112: 0 | G112: 0 | H112: 0 | I112: 1 | J112: 6 | K112: 0 | L112: 0 | M112: 6
A113: 5 | B113: Higher education faculty | C113: 0 | D113: 0 | E113: 0 | F113: 0 | G113: 0 | H113: 0 | I113: 1 | J113: 6 | K113: 0 | L113: 0 | M113: 6
A114: 6 | B114: Students | C114: 0 | D114: 0 | E114: 0 | F114: 0 | G114: 0 | H114: 0 | I114: 1 | J114: 6 | K114: 0 | L114: 0 | M114: 6
A115: 7 | B115: Support staff | C115: 0 | D115: 0 | E115: 0 | F115: 0 | G115: 0.5 | H115: 3 | I115: 0.5 | J115: 3 | K115: 0 | L115: 0 | M115: 6
A116: 8 | B116: Administrative staff | C116: 0 | D116: 0 | E116: 0 | F116: 0 | G116: 0.5 | H116: 3 | I116: 0.5 | J116: 3 | K116: 0 | L116: 0 | M116: 6
A117: 9 | B117: Citizens in the local community | C117: 0 | D117: 0 | E117: 0.1667 | F117: 1 | G117: 0.3333 | H117: 2 | I117: 0.5 | J117: 3 | K117: 0 | L117: 0 | M117: 6
A118: 10 | B118: Industry | C118: 0 | D118: 0 | E118: 0 | F118: 0 | G118: 0.1667 | H118: 1 | I118: 0.8333 | J118: 5 | K118: 0 | L118: 0 | M118: 6
A119: 11 | B119: Employers | C119: 0 | D119: 0 | E119: 0 | F119: 0 | G119: 0.1667 | H119: 1 | I119: 0.8333 | J119: 5 | K119: 0 | L119: 0 | M119: 6
A121: Q59 - Based on your experience in Latin American higher education, to what extent are the following outcomes currently a priority for internationalisation at the institutional level in Latin America? 1 - Not at all 2 - Low 3 - Medium 4 - High U - Unsure
A122: # | B122: Question | C122: 1 | E122: 2 | G122: 3 | I122: 4 | K122: U | M122: Total
A123: 1 | B123: International research collaboration | C123: 0 | D123: 0 | E123: 0 | F123: 0 | G123: 0.6667 | H123: 4 | I123: 0.3333 | J123: 2 | K123: 0 | L123: 0 | M123: 6
A124: 2 | B124: Improving global ranking of the university | C124: 0 | D124: 0 | E124: 0.1667 | F124: 1 | G124: 0.3333 | H124: 2 | I124: 0.5 | J124: 3 | K124: 0 | L124: 0 | M124: 6
A125: 3 | B125: Establishing and growing international education partnerships | C125: 0 | D125: 0 | E125: 0 | F125: 0 | G125: 0.6667 | H125: 4 | I125: 0.3333 | J125: 2 | K125: 0 | L125: 0 | M125: 6
A126: 4 | B126: Recruiting international students | C126: 0 | D126: 0 | E126: 0.5 | F126: 3 | G126: 0.3333 | H126: 2 | I126: 0 | J126: 0 | K126: 0.1667 | L126: 1 | M126: 6
A127: 5 | B127: International exchange programs | C127: 0 | D127: 0 | E127: 0.1667 | F127: 1 | G127: 0.3333 | H127: 2 | I127: 0.5 | J127: 3 | K127: 0 | L127: 0 | M127: 6
A128: 6 | B128: International faculty recruitment | C128: 0 | D128: 0 | E128: 0.3333 | F128: 2 | G128: 0.5 | H128: 3 | I128: 0 | J128: 0 | K128: 0.1667 | L128: 1 | M128: 6
A129: 7 | B129: Internationalizing the curriculum for all students | C129: 0 | D129: 0 | E129: 0.3333 | F129: 2 | G129: 0.5 | H129: 3 | I129: 0.1667 | J129: 1 | K129: 0 | L129: 0 | M129: 6
A130: 8 | B130: Internationalizing the campus | C130: 0 | D130: 0 | E130: 0.3333 | F130: 2 | G130: 0.5 | H130: 3 | I130: 0.1667 | J130: 1 | K130: 0 | L130: 0 | M130: 6
A131: 9 | B131: Internationalizing student services | C131: 0 | D131: 0 | E131: 0.5 | F131: 3 | G131: 0.1667 | H131: 1 | I131: 0.1667 | J131: 1 | K131: 0.1667 | L131: 1 | M131: 6
A132: 10 | B132: Increasing revenue for the institution | C132: 0 | D132: 0 | E132: 0.6667 | F132: 4 | G132: 0.1667 | H132: 1 | I132: 0 | J132: 0 | K132: 0.1667 | L132: 1 | M132: 6
A133: 11 | B133: Improving the quality of teaching and learning | C133: 0 | D133: 0 | E133: 0.1667 | F133: 1 | G133: 0.3333 | H133: 2 | I133: 0.5 | J133: 3 | K133: 0 | L133: 0 | M133: 6
A134: 12 | B134: Democratization of knowledge | C134: 0.1667 | D134: 1 | E134: 0.1667 | F134: 1 | G134: 0.5 | H134: 3 | I134: 0.1667 | J134: 1 | K134: 0 | L134: 0 | M134: 6
A135: 13 | B135: Addressing issues of inequity and exclusion in higher education | C135: 0.1667 | D135: 1 | E135: 0.1667 | F135: 1 | G135: 0.1667 | H135: 1 | I135: 0.5 | J135: 3 | K135: 0 | L135: 0 | M135: 6
A136: 14 | B136: Addressing issues of inequity and exclusion in society | C136: 0.3333 | D136: 2 | E136: 0 | F136: 0 | G136: 0.1667 | H136: 1 | I136: 0.5 | J136: 3 | K136: 0 | L136: 0 | M136: 6
A137: 15 | B137: Preparing all graduates for an increasingly globalized world | C137: 0 | D137: 0 | E137: 0.1667 | F137: 1 | G137: 0.5 | H137: 3 | I137: 0.3333 | J137: 2 | K137: 0 | L137: 0 | M137: 6
A138: 16 | B138: Improving employment options for graduates of the university | C138: 0 | D138: 0 | E138: 0.3333 | F138: 2 | G138: 0.5 | H138: 3 | I138: 0.1667 | J138: 1 | K138: 0 | L138: 0 | M138: 6
A139: 17 | B139: Improving equality of opportunity for marginalized groups in society | C139: 0.1667 | D139: 1 | E139: 0.3333 | F139: 2 | G139: 0.1667 | H139: 1 | I139: 0.3333 | J139: 2 | K139: 0 | L139: 0 | M139: 6
A140: 18 | B140: Developing faculty‚Äôs proficiency in additional languages | C140: 0 | D140: 0 | E140: 0.1667 | F140: 1 | G140: 0.8333 | H140: 5 | I140: 0 | J140: 0 | K140: 0 | L140: 0 | M140: 6
A141: 19 | B141: Developing faculty‚Äôs international knowledge and understanding | C141: 0 | D141: 0 | E141: 0.3333 | F141: 2 | G141: 0.3333 | H141: 2 | I141: 0.3333 | J141: 2 | K141: 0 | L141: 0 | M141: 6
A143: Q60 - Based on your experience in Latin American higher education to what extent should the following outcomes be a priority for internationalisation at the institutional level in Latin America?
A144: 1 - Not at all
A146: 2 - Low
A148: 3 - Medium
A150: 4 - High
A152: U - Unsure
A153: # | B153: Question | C153: 1 | E153: 2 | G153: 3 | I153: 4 | K153: U | M153: Total
A154: 1 | B154: International research collaboration | C154: 0 | D154: 0 | E154: 0 | F154: 0 | G154: 0.3333 | H154: 2 | I154: 0.6667 | J154: 4 | K154: 0 | L154: 0 | M154: 6
A155: 2 | B155: Improving global ranking of the university | C155: 0.1667 | D155: 1 | E155: 0.5 | F155: 3 | G155: 0.3333 | H155: 2 | I155: 0 | J155: 0 | K155: 0 | L155: 0 | M155: 6
A156: 3 | B156: Establishing and growing international education partnerships | C156: 0 | D156: 0 | E156: 0 | F156: 0 | G156: 0.5 | H156: 3 | I156: 0.5 | J156: 3 | K156: 0 | L156: 0 | M156: 6
A157: 4 | B157: Recruiting international students | C157: 0 | D157: 0 | E157: 0.3333 | F157: 2 | G157: 0.6667 | H157: 4 | I157: 0 | J157: 0 | K157: 0 | L157: 0 | M157: 6
A158: 5 | B158: International exchange programs | C158: 0 | D158: 0 | E158: 0.1667 | F158: 1 | G158: 0.5 | H158: 3 | I158: 0.3333 | J158: 2 | K158: 0 | L158: 0 | M158: 6
A159: 6 | B159: International faculty recruitment | C159: 0 | D159: 0 | E159: 0 | F159: 0 | G159: 1 | H159: 6 | I159: 0 | J159: 0 | K159: 0 | L159: 0 | M159: 6
A160: 7 | B160: Internationalizing the curriculum for all students | C160: 0 | D160: 0 | E160: 0 | F160: 0 | G160: 0 | H160: 0 | I160: 1 | J160: 6 | K160: 0 | L160: 0 | M160: 6
A161: 8 | B161: Internationalizing the campus | C161: 0 | D161: 0 | E161: 0 | F161: 0 | G161: 0 | H161: 0 | I161: 1 | J161: 6 | K161: 0 | L161: 0 | M161: 6
A162: 9 | B162: Internationalizing student services | C162: 0 | D162: 0 | E162: 0 | F162: 0 | G162: 0.5 | H162: 3 | I162: 0.5 | J162: 3 | K162: 0 | L162: 0 | M162: 6
A163: 10 | B163: Increasing revenue for the institution | C163: 0.1667 | D163: 1 | E163: 0.1667 | F163: 1 | G163: 0.6667 | H163: 4 | I163: 0 | J163: 0 | K163: 0 | L163: 0 | M163: 6
A164: 11 | B164: Improving the quality of teaching and learning | C164: 0 | D164: 0 | E164: 0 | F164: 0 | G164: 0 | H164: 0 | I164: 1 | J164: 6 | K164: 0 | L164: 0 | M164: 6
A165: 12 | B165: Democratization of knowledge | C165: 0 | D165: 0 | E165: 0 | F165: 0 | G165: 0 | H165: 0 | I165: 1 | J165: 6 | K165: 0 | L165: 0 | M165: 6
A166: 13 | B166: Addressing issues of inequity and exclusion in higher education | C166: 0 | D166: 0 | E166: 0 | F166: 0 | G166: 0.1667 | H166: 1 | I166: 0.8333 | J166: 5 | K166: 0 | L166: 0 | M166: 6
A167: 14 | B167: Addressing issues of inequity and exclusion in society | C167: 0 | D167: 0 | E167: 0.1667 | F167: 1 | G167: 0 | H167: 0 | I167: 0.8333 | J167: 5 | K167: 0 | L167: 0 | M167: 6
A168: 15 | B168: Preparing all graduates for an increasingly globalized world | C168: 0 | D168: 0 | E168: 0 | F168: 0 | G168: 0 | H168: 0 | I168: 1 | J168: 6 | K168: 0 | L168: 0 | M168: 6
A169: 16 | B169: Improving employment options for graduates of the university | C169: 0 | D169: 0 | E169: 0 | F169: 0 | G169: 0.1667 | H169: 1 | I169: 0.8333 | J169: 5 | K169: 0 | L169: 0 | M169: 6
A170: 17 | B170: Improving equality of opportunity for marginalized groups in society | C170: 0 | D170: 0 | E170: 0 | F170: 0 | G170: 0.1667 | H170: 1 | I170: 0.8333 | J170: 5 | K170: 0 | L170: 0 | M170: 6
A171: 18 | B171: Developing faculty‚Äôs proficiency in additional languages | C171: 0 | D171: 0 | E171: 0 | F171: 0 | G171: 0.5 | H171: 3 | I171: 0.5 | J171: 3 | K171: 0 | L171: 0 | M171: 6
A172: 19 | B172: Developing faculty‚Äôs international knowledge and understanding | C172: 0 | D172: 0 | E172: 0 | F172: 0 | G172: 0 | H172: 0 | I172: 1 | J172: 6 | K172: 0 | L172: 0 | M172: 6
A174: Q65 - Based on your experience in Latin American higher education are there any other outcomes that you see as important in the Latin American context today?
A175: Based on your experience in Latin American higher education are there any other outcomes that you see as important in the Latin American context today?
A176: Rather than other outcomes, it is more how these outcomes support one another, or where choices need to be made. In general, I find the refer to them all in one way or another but do not have sufficient systems and processes in place to make them happen.
A177: The need to push for knowledge creation versus knowledge transmission only. Linking research at HEI to concrete needs of industry and society.
A179: Q61 - Based on your experience in Latin American higher education from your understanding of and experience in higher education in Latin America, what are academic staff members‚Äô current priorities for internationalisation? 1 - Not at all 2 - Low 3 - Medium 4 - High U - Unsure
A180: # | B180: Question | C180: 1 | E180: 2 | G180: 3 | I180: 4 | K180: U | M180: Total
A181: 1 | B181: International research collaboration | C181: 0 | D181: 0 | E181: 0.3333 | F181: 2 | G181: 0.3333 | H181: 2 | I181: 0.3333 | J181: 2 | K181: 0 | L181: 0 | M181: 6
A182: 2 | B182: Improving global ranking of the university | C182: 0.1667 | D182: 1 | E182: 0.5 | F182: 3 | G182: 0.1667 | H182: 1 | I182: 0.1667 | J182: 1 | K182: 0 | L182: 0 | M182: 6
A183: 3 | B183: Establishing and growing international education partnerships | C183: 0 | D183: 0 | E183: 0.3333 | F183: 2 | G183: 0.3333 | H183: 2 | I183: 0.3333 | J183: 2 | K183: 0 | L183: 0 | M183: 6
A184: 4 | B184: Recruiting international students | C184: 0.3333 | D184: 2 | E184: 0 | F184: 0 | G184: 0.6667 | H184: 4 | I184: 0 | J184: 0 | K184: 0 | L184: 0 | M184: 6
A185: 5 | B185: International exchange programs | C185: 0.1667 | D185: 1 | E185: 0 | F185: 0 | G185: 0.5 | H185: 3 | I185: 0.3333 | J185: 2 | K185: 0 | L185: 0 | M185: 6
A186: 6 | B186: International faculty recruitment | C186: 0.1667 | D186: 1 | E186: 0.3333 | F186: 2 | G186: 0.3333 | H186: 2 | I186: 0 | J186: 0 | K186: 0.1667 | L186: 1 | M186: 6
A187: 7 | B187: Internationalizing the curriculum for all students | C187: 0 | D187: 0 | E187: 0.6667 | F187: 4 | G187: 0 | H187: 0 | I187: 0.1667 | J187: 1 | K187: 0.1667 | L187: 1 | M187: 6
A188: 8 | B188: Internationalizing the campus | C188: 0 | D188: 0 | E188: 0.5 | F188: 3 | G188: 0.3333 | H188: 2 | I188: 0 | J188: 0 | K188: 0.1667 | L188: 1 | M188: 6
A189: 9 | B189: Internationalizing student services | C189: 0.1667 | D189: 1 | E189: 0.5 | F189: 3 | G189: 0.1667 | H189: 1 | I189: 0 | J189: 0 | K189: 0.1667 | L189: 1 | M189: 6
A190: 10 | B190: Increasing revenue for the institution | C190: 0.1667 | D190: 1 | E190: 0.3333 | F190: 2 | G190: 0.5 | H190: 3 | I190: 0 | J190: 0 | K190: 0 | L190: 0 | M190: 6
A191: 11 | B191: Improving the quality of teaching and learning | C191: 0 | D191: 0 | E191: 0.1667 | F191: 1 | G191: 0.5 | H191: 3 | I191: 0.3333 | J191: 2 | K191: 0 | L191: 0 | M191: 6
A192: 12 | B192: Democratization of knowledge | C192: 0 | D192: 0 | E192: 0.5 | F192: 3 | G192: 0.3333 | H192: 2 | I192: 0.1667 | J192: 1 | K192: 0 | L192: 0 | M192: 6
A193: 13 | B193: Addressing issues of inequity and exclusion in higher education | C193: 0.3333 | D193: 2 | E193: 0.1667 | F193: 1 | G193: 0.1667 | H193: 1 | I193: 0.1667 | J193: 1 | K193: 0.1667 | L193: 1 | M193: 6
A194: 14 | B194: Addressing issues of inequity and exclusion in society | C194: 0.3333 | D194: 2 | E194: 0.1667 | F194: 1 | G194: 0 | H194: 0 | I194: 0.3333 | J194: 2 | K194: 0.1667 | L194: 1 | M194: 6
A195: 15 | B195: Preparing all graduates for an increasingly globalized world | C195: 0 | D195: 0 | E195: 0.1667 | F195: 1 | G195: 0.5 | H195: 3 | I195: 0.1667 | J195: 1 | K195: 0.1667 | L195: 1 | M195: 6
A196: 16 | B196: Improving employment options for graduates of the university | C196: 0 | D196: 0 | E196: 0 | F196: 0 | G196: 0.6667 | H196: 4 | I196: 0.3333 | J196: 2 | K196: 0 | L196: 0 | M196: 6
A197: 17 | B197: Improving equality of opportunity for marginalized groups in society | C197: 0.3333 | D197: 2 | E197: 0.1667 | F197: 1 | G197: 0.3333 | H197: 2 | I197: 0.1667 | J197: 1 | K197: 0 | L197: 0 | M197: 6
A198: 18 | B198: Developing faculty‚Äôs proficiency in additional languages | C198: 0 | D198: 0 | E198: 0.5 | F198: 3 | G198: 0.5 | H198: 3 | I198: 0 | J198: 0 | K198: 0 | L198: 0 | M198: 6
A199: 19 | B199: Developing faculty‚Äôs international knowledge and understanding | C199: 0.1429 | D199: 1 | E199: 0.4286 | F199: 3 | G199: 0.2857 | H199: 2 | I199: 0.1429 | J199: 1 | K199: 0 | L199: 0 | M199: 7
A201: Q62 - Based on your experience in Latin American higher education from your understanding of and experience in higher education in Latin America, ideally what would be academic staff members‚Äô priorities for internationalisation? 1 - Not at all 2 - Low 3 - Medium 4 - High U - Unsure
A202: # | B202: Question | C202: 1 | E202: 2 | G202: 3 | I202: 4 | K202: U | M202: Total
A203: 1 | B203: Establishing and nurturing their own international research partnerships. | C203: 0 | D203: 0 | E203: 0 | F203: 0 | G203: 0.3333 | H203: 2 | I203: 0.6667 | J203: 4 | K203: 0 | L203: 0 | M203: 6
A204: 2 | B204: Organising and/or teaching on Collaborative Online International Learning projects. | C204: 0 | D204: 0 | E204: 0 | F204: 0 | G204: 0 | H204: 0 | I204: 1 | J204: 6 | K204: 0 | L204: 0 | M204: 6
A205: 3 | B205: Organizing Virtual Exchange projects. | C205: 0 | D205: 0 | E205: 0 | F205: 0 | G205: 0.1667 | H205: 1 | I205: 0.8333 | J205: 5 | K205: 0 | L205: 0 | M205: 6
A206: 4 | B206: Connecting with local community groups on intercultural projects. | C206: 0 | D206: 0 | E206: 0.1667 | F206: 1 | G206: 0 | H206: 0 | I206: 0.8333 | J206: 5 | K206: 0 | L206: 0 | M206: 6
A207: 5 | B207: Organising mobility programs for their students. | C207: 0 | D207: 0 | E207: 0.25 | F207: 2 | G207: 0.5 | H207: 4 | I207: 0.25 | J207: 2 | K207: 0 | L207: 0 | M207: 8
A208: 6 | B208: Internationalizing the content of their teaching. | C208: 0 | D208: 0 | E208: 0 | F208: 0 | G208: 0 | H208: 0 | I208: 1 | J208: 6 | K208: 0 | L208: 0 | M208: 6
A209: 7 | B209: Developing and applying intercultural pedagogies. | C209: 0 | D209: 0 | E209: 0 | F209: 0 | G209: 0 | H209: 0 | I209: 1 | J209: 6 | K209: 0 | L209: 0 | M209: 6
A210: 8 | B210: Developing and applying inclusive pedagogies. | C210: 0 | D210: 0 | E210: 0 | F210: 0 | G210: 0 | H210: 0 | I210: 1 | J210: 6 | K210: 0 | L210: 0 | M210: 6
A211: 9 | B211: Preparing their students for an increasingly globalized workplace. | C211: 0 | D211: 0 | E211: 0 | F211: 0 | G211: 0 | H211: 0 | I211: 1 | J211: 6 | K211: 0 | L211: 0 | M211: 6
A212: 10 | B212: Developing students‚Äô international technical competencies. | C212: 0 | D212: 0 | E212: 0 | F212: 0 | G212: 0.1667 | H212: 1 | I212: 0.8333 | J212: 5 | K212: 0 | L212: 0 | M212: 6
A213: 11 | B213: Developing students‚Äô skills to understand and interact across cultures interculturality (soft skills). | C213: 0 | D213: 0 | E213: 0 | F213: 0 | G213: 0 | H213: 0 | I213: 1 | J213: 6 | K213: 0 | L213: 0 | M213: 6
A214: 12 | B214: Developing students‚Äô theoretical understanding of interculturality. | C214: 0 | D214: 0 | E214: 0 | F214: 0 | G214: 0.5 | H214: 3 | I214: 0.5 | J214: 3 | K214: 0 | L214: 0 | M214: 6
A215: 13 | B215: Expanding faculty members international knowledge in disciplines and/or related professional fields. | C215: 0 | D215: 0 | E215: 0 | F215: 0 | G215: 0.1667 | H215: 1 | I215: 0.8333 | J215: 5 | K215: 0 | L215: 0 | M215: 6
A216: 14 | B216: Decolonising the curriculum through for example, the inclusion of indigenous knowledge/perspectives into their teaching. | C216: 0 | D216: 0 | E216: 0 | F216: 0 | G216: 0.1667 | H216: 1 | I216: 0.8333 | J216: 5 | K216: 0 | L216: 0 | M216: 6
A217: 15 | B217: Achieving the UN Sustainable Development Goals. | C217: 0 | D217: 0 | E217: 0 | F217: 0 | G217: 0.1667 | H217: 1 | I217: 0.8333 | J217: 5 | K217: 0 | L217: 0 | M217: 6
A218: 16 | B218: Developing students' ethical and cosmopolitan values. | C218: 0 | D218: 0 | E218: 0 | F218: 0 | G218: 0.1667 | H218: 1 | I218: 0.8333 | J218: 5 | K218: 0 | L218: 0 | M218: 6
A219: 17 | B219: Developing students' understanding of their global social responsibilities. | C219: 0 | D219: 0 | E219: 0 | F219: 0 | G219: 0 | H219: 0 | I219: 1 | J219: 6 | K219: 0 | L219: 0 | M219: 6
A220: 18 | B220: Developing students‚Äô international understanding. | C220: 0 | D220: 0 | E220: 0 | F220: 0 | G220: 0 | H220: 0 | I220: 1 | J220: 6 | K220: 0 | L220: 0 | M220: 6
A221: 19 | B221: Developing students‚Äô intercultural competence. | C221: 0 | D221: 0 | E221: 0 | F221: 0 | G221: 0 | H221: 0 | I221: 1 | J221: 6 | K221: 0 | L221: 0 | M221: 6
A223: Q63 - Based on your experience in Latin American higher education what do you see as the main obstacles to academic staff engagement in internationalization of the curriculum in Latin America today?
A224: Based on your experience in Latin American higher education what do you see as the main obstacles to academic staff engagement in internationalization of the curriculum in Latin America today?
A225: Lack of awards for doing so, lack of experience, lack of time, lack of commitment
A226: Staff typically feel overworked and undervalued. In general people see a lack of financial resources as the problem.
A227: Relying on Spanish-only resources
A228: Unwillingness to unlearn and relearn pedagogical approaches & incorporating an internationalized / cosmpolitan perspective into their classroom, materials, activities and outreach.
A229: The limited possibilities for contributions of academic staff due to hierarchic governance structures.
A231: Q67 - Based on your experience in Latin American higher education, to what extent are the following people currently involved in internationalizing the curriculum? 1 - Not at all 2 - Low 3 - Medium 4 - High U - Unsure
A232: # | B232: Question | C232: 1 | E232: 2 | G232: 3 | I232: 4 | K232: U | M232: Total
... 197 more rows

Sheet PortuguesR2
A1: Tradu√ß√£o
A2: Last Modified: 2022-06-23 00:33:05 MDT
A5: Q5 - Entendo o prop√≥sito do meu envolvimento neste projeto e concordo em fazer parte, de maneira volunt√°ria, neste e-Delphi.
A6: # | B6: Field | C6: Minimum | D6: Maximum | E6: Mean | F6: Std Deviation | G6: Variance | H6: Count
A7: 1 | B7: Entendo o prop√≥sito do meu envolvimento neste projeto e concordo em fazer parte, de maneira volunt√°ria, neste e-Delphi. | C7: 1 | D7: 1 | E7: 1 | F7: 0 | G7: 0 | H7: 4
A9: # | B9: Answer | C9: % | D9: Count
A10: 1 | B10: Sim | C10: 1 | D10: 4
A11: 2 | B11: N√£o | C11: 0 | D11: 0
B12: Total | C12: 1 | D12: 4
A14: Q9 - Com base em sua experi√™ncia no ensino superior latino-americano, avalie em que medida os itens e afirma√ß√µes a seguir norteiam as abordagens para a internacionaliza√ß√£o do curr√≠culo nas universidades latino-americanas atualmente. 1 - Nem um pouco 2 - Pouco 3 - Um pouco 4 - Muito N - N√£o tenho certeza
A15: # | B15: Question | C15: 1 | E15: 2 | G15: 3 | I15: 4 | K15: N | M15: Total
A16: 1 | B16: Alcance de melhores posi√ß√µes da universidade em um ou mais rankings globais. | C16: 0 | D16: 0 | E16: 0 | F16: 0 | G16: 0 | H16: 0 | I16: 0.6667 | J16: 2 | K16: 0.3333 | L16: 1 | M16: 3
A17: 2 | B17: Melhoria da qualidade do ensino e aprendizagem na universidade. | C17: 0 | D17: 0 | E17: 0 | F17: 0 | G17: 0 | H17: 0 | I17: 0.6667 | J17: 2 | K17: 0.3333 | L17: 1 | M17: 3
A18: 3 | B18: Aumento da empregabilidade dos alunos | C18: 0 | D18: 0 | E18: 0 | F18: 0 | G18: 0.3333 | H18: 1 | I18: 0.3333 | J18: 1 | K18: 0.3333 | L18: 1 | M18: 3
A19: 4 | B19: A internacionaliza√ß√£o do curr√≠culo como responsabilidade principal de um Escrit√≥rio Internacional | C19: 0 | D19: 0 | E19: 0 | F19: 0 | G19: 0.6667 | H19: 2 | I19: 0 | J19: 0 | K19: 0.3333 | L19: 1 | M19: 3
A20: 5 | B20: Fomento √† solidariedade e igualdade na sociedade | C20: 0 | D20: 0 | E20: 0.3333 | F20: 1 | G20: 0 | H20: 0 | I20: 0.3333 | J20: 1 | K20: 0.3333 | L20: 1 | M20: 3
A21: 6 | B21: Busca por justi√ßa cognitiva | C21: 0 | D21: 0 | E21: 0.3333 | F21: 1 | G21: 0 | H21: 0 | I21: 0.3333 | J21: 1 | K21: 0.3333 | L21: 1 | M21: 3
A22: 7 | B22: Descoloniza√ß√£o do curr√≠culo | C22: 0 | D22: 0 | E22: 0.3333 | F22: 1 | G22: 0 | H22: 0 | I22: 0.3333 | J22: 1 | K22: 0.3333 | L22: 1 | M22: 3
A23: 8 | B23: Inclus√£o de diversas perspectivas no curr√≠culo | C23: 0 | D23: 0 | E23: 0.3333 | F23: 1 | G23: 0 | H23: 0 | I23: 0.3333 | J23: 1 | K23: 0.3333 | L23: 1 | M23: 3
A24: 9 | B24: Abordagens inclusivas de ensino e aprendizagem | C24: 0 | D24: 0 | E24: 0.3333 | F24: 1 | G24: 0 | H24: 0 | I24: 0.3333 | J24: 1 | K24: 0.3333 | L24: 1 | M24: 3
A25: 10 | B25: Programas de mobilidade acad√™mica e interc√¢mbio internacional | C25: 0 | D25: 0 | E25: 0 | F25: 0 | G25: 0 | H25: 0 | I25: 0.6667 | J25: 2 | K25: 0.3333 | L25: 1 | M25: 3
A26: 11 | B26: O desenho de curr√≠culo como sendo um processo evolutivo cont√≠nuo. | C26: 0 | D26: 0 | E26: 0.3333 | F26: 1 | G26: 0 | H26: 0 | I26: 0.3333 | J26: 1 | K26: 0.3333 | L26: 1 | M26: 3
A27: 12 | B27: A responsabilidade principal pela internacionaliza√ß√£o do curr√≠culo recai sobre a equipe acad√™mica / corpo docente | C27: 0 | D27: 0 | E27: 0 | F27: 0 | G27: 0 | H27: 0 | I27: 0.6667 | J27: 2 | K27: 0.3333 | L27: 1 | M27: 3
A28: 13 | B28: Todos os alunos precisam desenvolver perspectivas e compet√™ncias interculturais | C28: 0 | D28: 0 | E28: 0.3333 | F28: 1 | G28: 0.3333 | H28: 1 | I28: 0 | J28: 0 | K28: 0.3333 | L28: 1 | M28: 3
A29: 14 | B29: Oportunidades de aprendizagem colaborativa online (COIL) ou interc√¢mbios virtuais | C29: 0 | D29: 0 | E29: 0.3333 | F29: 1 | G29: 0 | H29: 0 | I29: 0.3333 | J29: 1 | K29: 0.3333 | L29: 1 | M29: 3
A30: 15 | B30: Uma gama de atores pode ser √∫til √† equipe acad√™mica para internacionalizar seu curr√≠culo (por exemplo, designers de aprendizagem, especialistas em ensino e aprendizagem, especialistas em sistemas de gest√£o de aprendizagem online e colaboradores de escrit√≥rios internacionais) | C30: 0 | D30: 0 | E30: 0.3333 | F30: 1 | G30: 0 | H30: 0 | I30: 0.3333 | J30: 1 | K30: 0.3333 | L30: 1 | M30: 3
A31: 16 | B31: Abordagens para o desenho de curr√≠culo deveriam ser sistem√°ticas e orientadas ao processo | C31: 0 | D31: 0 | E31: 0 | F31: 0 | G31: 0.6667 | H31: 2 | I31: 0 | J31: 0 | K31: 0.3333 | L31: 1 | M31: 3
A32: 17 | B32: Atividades de avalia√ß√£o (tais como auditorias externas ou avalia√ß√µes institucionais internas) que promovam a internacionaliza√ß√£o como crit√©rio de valor / credibilidade acad√™mica | C32: 0 | D32: 0 | E32: 0.3333 | F32: 1 | G32: 0.3333 | H32: 1 | I32: 0 | J32: 0 | K32: 0.3333 | L32: 1 | M32: 3
A34: Q64 - Alguma outra?
A35: Alguma outra?
A36: N√£o consigo pensar em outra.
A38: Q56 - Com base em sua experi√™ncia no ensino superior latino-americano, avalie em que medida os itens e afirma√ß√µes a seguir deveriam nortear as abordagens para a internacionaliza√ß√£o do curr√≠culo nas universidades latino-americanas atualmente. 1 - Nem um pouco 2 - Pouco 3 - Um pouco 4 - Muito N - N√£o tenho certeza
A39: # | B39: Question | C39: 1 | E39: 2 | G39: 3 | I39: 4 | K39: N | M39: Total
A40: 1 | B40: Alcance de melhores posi√ß√µes da universidade em um ou mais rankings globais. | C40: 0.3333 | D40: 1 | E40: 0 | F40: 0 | G40: 0.3333 | H40: 1 | I40: 0.3333 | J40: 1 | K40: 0 | L40: 0 | M40: 3
A41: 2 | B41: Melhoria da qualidade do ensino e aprendizagem na universidade. | C41: 0 | D41: 0 | E41: 0 | F41: 0 | G41: 0 | H41: 0 | I41: 1 | J41: 3 | K41: 0 | L41: 0 | M41: 3
A42: 3 | B42: Aumento da empregabilidade dos alunos | C42: 0 | D42: 0 | E42: 0 | F42: 0 | G42: 0 | H42: 0 | I42: 1 | J42: 3 | K42: 0 | L42: 0 | M42: 3
A43: 4 | B43: A internacionaliza√ß√£o do curr√≠culo como responsabilidade principal de um Escrit√≥rio Internacional | C43: 0 | D43: 0 | E43: 0 | F43: 0 | G43: 0.6667 | H43: 2 | I43: 0.3333 | J43: 1 | K43: 0 | L43: 0 | M43: 3
A44: 5 | B44: Fomento √† solidariedade e igualdade na sociedade | C44: 0 | D44: 0 | E44: 0 | F44: 0 | G44: 0 | H44: 0 | I44: 1 | J44: 3 | K44: 0 | L44: 0 | M44: 3
A45: 6 | B45: Busca por justi√ßa cognitiva | C45: 0 | D45: 0 | E45: 0 | F45: 0 | G45: 0 | H45: 0 | I45: 1 | J45: 3 | K45: 0 | L45: 0 | M45: 3
A46: 7 | B46: Descoloniza√ß√£o do curr√≠culo | C46: 0 | D46: 0 | E46: 0 | F46: 0 | G46: 0.3333 | H46: 1 | I46: 0.6667 | J46: 2 | K46: 0 | L46: 0 | M46: 3
A47: 8 | B47: Inclus√£o de diversas perspectivas no curr√≠culo | C47: 0 | D47: 0 | E47: 0 | F47: 0 | G47: 0.3333 | H47: 1 | I47: 0.6667 | J47: 2 | K47: 0 | L47: 0 | M47: 3
A48: 9 | B48: Abordagens inclusivas de ensino e aprendizagem | C48: 0 | D48: 0 | E48: 0 | F48: 0 | G48: 0.3333 | H48: 1 | I48: 0.6667 | J48: 2 | K48: 0 | L48: 0 | M48: 3
A49: 10 | B49: Programas de mobilidade acad√™mica e interc√¢mbio internacional | C49: 0 | D49: 0 | E49: 0 | F49: 0 | G49: 0.3333 | H49: 1 | I49: 0.6667 | J49: 2 | K49: 0 | L49: 0 | M49: 3
A50: 11 | B50: O desenho de curr√≠culo como sendo um processo evolutivo cont√≠nuo. | C50: 0 | D50: 0 | E50: 0 | F50: 0 | G50: 0 | H50: 0 | I50: 1 | J50: 3 | K50: 0 | L50: 0 | M50: 3
A51: 12 | B51: A responsabilidade principal pela internacionaliza√ß√£o do curr√≠culo recai sobre a equipe acad√™mica / corpo docente | C51: 0 | D51: 0 | E51: 0.6667 | F51: 2 | G51: 0 | H51: 0 | I51: 0.3333 | J51: 1 | K51: 0 | L51: 0 | M51: 3
A52: 13 | B52: Todos os alunos precisam desenvolver perspectivas e compet√™ncias interculturais | C52: 0 | D52: 0 | E52: 0 | F52: 0 | G52: 0.6667 | H52: 2 | I52: 0.3333 | J52: 1 | K52: 0 | L52: 0 | M52: 3
A53: 14 | B53: Oportunidades de aprendizagem colaborativa online (COIL) ou interc√¢mbios virtuais | C53: 0 | D53: 0 | E53: 0 | F53: 0 | G53: 0.3333 | H53: 1 | I53: 0.6667 | J53: 2 | K53: 0 | L53: 0 | M53: 3
A54: 15 | B54: Uma gama de atores pode ser √∫til √† equipe acad√™mica para internacionalizar seu curr√≠culo (por exemplo, designers de aprendizagem, especialistas em ensino e aprendizagem, especialistas em sistemas de gest√£o de aprendizagem online e colaboradores de escrit√≥rios internacionais) | C54: 0 | D54: 0 | E54: 0 | F54: 0 | G54: 0.3333 | H54: 1 | I54: 0.6667 | J54: 2 | K54: 0 | L54: 0 | M54: 3
A55: 16 | B55: Abordagens para o desenho de curr√≠culo deveriam ser sistem√°ticas e orientadas ao processo | C55: 0 | D55: 0 | E55: 0 | F55: 0 | G55: 0 | H55: 0 | I55: 1 | J55: 3 | K55: 0 | L55: 0 | M55: 3
A56: 17 | B56: Atividades de avalia√ß√£o (tais como auditorias externas ou avalia√ß√µes institucionais internas) que promovam a internacionaliza√ß√£o como crit√©rio de valor / credibilidade acad√™mica | C56: 0 | D56: 0 | E56: 0 | F56: 0 | G56: 0.6667 | H56: 2 | I56: 0.3333 | J56: 1 | K56: 0 | L56: 0 | M56: 3
A58: Q84 - Com base em sua experi√™ncia no ensino superior latino-americano, h√° outros fatores propulsores que voc√™ considere importantes no contexto latino-americano hoje em dia?
A59: Com base em sua experi√™ncia no ensino superior latino-americano, h√° outros fatores propulsores que voc√™ considere importantes no contexto latino-americano hoje em dia?
A60: Envolvimento de empresas empregadoras de mao de obra qualificada
A61: N√£o consigo pensar em outro
A63: Q57 - Com base em sua experi√™ncia no ensino superior latino-americano, em que medida a internacionaliza√ß√£o do ensino superior √© atualmente uma prioridade para os seguintes grupos na Am√©rica Latina? 1 - N√£o √© prioridade 2 - Baixa 3 - M√©dia 4 - Alta N - N√£o tenho certeza
A64: # | B64: Question | C64: 1 | E64: 2 | G64: 3 | I64: 4 | K64: N | M64: Total
A65: 1 | B65: Governo (Nacional) | C65: 0.3333 | D65: 1 | E65: 0.6667 | F65: 2 | G65: 0 | H65: 0 | I65: 0 | J65: 0 | K65: 0 | L65: 0 | M65: 3
A66: 2 | B66: Governo (Regional) | C66: 0.3333 | D66: 1 | E66: 0.6667 | F66: 2 | G66: 0 | H66: 0 | I66: 0 | J66: 0 | K66: 0 | L66: 0 | M66: 3
A67: 3 | B67: Governo (Local) | C67: 0.3333 | D67: 1 | E67: 0.6667 | F67: 2 | G67: 0 | H67: 0 | I67: 0 | J67: 0 | K67: 0 | L67: 0 | M67: 3
A68: 4 | B68: Lideran√ßas das Institui√ß√µes de Ensino Superior | C68: 0 | D68: 0 | E68: 0.6667 | F68: 2 | G68: 0 | H68: 0 | I68: 0.3333 | J68: 1 | K68: 0 | L68: 0 | M68: 3
A69: 5 | B69: Corpo docente das institui√ß√µes de ensino superior | C69: 0 | D69: 0 | E69: 0.3333 | F69: 1 | G69: 0.3333 | H69: 1 | I69: 0.3333 | J69: 1 | K69: 0 | L69: 0 | M69: 3
A70: 6 | B70: Alunos | C70: 0 | D70: 0 | E70: 0.3333 | F70: 1 | G70: 0.3333 | H70: 1 | I70: 0.3333 | J70: 1 | K70: 0 | L70: 0 | M70: 3
A71: 7 | B71: Equipe de apoio | C71: 0 | D71: 0 | E71: 0.6667 | F71: 2 | G71: 0 | H71: 0 | I71: 0.3333 | J71: 1 | K71: 0 | L71: 0 | M71: 3
A72: 8 | B72: Equipe administrativa | C72: 0 | D72: 0 | E72: 0.6667 | F72: 2 | G72: 0 | H72: 0 | I72: 0.3333 | J72: 1 | K72: 0 | L72: 0 | M72: 3
A73: 9 | B73: Membros da comunidade local | C73: 0 | D73: 0 | E73: 0.6667 | F73: 2 | G73: 0.3333 | H73: 1 | I73: 0 | J73: 0 | K73: 0 | L73: 0 | M73: 3
A74: 10 | B74: Ind√∫stria | C74: 0 | D74: 0 | E74: 0.6667 | F74: 2 | G74: 0.3333 | H74: 1 | I74: 0 | J74: 0 | K74: 0 | L74: 0 | M74: 3
A75: 11 | B75: Empregadores | C75: 0 | D75: 0 | E75: 0.6667 | F75: 2 | G75: 0.3333 | H75: 1 | I75: 0 | J75: 0 | K75: 0 | L75: 0 | M75: 3
A77: Q58 - Com base em sua experi√™ncia no ensino superior latino-americano, em que medida a internacionaliza√ß√£o do ensino superior deveria ser uma prioridade para os seguintes grupos na Am√©rica Latina? 1 - N√£o deveria ser prioridade 2 - Baixa 3 - M√©dia 4 - Alta N - N√£o tenho certeza
A78: # | B78: Question | C78: 1 | E78: 2 | G78: 3 | I78: 4 | K78: N | M78: Total
A79: 1 | B79: Governo (Nacional) | C79: 0 | D79: 0 | E79: 0 | F79: 0 | G79: 0.3333 | H79: 1 | I79: 0.6667 | J79: 2 | K79: 0 | L79: 0 | M79: 3
A80: 2 | B80: Governo (Regional) | C80: 0 | D80: 0 | E80: 0 | F80: 0 | G80: 0.3333 | H80: 1 | I80: 0.6667 | J80: 2 | K80: 0 | L80: 0 | M80: 3
A81: 3 | B81: Governo (Local) | C81: 0 | D81: 0 | E81: 0 | F81: 0 | G81: 0.3333 | H81: 1 | I81: 0.6667 | J81: 2 | K81: 0 | L81: 0 | M81: 3
A82: 4 | B82: Lideran√ßas das Institui√ß√µes de Ensino Superior | C82: 0 | D82: 0 | E82: 0 | F82: 0 | G82: 0 | H82: 0 | I82: 1 | J82: 3 | K82: 0 | L82: 0 | M82: 3
A83: 5 | B83: Corpo docente das institui√ß√µes de ensino superior | C83: 0 | D83: 0 | E83: 0 | F83: 0 | G83: 0 | H83: 0 | I83: 1 | J83: 3 | K83: 0 | L83: 0 | M83: 3
A84: 6 | B84: Alunos | C84: 0 | D84: 0 | E84: 0 | F84: 0 | G84: 0 | H84: 0 | I84: 1 | J84: 3 | K84: 0 | L84: 0 | M84: 3
A85: 7 | B85: Equipe de apoio | C85: 0 | D85: 0 | E85: 0 | F85: 0 | G85: 0 | H85: 0 | I85: 1 | J85: 3 | K85: 0 | L85: 0 | M85: 3
A86: 8 | B86: Equipe administrativa | C86: 0 | D86: 0 | E86: 0 | F86: 0 | G86: 0 | H86: 0 | I86: 1 | J86: 3 | K86: 0 | L86: 0 | M86: 3
A87: 9 | B87: Membros da comunidade local | C87: 0 | D87: 0 | E87: 0 | F87: 0 | G87: 0 | H87: 0 | I87: 1 | J87: 3 | K87: 0 | L87: 0 | M87: 3
A88: 10 | B88: Ind√∫stria | C88: 0 | D88: 0 | E88: 0 | F88: 0 | G88: 0 | H88: 0 | I88: 1 | J88: 3 | K88: 0 | L88: 0 | M88: 3
A89: 11 | B89: Empregadores | C89: 0 | D89: 0 | E89: 0 | F89: 0 | G89: 0 | H89: 0 | I89: 1 | J89: 3 | K89: 0 | L89: 0 | M89: 3
A91: Q59 - Com base em sua experi√™ncia no ensino superior latino-americano, em que medida os resultados a seguir s√£o atualmente uma prioridade para a internacionaliza√ß√£o em n√≠vel institucional na Am√©rica Latina? 1 - N√£o s√£o prioridade 2 - Baixa 3 - M√©dia 4 - Alta N - N√£o tenho certeza
A92: # | B92: Question | C92: 1 | E92: 2 | G92: 3 | I92: 4 | K92: N | M92: Total
A93: 1 | B93: Colabora√ß√£o internacional em pesquisa | C93: 0 | D93: 0 | E93: 0 | F93: 0 | G93: 0.6667 | H93: 2 | I93: 0 | J93: 0 | K93: 0.3333 | L93: 1 | M93: 3
A94: 2 | B94: Melhores posi√ß√µes da universidade em rankings globais | C94: 0 | D94: 0 | E94: 0 | F94: 0 | G94: 0.3333 | H94: 1 | I94: 0.3333 | J94: 1 | K94: 0.3333 | L94: 1 | M94: 3
A95: 3 | B95: Estabelecimento e expans√£o das parcerias educacionais internacionais | C95: 0 | D95: 0 | E95: 0.3333 | F95: 1 | G95: 0.3333 | H95: 1 | I95: 0 | J95: 0 | K95: 0.3333 | L95: 1 | M95: 3
A96: 4 | B96: Atra√ß√£o de alunos internacionais | C96: 0 | D96: 0 | E96: 0.3333 | F96: 1 | G96: 0.3333 | H96: 1 | I96: 0 | J96: 0 | K96: 0.3333 | L96: 1 | M96: 3
A97: 5 | B97: Programas de mobilidade internacional | C97: 0 | D97: 0 | E97: 0 | F97: 0 | G97: 0.6667 | H97: 2 | I97: 0 | J97: 0 | K97: 0.3333 | L97: 1 | M97: 3
A98: 6 | B98: Capta√ß√£o de corpo docente internacional | C98: 0 | D98: 0 | E98: 0.3333 | F98: 1 | G98: 0.3333 | H98: 1 | I98: 0 | J98: 0 | K98: 0.3333 | L98: 1 | M98: 3
A99: 7 | B99: Internacionaliza√ß√£o do curr√≠culo para todos os estudantes | C99: 0 | D99: 0 | E99: 0.3333 | F99: 1 | G99: 0.3333 | H99: 1 | I99: 0 | J99: 0 | K99: 0.3333 | L99: 1 | M99: 3
A100: 8 | B100: Internacionaliza√ß√£o do campus | C100: 0 | D100: 0 | E100: 0.3333 | F100: 1 | G100: 0.3333 | H100: 1 | I100: 0 | J100: 0 | K100: 0.3333 | L100: 1 | M100: 3
A101: 9 | B101: Internacionaliza√ß√£o dos servi√ßos ao estudante | C101: 0 | D101: 0 | E101: 0.3333 | F101: 1 | G101: 0.3333 | H101: 1 | I101: 0 | J101: 0 | K101: 0.3333 | L101: 1 | M101: 3
A102: 10 | B102: Aumento de receita para a institui√ß√£o | C102: 0 | D102: 0 | E102: 0 | F102: 0 | G102: 0.6667 | H102: 2 | I102: 0 | J102: 0 | K102: 0.3333 | L102: 1 | M102: 3
A103: 11 | B103: Melhoria da qualidade do ensino e aprendizagem | C103: 0 | D103: 0 | E103: 0 | F103: 0 | G103: 0.6667 | H103: 2 | I103: 0 | J103: 0 | K103: 0.3333 | L103: 1 | M103: 3
A104: 12 | B104: Democratiza√ß√£o do conhecimento | C104: 0 | D104: 0 | E104: 0 | F104: 0 | G104: 0.6667 | H104: 2 | I104: 0 | J104: 0 | K104: 0.3333 | L104: 1 | M104: 3
A105: 13 | B105: Tratamento de quest√µes de iniquidade e exclus√£o no ensino superior | C105: 0 | D105: 0 | E105: 0.3333 | F105: 1 | G105: 0.3333 | H105: 1 | I105: 0 | J105: 0 | K105: 0.3333 | L105: 1 | M105: 3
A106: 14 | B106: Tratamento de quest√µes de iniquidade e exclus√£o na sociedade | C106: 0 | D106: 0 | E106: 0.3333 | F106: 1 | G106: 0.3333 | H106: 1 | I106: 0 | J106: 0 | K106: 0.3333 | L106: 1 | M106: 3
A107: 15 | B107: Prepara√ß√£o dos egressos para atuar em um mundo cada vez mais globalizado | C107: 0 | D107: 0 | E107: 0.3333 | F107: 1 | G107: 0.3333 | H107: 1 | I107: 0 | J107: 0 | K107: 0.3333 | L107: 1 | M107: 3
A108: 16 | B108: Aumento das oportunidades de emprego para os egressos da universidade | C108: 0 | D108: 0 | E108: 0.3333 | F108: 1 | G108: 0.3333 | H108: 1 | I108: 0 | J108: 0 | K108: 0.3333 | L108: 1 | M108: 3
A109: 17 | B109: Melhoria da igualdade de oportunidades para grupos marginalizados na sociedade | C109: 0 | D109: 0 | E109: 0.3333 | F109: 1 | G109: 0.3333 | H109: 1 | I109: 0 | J109: 0 | K109: 0.3333 | L109: 1 | M109: 3
A110: 18 | B110: Desenvolvimento da profici√™ncia em l√≠nguas adicionais por parte do corpo docente | C110: 0 | D110: 0 | E110: 0.3333 | F110: 1 | G110: 0.3333 | H110: 1 | I110: 0 | J110: 0 | K110: 0.3333 | L110: 1 | M110: 3
A111: 19 | B111: Desenvolvimento de conhecimentos e compreens√£o internacional por parte do corpo docente | C111: 0 | D111: 0 | E111: 0.3333 | F111: 1 | G111: 0.3333 | H111: 1 | I111: 0 | J111: 0 | K111: 0.3333 | L111: 1 | M111: 3
A113: Q60 - Com base em sua experi√™ncia no ensino superior latino-americano, em que medida os resultados a seguir deveriam ser uma prioridade para a internacionaliza√ß√£o em n√≠vel institucional na Am√©rica Latina? 1 - N√£o deveria ser uma prioridade 2 - Baixa 3 - M√©dia 4 - Alta N - N√£o tenho certeza
A114: # | B114: Question | C114: 1 | E114: 2 | G114: 3 | I114: 4 | K114: N | M114: Total
A115: 1 | B115: Colabora√ß√£o internacional em pesquisa | C115: 0 | D115: 0 | E115: 0 | F115: 0 | G115: 0 | H115: 0 | I115: 1 | J115: 3 | K115: 0 | L115: 0 | M115: 3
A116: 2 | B116: Melhores posi√ß√µes da universidade em rankings globais | C116: 0.3333 | D116: 1 | E116: 0 | F116: 0 | G116: 0.3333 | H116: 1 | I116: 0.3333 | J116: 1 | K116: 0 | L116: 0 | M116: 3
A117: 3 | B117: Estabelecimento e expans√£o das parcerias educacionais internacionais | C117: 0 | D117: 0 | E117: 0 | F117: 0 | G117: 0.6667 | H117: 2 | I117: 0.3333 | J117: 1 | K117: 0 | L117: 0 | M117: 3
A118: 4 | B118: Atra√ß√£o de alunos internacionais | C118: 0 | D118: 0 | E118: 0 | F118: 0 | G118: 0.3333 | H118: 1 | I118: 0.6667 | J118: 2 | K118: 0 | L118: 0 | M118: 3
A119: 5 | B119: Programas de mobilidade internacional | C119: 0 | D119: 0 | E119: 0 | F119: 0 | G119: 0.3333 | H119: 1 | I119: 0.6667 | J119: 2 | K119: 0 | L119: 0 | M119: 3
A120: 6 | B120: Capta√ß√£o de corpo docente internacional | C120: 0 | D120: 0 | E120: 0 | F120: 0 | G120: 0.6667 | H120: 2 | I120: 0.3333 | J120: 1 | K120: 0 | L120: 0 | M120: 3
A121: 7 | B121: Internacionaliza√ß√£o do curr√≠culo para todos os estudantes | C121: 0 | D121: 0 | E121: 0 | F121: 0 | G121: 0.3333 | H121: 1 | I121: 0.6667 | J121: 2 | K121: 0 | L121: 0 | M121: 3
A122: 8 | B122: Internacionaliza√ß√£o do campus | C122: 0 | D122: 0 | E122: 0 | F122: 0 | G122: 0.3333 | H122: 1 | I122: 0.6667 | J122: 2 | K122: 0 | L122: 0 | M122: 3
A123: 9 | B123: Internacionaliza√ß√£o dos servi√ßos ao estudante | C123: 0 | D123: 0 | E123: 0 | F123: 0 | G123: 0.3333 | H123: 1 | I123: 0.6667 | J123: 2 | K123: 0 | L123: 0 | M123: 3
A124: 10 | B124: Aumento de receita para a institui√ß√£o | C124: 0 | D124: 0 | E124: 0 | F124: 0 | G124: 0.6667 | H124: 2 | I124: 0.3333 | J124: 1 | K124: 0 | L124: 0 | M124: 3
A125: 11 | B125: Melhoria da qualidade do ensino e aprendizagem | C125: 0 | D125: 0 | E125: 0 | F125: 0 | G125: 0 | H125: 0 | I125: 1 | J125: 3 | K125: 0 | L125: 0 | M125: 3
A126: 12 | B126: Democratiza√ß√£o do conhecimento | C126: 0 | D126: 0 | E126: 0 | F126: 0 | G126: 0.3333 | H126: 1 | I126: 0.6667 | J126: 2 | K126: 0 | L126: 0 | M126: 3
A127: 13 | B127: Tratamento de quest√µes de iniquidade e exclus√£o no ensino superior | C127: 0 | D127: 0 | E127: 0 | F127: 0 | G127: 0.3333 | H127: 1 | I127: 0.6667 | J127: 2 | K127: 0 | L127: 0 | M127: 3
A128: 14 | B128: Tratamento de quest√µes de iniquidade e exclus√£o na sociedade | C128: 0 | D128: 0 | E128: 0 | F128: 0 | G128: 0 | H128: 0 | I128: 1 | J128: 3 | K128: 0 | L128: 0 | M128: 3
A129: 15 | B129: Prepara√ß√£o dos egressos para atuar em um mundo cada vez mais globalizado | C129: 0 | D129: 0 | E129: 0 | F129: 0 | G129: 0 | H129: 0 | I129: 1 | J129: 3 | K129: 0 | L129: 0 | M129: 3
A130: 16 | B130: Aumento das oportunidades de emprego para os egressos da universidade | C130: 0 | D130: 0 | E130: 0 | F130: 0 | G130: 0 | H130: 0 | I130: 1 | J130: 3 | K130: 0 | L130: 0 | M130: 3
A131: 17 | B131: Melhoria da igualdade de oportunidades para grupos marginalizados na sociedade | C131: 0 | D131: 0 | E131: 0 | F131: 0 | G131: 0 | H131: 0 | I131: 1 | J131: 3 | K131: 0 | L131: 0 | M131: 3
A132: 18 | B132: Desenvolvimento da profici√™ncia em l√≠nguas adicionais por parte do corpo docente | C132: 0 | D132: 0 | E132: 0 | F132: 0 | G132: 0 | H132: 0 | I132: 1 | J132: 3 | K132: 0 | L132: 0 | M132: 3
A133: 19 | B133: Desenvolvimento de conhecimentos e compreens√£o internacional por parte do corpo docente | C133: 0 | D133: 0 | E133: 0 | F133: 0 | G133: 0.3333 | H133: 1 | I133: 0.6667 | J133: 2 | K133: 0 | L133: 0 | M133: 3
A135: Q65 - Com base em sua experi√™ncia no ensino superior latino-americano, h√° outros resultados que voc√™ considere importantes no contexto latino-americano hoje em dia?
A136: Com base em sua experi√™ncia no ensino superior latino-americano, h√° outros resultados que voc√™ considere importantes no contexto latino-americano hoje em dia?
A137: N√£o consigo pensar em outros
A139: Q61 - Com base em sua experi√™ncia e compreens√£o acerca do ensino superior latino-americano, em que medida os itens e afirma√ß√µes a seguir configuram-se como prioridades atuais de internacionaliza√ß√£o por parte do corpo docente? 1 - Nenhuma 2 - Baixa 3 - M√©dia 4 - Alta N - N√£o tenho certeza
A140: # | B140: Question | C140: 1 | E140: 2 | G140: 3 | I140: 4 | K140: N | M140: Total
A141: 1 | B141: Estabelecimento e fomento √†s suas pr√≥prias parcerias internacionais de pesquisa | C141: 0 | D141: 0 | E141: 0.3333 | F141: 1 | G141: 0.3333 | H141: 1 | I141: 0 | J141: 0 | K141: 0.3333 | L141: 1 | M141: 3
A142: 2 | B142: Organiza√ß√£o e / ou ensino atrav√©s de projetos de Aprendizagem Colaborativa Online Internacional | C142: 0 | D142: 0 | E142: 0.6667 | F142: 2 | G142: 0 | H142: 0 | I142: 0 | J142: 0 | K142: 0.3333 | L142: 1 | M142: 3
A143: 3 | B143: Organiza√ß√£o de projetos de Mobilidade Virtual | C143: 0 | D143: 0 | E143: 0.6667 | F143: 2 | G143: 0 | H143: 0 | I143: 0 | J143: 0 | K143: 0.3333 | L143: 1 | M143: 3
A144: 4 | B144: Conex√£o com grupos da comunidade local por meio de projetos interculturais | C144: 0 | D144: 0 | E144: 0.6667 | F144: 2 | G144: 0 | H144: 0 | I144: 0 | J144: 0 | K144: 0.3333 | L144: 1 | M144: 3
A145: 5 | B145: Organiza√ß√£o de programas de mobilidade para seus alunos | C145: 0 | D145: 0 | E145: 0.6667 | F145: 2 | G145: 0 | H145: 0 | I145: 0 | J145: 0 | K145: 0.3333 | L145: 1 | M145: 3
A146: 6 | B146: Internacionaliza√ß√£o dos seus conte√∫dos de ensino | C146: 0 | D146: 0 | E146: 0.6667 | F146: 2 | G146: 0 | H146: 0 | I146: 0 | J146: 0 | K146: 0.3333 | L146: 1 | M146: 3
A147: 7 | B147: Desenvolvimento e aplica√ß√£o de recursos pedag√≥gicos interculturais | C147: 0 | D147: 0 | E147: 0.6667 | F147: 2 | G147: 0 | H147: 0 | I147: 0 | J147: 0 | K147: 0.3333 | L147: 1 | M147: 3
A148: 8 | B148: Desenvolvimento e aplica√ß√£o de recursos pedag√≥gicos inclusivos | C148: 0 | D148: 0 | E148: 0.6667 | F148: 2 | G148: 0 | H148: 0 | I148: 0 | J148: 0 | K148: 0.3333 | L148: 1 | M148: 3
A149: 9 | B149: Prepara√ß√£o de seus egressos para um ambiente de trabalho cada vez mais globalizado | C149: 0 | D149: 0 | E149: 0.6667 | F149: 2 | G149: 0 | H149: 0 | I149: 0 | J149: 0 | K149: 0.3333 | L149: 1 | M149: 3
A150: 10 | B150: Desenvolvimento das compet√™ncias t√©cnicas internacionais por parte dos alunos | C150: 0 | D150: 0 | E150: 0.6667 | F150: 2 | G150: 0 | H150: 0 | I150: 0 | J150: 0 | K150: 0.3333 | L150: 1 | M150: 3
A151: 11 | B151: Desenvolvimento das habilidades de compreender e interagir com outras culturas (soft skills) por parte dos alunos | C151: 0 | D151: 0 | E151: 0.6667 | F151: 2 | G151: 0 | H151: 0 | I151: 0 | J151: 0 | K151: 0.3333 | L151: 1 | M151: 3
A152: 12 | B152: Desenvolvimento do conhecimento te√≥rico acerca da interculturalidade por parte dos alunos | C152: 0 | D152: 0 | E152: 0.6667 | F152: 2 | G152: 0 | H152: 0 | I152: 0 | J152: 0 | K152: 0.3333 | L152: 1 | M152: 3
A153: 13 | B153: Expans√£o do conhecimento internacional dos membros do corpo docente em disciplinas e / ou √°reas profissionais relacionados | C153: 0 | D153: 0 | E153: 0.6667 | F153: 2 | G153: 0 | H153: 0 | I153: 0 | J153: 0 | K153: 0.3333 | L153: 1 | M153: 3
A154: 14 | B154: Descoloniza√ß√£o do curr√≠culo por meio, por exemplo, da inclus√£o de conhecimentos / perspectivas locais em seu ensino | C154: 0 | D154: 0 | E154: 0.6667 | F154: 2 | G154: 0 | H154: 0 | I154: 0 | J154: 0 | K154: 0.3333 | L154: 1 | M154: 3
A155: 15 | B155: Alcance dos Objetivos de Desenvolvimento Sustent√°vel da ONU | C155: 0 | D155: 0 | E155: 0.3333 | F155: 1 | G155: 0.3333 | H155: 1 | I155: 0 | J155: 0 | K155: 0.3333 | L155: 1 | M155: 3
A156: 16 | B156: Desenvolvimento de valores √©ticos e cosmopolitas por parte dos alunos | C156: 0 | D156: 0 | E156: 0.3333 | F156: 1 | G156: 0.3333 | H156: 1 | I156: 0 | J156: 0 | K156: 0.3333 | L156: 1 | M156: 3
A157: 17 | B157: Desenvolvimento da compreens√£o dos alunos sobre suas responsabilidades sociais globais | C157: 0 | D157: 0 | E157: 0.6667 | F157: 2 | G157: 0 | H157: 0 | I157: 0 | J157: 0 | K157: 0.3333 | L157: 1 | M157: 3
A158: 18 | B158: Desenvolvimento da compreens√£o internacional por parte dos alunos | C158: 0 | D158: 0 | E158: 0.3333 | F158: 1 | G158: 0.3333 | H158: 1 | I158: 0 | J158: 0 | K158: 0.3333 | L158: 1 | M158: 3
A159: 19 | B159: Desenvolvimento das compet√™ncias interculturais dos alunos | C159: 0 | D159: 0 | E159: 0.6667 | F159: 2 | G159: 0 | H159: 0 | I159: 0 | J159: 0 | K159: 0.3333 | L159: 1 | M159: 3
A161: Q62 - Com base em sua experi√™ncia e compreens√£o acerca do ensino superior latino-americano, em um cen√°rio ideal, em que medida os itens e afirma√ß√µes a seguir poderiam ser prioridades de internacionaliza√ß√£o por parte do corpo docente? 1 - Nenhuma 2 - Baixa 3 - M√©dia 4 - Alta N - N√£o tenho certeza
A162: # | B162: Question | C162: 1 | E162: 2 | G162: 3 | I162: 4 | K162: N | M162: Total
A163: 1 | B163: Estabelecimento e fomento √†s suas pr√≥prias parcerias internacionais de pesquisa | C163: 0 | D163: 0 | E163: 0 | F163: 0 | G163: 0 | H163: 0 | I163: 1 | J163: 3 | K163: 0 | L163: 0 | M163: 3
A164: 2 | B164: Organiza√ß√£o e / ou ensino atrav√©s de projetos de Aprendizagem Colaborativa Online Internacional | C164: 0 | D164: 0 | E164: 0 | F164: 0 | G164: 0.3333 | H164: 1 | I164: 0.6667 | J164: 2 | K164: 0 | L164: 0 | M164: 3
A165: 3 | B165: Organiza√ß√£o de projetos de mobilidade virtual | C165: 0 | D165: 0 | E165: 0 | F165: 0 | G165: 0.3333 | H165: 1 | I165: 0.6667 | J165: 2 | K165: 0 | L165: 0 | M165: 3
A166: 4 | B166: Conex√£o com grupos da comunidade local atrav√©s de projetos interculturais | C166: 0 | D166: 0 | E166: 0 | F166: 0 | G166: 0.3333 | H166: 1 | I166: 0.6667 | J166: 2 | K166: 0 | L166: 0 | M166: 3
A167: 5 | B167: Organiza√ß√£o de programas de mobilidade para seus alunos | C167: 0 | D167: 0 | E167: 0 | F167: 0 | G167: 0 | H167: 0 | I167: 1 | J167: 3 | K167: 0 | L167: 0 | M167: 3
A168: 6 | B168: Internacionaliza√ß√£o dos seus conte√∫dos de ensino | C168: 0 | D168: 0 | E168: 0 | F168: 0 | G168: 0 | H168: 0 | I168: 1 | J168: 3 | K168: 0 | L168: 0 | M168: 3
A169: 7 | B169: Desenvolvimento e aplica√ß√£o de recursos pedag√≥gicos interculturais | C169: 0 | D169: 0 | E169: 0 | F169: 0 | G169: 0.3333 | H169: 1 | I169: 0.6667 | J169: 2 | K169: 0 | L169: 0 | M169: 3
A170: 8 | B170: Desenvolvimento e aplica√ß√£o de recursos pedag√≥gicos inclusivos | C170: 0 | D170: 0 | E170: 0 | F170: 0 | G170: 0 | H170: 0 | I170: 1 | J170: 3 | K170: 0 | L170: 0 | M170: 3
A171: 9 | B171: Prepara√ß√£o de seus egressos para um ambiente de trabalho cada vez mais globalizado | C171: 0 | D171: 0 | E171: 0 | F171: 0 | G171: 0 | H171: 0 | I171: 1 | J171: 3 | K171: 0 | L171: 0 | M171: 3
A172: 10 | B172: Desenvolvimento das compet√™ncias t√©cnicas internacionais dos alunos | C172: 0 | D172: 0 | E172: 0 | F172: 0 | G172: 0 | H172: 0 | I172: 1 | J172: 3 | K172: 0 | L172: 0 | M172: 3
A173: 11 | B173: Desenvolvimento das habilidades de compreender e interagir com outras culturas (soft skills) por parte dos alunos | C173: 0 | D173: 0 | E173: 0 | F173: 0 | G173: 0.3333 | H173: 1 | I173: 0.6667 | J173: 2 | K173: 0 | L173: 0 | M173: 3
A174: 12 | B174: Desenvolvimento do conhecimento te√≥rico acerca da interculturalidade por parte dos alunos | C174: 0 | D174: 0 | E174: 0 | F174: 0 | G174: 0 | H174: 0 | I174: 1 | J174: 3 | K174: 0 | L174: 0 | M174: 3
A175: 13 | B175: Expans√£o do conhecimento internacional dos membros do corpo docente em disciplinas e / ou campos profissionais relacionados | C175: 0 | D175: 0 | E175: 0 | F175: 0 | G175: 0.3333 | H175: 1 | I175: 0.6667 | J175: 2 | K175: 0 | L175: 0 | M175: 3
A176: 14 | B176: Descolonizar o curr√≠culo por meio, por exemplo, da inclus√£o de conhecimentos / perspectivas locais em seu ensino | C176: 0 | D176: 0 | E176: 0 | F176: 0 | G176: 0.3333 | H176: 1 | I176: 0.6667 | J176: 2 | K176: 0 | L176: 0 | M176: 3
A177: 15 | B177: Alcance dos Objetivos de Desenvolvimento Sustent√°vel da ONU | C177: 0 | D177: 0 | E177: 0 | F177: 0 | G177: 0.3333 | H177: 1 | I177: 0.6667 | J177: 2 | K177: 0 | L177: 0 | M177: 3
A178: 16 | B178: Desenvolvimento de valores √©tico e cosmopolitas dos alunos | C178: 0 | D178: 0 | E178: 0 | F178: 0 | G178: 0 | H178: 0 | I178: 1 | J178: 3 | K178: 0 | L178: 0 | M178: 3
A179: 17 | B179: Desenvolvimento da compreens√£o dos estudantes sobre suas responsabilidades sociais globais | C179: 0 | D179: 0 | E179: 0 | F179: 0 | G179: 0 | H179: 0 | I179: 1 | J179: 3 | K179: 0 | L179: 0 | M179: 3
A180: 18 | B180: Desenvolvimento da compreens√£o internacional por parte dos alunos | C180: 0 | D180: 0 | E180: 0 | F180: 0 | G180: 0 | H180: 0 | I180: 1 | J180: 3 | K180: 0 | L180: 0 | M180: 3
A181: 19 | B181: Desenvolvimento das compet√™ncias interculturais dos alunos | C181: 0 | D181: 0 | E181: 0 | F181: 0 | G181: 0 | H181: 0 | I181: 1 | J181: 3 | K181: 0 | L181: 0 | M181: 3
A183: Q63 - Com base em sua experi√™ncia no ensino superior latino-americano, quais s√£o os maiores obst√°culos a serem superados pelo corpo docente em seu compromisso para com a internacionaliza√ß√£o do curr√≠culo na Am√©rica Latina hoje em dia?
A184: Com base em sua experi√™ncia no ensino superior latino-americano, quais s√£o os maiores obst√°culos a serem superados pelo corpo docente em seu compromisso para com a internacionaliza√ß√£o do curr√≠culo na Am√©rica Latina hoje em dia?
A185: Dominio de lingua estrangeira; carga hor√°ria docente insuficiente para incluir a√ß√µes de internacionaliza√ß√£o; remunera√ß√£o aquem do necess√°rio.
A186: Excesso de trabalho que limita condi√ß√µes de tempo para participar no processo de internacionaliza√ß√£o,
A188: Q67 - Com base em sua experi√™ncia no ensino superior latino-americano, em que medida as pessoas / grupos a seguir est√£o atualmente envolvidos na internacionaliza√ß√£o do curr√≠culo? 1 - Nenhum envolvimento 2 - Baixo envolvimento 3 - Algum envolvimento 4 - Alto envolvimento N - N√£o tenho certeza
A189: # | B189: Question | C189: 1 | E189: 2 | G189: 3 | I189: 4 | K189: N | M189: Total
A190: 1 | B190: Todos os membros do corpo docente | C190: 0 | D190: 0 | E190: 0.6667 | F190: 2 | G190: 0 | H190: 0 | I190: 0 | J190: 0 | K190: 0.3333 | L190: 1 | M190: 3
A191: 2 | B191: Alguns membros do corpo docente, em particular | C191: 0 | D191: 0 | E191: 0 | F191: 0 | G191: 0.6667 | H191: 2 | I191: 0 | J191: 0 | K191: 0.3333 | L191: 1 | M191: 3
A192: 3 | B192: Membros do corpo docente recrutados fora do pa√≠s | C192: 0 | D192: 0 | E192: 0 | F192: 0 | G192: 0.6667 | H192: 2 | I192: 0 | J192: 0 | K192: 0.3333 | L192: 1 | M192: 3
A193: 4 | B193: Equipe do Escrit√≥rio Internacional | C193: 0 | D193: 0 | E193: 0 | F193: 0 | G193: 0.6667 | H193: 2 | I193: 0 | J193: 0 | K193: 0.3333 | L193: 1 | M193: 3
A194: 5 | B194: Professores de l√≠nguas adicionais (por exemplo, ingl√™s, espanhol) | C194: 0 | D194: 0 | E194: 0 | F194: 0 | G194: 0.6667 | H194: 2 | I194: 0 | J194: 0 | K194: 0.3333 | L194: 1 | M194: 3
A195: 6 | B195: Lideran√ßas acad√™micas / de disciplinas espec√≠ficas | C195: 0 | D195: 0 | E195: 0.3333 | F195: 1 | G195: 0.3333 | H195: 1 | I195: 0 | J195: 0 | K195: 0.3333 | L195: 1 | M195: 3
A196: 7 | B196: Alunos de gradua√ß√£o | C196: 0 | D196: 0 | E196: 0.3333 | F196: 1 | G196: 0.3333 | H196: 1 | I196: 0 | J196: 0 | K196: 0.3333 | L196: 1 | M196: 3
A197: 8 | B197: Alunos de p√≥s-gradua√ß√£o | C197: 0 | D197: 0 | E197: 0.3333 | F197: 1 | G197: 0.3333 | H197: 1 | I197: 0 | J197: 0 | K197: 0.3333 | L197: 1 | M197: 3
A198: 9 | B198: Equipe de atendimento ao aluno | C198: 0.3333 | D198: 1 | E198: 0.3333 | F198: 1 | G198: 0 | H198: 0 | I198: 0 | J198: 0 | K198: 0.3333 | L198: 1 | M198: 3
A199: 10 | B199: Equipe administrativa | C199: 0 | D199: 0 | E199: 0.6667 | F199: 2 | G199: 0 | H199: 0 | I199: 0 | J199: 0 | K199: 0.3333 | L199: 1 | M199: 3
A200: 11 | B200: Membros da comunidade local | C200: 0.3333 | D200: 1 | E200: 0.3333 | F200: 1 | G200: 0 | H200: 0 | I200: 0 | J200: 0 | K200: 0.3333 | L200: 1 | M200: 3
A201: 12 | B201: Associa√ß√µes profissionais | C201: 0 | D201: 0 | E201: 0.3333 | F201: 1 | G201: 0.3333 | H201: 1 | I201: 0 | J201: 0 | K201: 0.3333 | L201: 1 | M201: 3
A202: 13 | B202: Empregadores | C202: 0 | D202: 0 | E202: 0.6667 | F202: 2 | G202: 0 | H202: 0 | I202: 0 | J202: 0 | K202: 0.3333 | L202: 1 | M202: 3
A204: Q68 - Em que medida as pessoas / grupos a seguir deveriam estar envolvidos na internacionaliza√ß√£o do curr√≠culo?
A205: 1 - N√£o deveriam ter envolvimento
A207: 2 - Deveriam ter um baixo envolvimento
A209: 3 - Deveriam ter algum envolvimento
A211: 4 - Deveriam ter um alto envolvimento
A213: N - N√£o tenho certeza
A214: # | B214: Question | C214: 1 | E214: 2 | G214: 3 | I214: 4 | K214: N | M214: Total
A215: 1 | B215: Todos os membros do corpo docente | C215: 0 | D215: 0 | E215: 0 | F215: 0 | G215: 0.3333 | H215: 1 | I215: 0.6667 | J215: 2 | K215: 0 | L215: 0 | M215: 3
A216: 2 | B216: Alguns membros do corpo docente, em particular | C216: 0 | D216: 0 | E216: 0 | F216: 0 | G216: 0 | H216: 0 | I216: 1 | J216: 3 | K216: 0 | L216: 0 | M216: 3
A217: 3 | B217: Membros do corpo docente recrutados fora do pa√≠s | C217: 0 | D217: 0 | E217: 0 | F217: 0 | G217: 0 | H217: 0 | I217: 1 | J217: 3 | K217: 0 | L217: 0 | M217: 3
A218: 4 | B218: Equipe do Escrit√≥rio Internacional | C218: 0 | D218: 0 | E218: 0 | F218: 0 | G218: 0 | H218: 0 | I218: 1 | J218: 3 | K218: 0 | L218: 0 | M218: 3
A219: 5 | B219: Professores de l√≠nguas adicionais (por exemplo, ingl√™s, espanhol) | C219: 0 | D219: 0 | E219: 0 | F219: 0 | G219: 0.3333 | H219: 1 | I219: 0.6667 | J219: 2 | K219: 0 | L219: 0 | M219: 3
A220: 6 | B220: Lideran√ßas acad√™micas / de disciplinas espec√≠ficas | C220: 0 | D220: 0 | E220: 0 | F220: 0 | G220: 0.3333 | H220: 1 | I220: 0.6667 | J220: 2 | K220: 0 | L220: 0 | M220: 3
A221: 7 | B221: Alunos de Gradua√ß√£o | C221: 0 | D221: 0 | E221: 0 | F221: 0 | G221: 0.3333 | H221: 1 | I221: 0.6667 | J221: 2 | K221: 0 | L221: 0 | M221: 3
... 157 more rows

Sheet SpanishR2
A1: Tradu√ß√£o
A2: Last Modified: 2022-06-23 00:28:47 MDT
A5: Q5 - Comprendo el prop√≥sito de mi participaci√≥n en este proyecto y doy mi consentimiento para participar, de manera voluntaria, en ese estudio e-Delphi.
A6: # | B6: Field | C6: Minimum | D6: Maximum | E6: Mean | F6: Std Deviation | G6: Variance | H6: Count
A7: 1 | B7: Comprendo el prop√≥sito de mi participaci√≥n en este proyecto y doy mi consentimiento para participar, de manera voluntaria, en ese estudio e-Delphi. | C7: 1 | D7: 1 | E7: 1 | F7: 0 | G7: 0 | H7: 10
A9: # | B9: Answer | C9: % | D9: Count
A10: 1 | B10: S√≠ | C10: 1 | D10: 10
A11: 2 | B11: No | C11: 0 | D11: 0
B12: Total | C12: 1 | D12: 10
A14: Q9 - Con base en su experiencia en la educaci√≥n superior latinoamericana, califique el grado en el que usted cree que los √≠tems siguientes informan actualmente los enfoques de internacionalizaci√≥n del curr√≠culo en las universidades latinoamericanas. 1 - Nada 2 - No mucho 3 - Algo 4 - Mucho I - Inseguro
A15: # | B15: Question | C15: 1 | E15: 2 | G15: 3 | I15: 4 | K15: I | M15: Total
A16: 1 | B16: Mejorar la posici√≥n de la universidad en un o m√°s rankings de clasificaci√≥n global | C16: 0 | D16: 0 | E16: 0.2857 | F16: 2 | G16: 0.4286 | H16: 3 | I16: 0.2857 | J16: 2 | K16: 0 | L16: 0 | M16: 7
A17: 2 | B17: Mejorar la calidad de la ense√±anza y el aprendizaje en la universidad | C17: 0 | D17: 0 | E17: 0.1429 | F17: 1 | G17: 0.5714 | H17: 4 | I17: 0.2857 | J17: 2 | K17: 0 | L17: 0 | M17: 7
A18: 3 | B18: Mejorar de la empleabilidad de los estudiantes | C18: 0 | D18: 0 | E18: 0.2857 | F18: 2 | G18: 0.5714 | H18: 4 | I18: 0.1429 | J18: 1 | K18: 0 | L18: 0 | M18: 7
A19: 4 | B19: La internacionalizaci√≥n del plan de estudios es una responsabilidad primordial de la Oficina Internacional | C19: 0.1429 | D19: 1 | E19: 0.4286 | F19: 3 | G19: 0.2857 | H19: 2 | I19: 0.1429 | J19: 1 | K19: 0 | L19: 0 | M19: 7
A20: 5 | B20: Mejorar la solidaridad y la igualdad en la sociedad | C20: 0.1429 | D20: 1 | E20: 0.1429 | F20: 1 | G20: 0.5714 | H20: 4 | I20: 0.1429 | J20: 1 | K20: 0 | L20: 0 | M20: 7
A21: 6 | B21: Buscar la justicia cognitiva | C21: 0.1429 | D21: 1 | E21: 0.4286 | F21: 3 | G21: 0.4286 | H21: 3 | I21: 0 | J21: 0 | K21: 0 | L21: 0 | M21: 7
A22: 7 | B22: Descolonizaci√≥n del curr√≠culo | C22: 0.2857 | D22: 2 | E22: 0.2857 | F22: 2 | G22: 0.2857 | H22: 2 | I22: 0 | J22: 0 | K22: 0.1429 | L22: 1 | M22: 7
A23: 8 | B23: Incluir perspectivas diversificadas en el curr√≠culo | C23: 0 | D23: 0 | E23: 0.7143 | F23: 5 | G23: 0.1429 | H23: 1 | I23: 0.1429 | J23: 1 | K23: 0 | L23: 0 | M23: 7
A24: 9 | B24: Adoptar enfoques de ense√±anza y aprendizaje inclusivos | C24: 0.1429 | D24: 1 | E24: 0.4286 | F24: 3 | G24: 0.2857 | H24: 2 | I24: 0.1429 | J24: 1 | K24: 0 | L24: 0 | M24: 7
A25: 10 | B25: Promover estudios en el extranjero y acuerdos de intercambio internacional. | C25: 0 | D25: 0 | E25: 0.1429 | F25: 1 | G25: 0.7143 | H25: 5 | I25: 0.1429 | J25: 1 | K25: 0 | L25: 0 | M25: 7
A26: 11 | B26: Promover el dise√±o curricular como un proceso evolutivo continuo | C26: 0.125 | D26: 1 | E26: 0.375 | F26: 3 | G26: 0.25 | H26: 2 | I26: 0.25 | J26: 2 | K26: 0 | L26: 0 | M26: 8
A27: 12 | B27: El personal acad√©mico/facultad tiene la responsabilidad principal de la internacionalizaci√≥n del curr√≠culo | C27: 0.1429 | D27: 1 | E27: 0.2857 | F27: 2 | G27: 0.4286 | H27: 3 | I27: 0.1429 | J27: 1 | K27: 0 | L27: 0 | M27: 7
A28: 13 | B28: Todos los estudiantes necesitan desarrollar perspectivas y competencias interculturales | C28: 0 | D28: 0 | E28: 0.5714 | F28: 4 | G28: 0.1429 | H28: 1 | I28: 0.2857 | J28: 2 | K28: 0 | L28: 0 | M28: 7
A29: 14 | B29: Oportunidades de aprendizaje colaborativo en l√≠nea (COIL) o movilidad virtual | C29: 0.1429 | D29: 1 | E29: 0.4286 | F29: 3 | G29: 0.2857 | H29: 2 | I29: 0.1429 | J29: 1 | K29: 0 | L29: 0 | M29: 7
A30: 15 | B30: Varias personas pueden brindar un apoyo √∫til al personal acad√©mico para internacionalizar su curr√≠culo (por ejemplo, gestores de planes de estudios, expertos en ense√±anza y aprendizaje, expertos en sistemas de gesti√≥n del aprendizaje y en l√≠nea, personal de oficinas internacionales) | C30: 0.2857 | D30: 2 | E30: 0.2857 | F30: 2 | G30: 0.2857 | H30: 2 | I30: 0.1429 | J30: 1 | K30: 0 | L30: 0 | M30: 7
A31: 16 | B31: Los enfoques para el dise√±o curricular deben ser sistem√°ticos e impulsados por procesos | C31: 0.1429 | D31: 1 | E31: 0.5714 | F31: 4 | G31: 0.1429 | H31: 1 | I31: 0.1429 | J31: 1 | K31: 0 | L31: 0 | M31: 7
A32: 17 | B32: Ejercicios de evaluaci√≥n (como auditor√≠as externas o evaluaciones institucionales internas) que promuevan la internacionalizaci√≥n como criterio de valor acad√©mico | C32: 0.1429 | D32: 1 | E32: 0.5714 | F32: 4 | G32: 0.2857 | H32: 2 | I32: 0 | J32: 0 | K32: 0 | L32: 0 | M32: 7
A34: Q64 - ¬øOtro?
A35: ¬øOtro?
A36: Las recomendaciones y lineamientos de las agencias acreditadas nacionales. Por ejemplo, en los programas de posgrado en M√©xico la definici√≥n de los planes de estudio en las IES p√∫blicas est√° muy vinculada a los lineamientos de CONACYT
A38: Q56 - Con base en su experiencia en la educaci√≥n superior latinoamericana, califique el grado en que los √≠tems siguientes deber√≠an informar los enfoques de internacionalizaci√≥n del curr√≠culo en las universidades latinoamericanas. 1 - Nada 2 - No mucho 3 - Algo 4 - Mucho I - Inseguro
A39: # | B39: Question | C39: 1 | E39: 2 | G39: 3 | I39: 4 | K39: I | M39: Total
A40: 1 | B40: Mejorar la posici√≥n de la universidad en un o m√°s rankings de clasificaci√≥n global | C40: 0.1429 | D40: 1 | E40: 0.5714 | F40: 4 | G40: 0.2857 | H40: 2 | I40: 0 | J40: 0 | K40: 0 | L40: 0 | M40: 7
A41: 2 | B41: Mejorar la calidad de la ense√±anza y el aprendizaje en la universidad. | C41: 0 | D41: 0 | E41: 0 | F41: 0 | G41: 0.1429 | H41: 1 | I41: 0.8571 | J41: 6 | K41: 0 | L41: 0 | M41: 7
A42: 3 | B42: Mejorar de la empleabilidad de los estudiantes. | C42: 0 | D42: 0 | E42: 0 | F42: 0 | G42: 0.1429 | H42: 1 | I42: 0.8571 | J42: 6 | K42: 0 | L42: 0 | M42: 7
A43: 4 | B43: La internacionalizaci√≥n del plan de estudios es una responsabilidad primordial de la Oficina Internacional. | C43: 0.4286 | D43: 3 | E43: 0.1429 | F43: 1 | G43: 0.4286 | H43: 3 | I43: 0 | J43: 0 | K43: 0 | L43: 0 | M43: 7
A44: 5 | B44: Mejorar la solidaridad y la igualdad en la sociedad | C44: 0 | D44: 0 | E44: 0 | F44: 0 | G44: 0.2857 | H44: 2 | I44: 0.7143 | J44: 5 | K44: 0 | L44: 0 | M44: 7
A45: 6 | B45: Buscar la justicia cognitiva | C45: 0 | D45: 0 | E45: 0 | F45: 0 | G45: 0.4286 | H45: 3 | I45: 0.5714 | J45: 4 | K45: 0 | L45: 0 | M45: 7
A46: 7 | B46: Descolonizaci√≥n del curr√≠culo | C46: 0 | D46: 0 | E46: 0 | F46: 0 | G46: 0.7143 | H46: 5 | I46: 0.2857 | J46: 2 | K46: 0 | L46: 0 | M46: 7
A47: 8 | B47: Incluir perspectivas diversificadas en el curr√≠culo | C47: 0 | D47: 0 | E47: 0 | F47: 0 | G47: 0.1429 | H47: 1 | I47: 0.8571 | J47: 6 | K47: 0 | L47: 0 | M47: 7
A48: 9 | B48: Adoptar enfoques de ense√±anza y aprendizaje inclusivos | C48: 0 | D48: 0 | E48: 0 | F48: 0 | G48: 0 | H48: 0 | I48: 1 | J48: 7 | K48: 0 | L48: 0 | M48: 7
A49: 10 | B49: Promover estudios en el extranjero y acuerdos de intercambio internacional. | C49: 0 | D49: 0 | E49: 0 | F49: 0 | G49: 0.5714 | H49: 4 | I49: 0.4286 | J49: 3 | K49: 0 | L49: 0 | M49: 7
A50: 11 | B50: Promover el dise√±o curricular como un proceso evolutivo continuo | C50: 0 | D50: 0 | E50: 0 | F50: 0 | G50: 0 | H50: 0 | I50: 1 | J50: 7 | K50: 0 | L50: 0 | M50: 7
A51: 12 | B51: El personal acad√©mico/facultad tiene la responsabilidad principal de la internacionalizaci√≥n del curr√≠culo | C51: 0 | D51: 0 | E51: 0 | F51: 0 | G51: 0.1429 | H51: 1 | I51: 0.8571 | J51: 6 | K51: 0 | L51: 0 | M51: 7
A52: 13 | B52: Todos los estudiantes necesitan desarrollar perspectivas y competencias interculturales | C52: 0 | D52: 0 | E52: 0 | F52: 0 | G52: 0 | H52: 0 | I52: 1 | J52: 7 | K52: 0 | L52: 0 | M52: 7
A53: 14 | B53: Oportunidades de aprendizaje colaborativo en l√≠nea (COIL) o movilidad virtual | C53: 0 | D53: 0 | E53: 0 | F53: 0 | G53: 0.4286 | H53: 3 | I53: 0.5714 | J53: 4 | K53: 0 | L53: 0 | M53: 7
A54: 15 | B54: Varias personas pueden brindar un apoyo √∫til al personal acad√©mico para internacionalizar su curr√≠culo (por ejemplo, gestores de planes de estudios, expertos en ense√±anza y aprendizaje, expertos en sistemas de gesti√≥n del aprendizaje y en l√≠nea, personal de oficinas internacionales) | C54: 0 | D54: 0 | E54: 0 | F54: 0 | G54: 0.2857 | H54: 2 | I54: 0.7143 | J54: 5 | K54: 0 | L54: 0 | M54: 7
A56: Q84 - Seg√∫n su experiencia en la educaci√≥n superior latinoamericana, ¬øexisten otros factores que considere importantes en el contexto latinoamericano actual?
A57: Seg√∫n su experiencia en la educaci√≥n superior latinoamericana, ¬øexisten otros factores que considere importantes en el contexto latinoamericano actual?
A58: La cada vez m√°s importante misi√≥n de la Universidad en el contexto local/regional. Es un actor protagonista del desarrollo socio-econ√≥mico y cultural de las regiones/ciudades donde se ubican los campus. En Am√©rica Latina a diferencia de otras regiones, la Universidad tiene una misi√≥n social muy fuerte, dado por un lado, la debilidad de las instituciones y el Estado y por otro lado la necesidad urgente de responder y contribuir a la resoluci√≥n de los problemas sociales y ambientales de los terriotorios. En este sentido, este debe ser considerado uno de los grandes motivos y factores que influyan en la internacionalizaci√≥n de un curriculo m√°s relevante tanto global como localmente. En el Marco de Betty Leask, deber√≠a haber un intersecci√≥n m√°s evidente de estos dos niveles.
A59: La certificaci√≥n profesional del personal de las oficinas de relaciones internacionales. La acreditaci√≥n de las ORI. Generaci√≥n de indicadores de impacto de internacionalizaci√≥n.
A61: Q57 - Con base en su experiencia en la educaci√≥n superior latinoamericana, ¬øen qu√© medida es la internacionalizaci√≥n de la educaci√≥n superior actualmente una prioridad para los siguientes grupos en Am√©rica Latina? 1 - Nada 2 - Bajo 3 - Medio 4 - Alto I - Inseguro
A62: # | B62: Question | C62: 1 | E62: 2 | G62: 3 | I62: 4 | K62: I | M62: Total
A63: 1 | B63: Gobierno (nacional) | C63: 0.1429 | D63: 1 | E63: 0.7143 | F63: 5 | G63: 0.1429 | H63: 1 | I63: 0 | J63: 0 | K63: 0 | L63: 0 | M63: 7
A64: 2 | B64: Gobierno (regional) | C64: 0.2857 | D64: 2 | E64: 0.5714 | F64: 4 | G64: 0.1429 | H64: 1 | I64: 0 | J64: 0 | K64: 0 | L64: 0 | M64: 7
A65: 3 | B65: Gobierno (local) | C65: 0.2857 | D65: 2 | E65: 0.7143 | F65: 5 | G65: 0 | H65: 0 | I65: 0 | J65: 0 | K65: 0 | L65: 0 | M65: 7
A66: 4 | B66: Liderazgo de instituciones de educaci√≥n superior | C66: 0 | D66: 0 | E66: 0.4286 | F66: 3 | G66: 0.4286 | H66: 3 | I66: 0.1429 | J66: 1 | K66: 0 | L66: 0 | M66: 7
A67: 5 | B67: Profesorado de educaci√≥n superior | C67: 0 | D67: 0 | E67: 0.8571 | F67: 6 | G67: 0.1429 | H67: 1 | I67: 0 | J67: 0 | K67: 0 | L67: 0 | M67: 7
A68: 6 | B68: Estudiantes | C68: 0.1429 | D68: 1 | E68: 0.2857 | F68: 2 | G68: 0.5714 | H68: 4 | I68: 0 | J68: 0 | K68: 0 | L68: 0 | M68: 7
A69: 7 | B69: Personal de apoyo | C69: 0.1429 | D69: 1 | E69: 0.4286 | F69: 3 | G69: 0.1429 | H69: 1 | I69: 0 | J69: 0 | K69: 0.2857 | L69: 2 | M69: 7
A70: 8 | B70: Personal administrativo | C70: 0.4286 | D70: 3 | E70: 0.2857 | F70: 2 | G70: 0.2857 | H70: 2 | I70: 0 | J70: 0 | K70: 0 | L70: 0 | M70: 7
A71: 9 | B71: Ciudadanos en la comunidad local | C71: 0.4286 | D71: 3 | E71: 0.4286 | F71: 3 | G71: 0 | H71: 0 | I71: 0 | J71: 0 | K71: 0.1429 | L71: 1 | M71: 7
A72: 10 | B72: Sector productivo | C72: 0 | D72: 0 | E72: 0.4286 | F72: 3 | G72: 0.4286 | H72: 3 | I72: 0.1429 | J72: 1 | K72: 0 | L72: 0 | M72: 7
A73: 11 | B73: Empleadores | C73: 0 | D73: 0 | E73: 0.4286 | F73: 3 | G73: 0.4286 | H73: 3 | I73: 0.1429 | J73: 1 | K73: 0 | L73: 0 | M73: 7
A75: Q58 - Con base en su experiencia en la educaci√≥n superior latinoamericana, ¬øhasta qu√© punto deber√≠a la internacionalizaci√≥n de la educaci√≥n superior ser una prioridad para los siguientes grupos en Am√©rica Latina? 1 - Nada 2 - Bajo 3 - Medio 4 - Alto I - Inseguro
A76: # | B76: Question | C76: 1 | E76: 2 | G76: 3 | I76: 4 | K76: I | M76: Total
A77: 1 | B77: Gobierno (nacional) | C77: 0 | D77: 0 | E77: 0 | F77: 0 | G77: 0.1429 | H77: 1 | I77: 0.8571 | J77: 6 | K77: 0 | L77: 0 | M77: 7
A78: 2 | B78: Gobierno (regional) | C78: 0 | D78: 0 | E78: 0 | F78: 0 | G78: 0.4286 | H78: 3 | I78: 0.5714 | J78: 4 | K78: 0 | L78: 0 | M78: 7
A79: 3 | B79: Gobierno (local) | C79: 0 | D79: 0 | E79: 0 | F79: 0 | G79: 0.2857 | H79: 2 | I79: 0.7143 | J79: 5 | K79: 0 | L79: 0 | M79: 7
A80: 4 | B80: Liderazgo de instituciones de educaci√≥n superior | C80: 0 | D80: 0 | E80: 0 | F80: 0 | G80: 0.1429 | H80: 1 | I80: 0.8571 | J80: 6 | K80: 0 | L80: 0 | M80: 7
A81: 5 | B81: Profesorado de educaci√≥n superior | C81: 0 | D81: 0 | E81: 0 | F81: 0 | G81: 0.4286 | H81: 3 | I81: 0.5714 | J81: 4 | K81: 0 | L81: 0 | M81: 7
A82: 6 | B82: Estudiantes | C82: 0 | D82: 0 | E82: 0 | F82: 0 | G82: 0.4286 | H82: 3 | I82: 0.5714 | J82: 4 | K82: 0 | L82: 0 | M82: 7
A83: 7 | B83: Personal de apoyo | C83: 0 | D83: 0 | E83: 0 | F83: 0 | G83: 0.6667 | H83: 4 | I83: 0.3333 | J83: 2 | K83: 0 | L83: 0 | M83: 6
A84: 8 | B84: Personal administrativo | C84: 0 | D84: 0 | E84: 0 | F84: 0 | G84: 0.7143 | H84: 5 | I84: 0.2857 | J84: 2 | K84: 0 | L84: 0 | M84: 7
A85: 9 | B85: Ciudadanos en la comunidad local | C85: 0 | D85: 0 | E85: 0.1429 | F85: 1 | G85: 0.5714 | H85: 4 | I85: 0.2857 | J85: 2 | K85: 0 | L85: 0 | M85: 7
A86: 10 | B86: Sector productivo | C86: 0 | D86: 0 | E86: 0 | F86: 0 | G86: 0.2857 | H86: 2 | I86: 0.7143 | J86: 5 | K86: 0 | L86: 0 | M86: 7
A87: 11 | B87: Empleadores | C87: 0 | D87: 0 | E87: 0 | F87: 0 | G87: 0.2857 | H87: 2 | I87: 0.7143 | J87: 5 | K87: 0 | L87: 0 | M87: 7
A89: Q59 - Con base en su experiencia en la educaci√≥n superior latinoamericana, ¬øen qu√© medida los siguientes resultados son actualmente una prioridad para la internacionalizaci√≥n a nivel institucional en Am√©rica Latina? 1 - Nada 2 - Bajo 3 - Medio 4 - Alto I - Inseguro
A90: # | B90: Question | C90: 1 | E90: 2 | G90: 3 | I90: 4 | K90: I | M90: Total
A91: 1 | B91: Colaboraci√≥n internacional en investigaci√≥n | C91: 0 | D91: 0 | E91: 0.1429 | F91: 1 | G91: 0.5714 | H91: 4 | I91: 0.2857 | J91: 2 | K91: 0 | L91: 0 | M91: 7
A92: 2 | B92: Mejor√≠a la reputaci√≥n global de la universidad | C92: 0 | D92: 0 | E92: 0.1429 | F92: 1 | G92: 0.5714 | H92: 4 | I92: 0.2857 | J92: 2 | K92: 0 | L92: 0 | M92: 7
A93: 3 | B93: Establecimiento y crecimiento de parcer√≠as educativas internacionales | C93: 0 | D93: 0 | E93: 0.1429 | F93: 1 | G93: 0.4286 | H93: 3 | I93: 0.4286 | J93: 3 | K93: 0 | L93: 0 | M93: 7
A94: 4 | B94: Reclutamiento de estudiantes | C94: 0 | D94: 0 | E94: 0.2857 | F94: 2 | G94: 0.7143 | H94: 5 | I94: 0 | J94: 0 | K94: 0 | L94: 0 | M94: 7
A95: 5 | B95: Programas de intercambio internacional | C95: 0 | D95: 0 | E95: 0 | F95: 0 | G95: 0.7143 | H95: 5 | I95: 0.2857 | J95: 2 | K95: 0 | L95: 0 | M95: 7
A96: 6 | B96: Reclutamiento internacional de profesores | C96: 0.1429 | D96: 1 | E96: 0.4286 | F96: 3 | G96: 0.4286 | H96: 3 | I96: 0 | J96: 0 | K96: 0 | L96: 0 | M96: 7
A97: 7 | B97: Internacionalizar el plan de estudios para todos los estudiantes | C97: 0 | D97: 0 | E97: 0.7143 | F97: 5 | G97: 0.2857 | H97: 2 | I97: 0 | J97: 0 | K97: 0 | L97: 0 | M97: 7
A98: 8 | B98: Internacionalizaci√≥n del campus | C98: 0.1429 | D98: 1 | E98: 0.5714 | F98: 4 | G98: 0.2857 | H98: 2 | I98: 0 | J98: 0 | K98: 0 | L98: 0 | M98: 7
A99: 9 | B99: Internacionalizaci√≥n de los servicios para estudiantes | C99: 0.2857 | D99: 2 | E99: 0.7143 | F99: 5 | G99: 0 | H99: 0 | I99: 0 | J99: 0 | K99: 0 | L99: 0 | M99: 7
A100: 10 | B100: Ampliaci√≥n de los ingresos de la instituci√≥n | C100: 0 | D100: 0 | E100: 0.5714 | F100: 4 | G100: 0.4286 | H100: 3 | I100: 0 | J100: 0 | K100: 0 | L100: 0 | M100: 7
A101: 11 | B101: Mejor√≠a de la calidad de la ense√±anza y el aprendizaje | C101: 0 | D101: 0 | E101: 0.5714 | F101: 4 | G101: 0.2857 | H101: 2 | I101: 0.1429 | J101: 1 | K101: 0 | L101: 0 | M101: 7
A102: 12 | B102: Democratizaci√≥n del conocimiento | C102: 0.2857 | D102: 2 | E102: 0.2857 | F102: 2 | G102: 0.4286 | H102: 3 | I102: 0 | J102: 0 | K102: 0 | L102: 0 | M102: 7
A103: 13 | B103: Abordaje de los problemas de inequidad y exclusi√≥n en la educaci√≥n superior | C103: 0.1429 | D103: 1 | E103: 0.2857 | F103: 2 | G103: 0.5714 | H103: 4 | I103: 0 | J103: 0 | K103: 0 | L103: 0 | M103: 7
A104: 14 | B104: Abordaje de los problemas de inequidad y exclusi√≥n en la sociedad | C104: 0.1429 | D104: 1 | E104: 0.4286 | F104: 3 | G104: 0.4286 | H104: 3 | I104: 0 | J104: 0 | K104: 0 | L104: 0 | M104: 7
A105: 15 | B105: Preparaci√≥n de todos los graduados para un mundo cada vez m√°s globalizado | C105: 0 | D105: 0 | E105: 0.5714 | F105: 4 | G105: 0.2857 | H105: 2 | I105: 0.1429 | J105: 1 | K105: 0 | L105: 0 | M105: 7
A106: 16 | B106: Mejor√≠a de las oportunidades de empleo para graduados de la universidad | C106: 0 | D106: 0 | E106: 0.5714 | F106: 4 | G106: 0.2857 | H106: 2 | I106: 0.1429 | J106: 1 | K106: 0 | L106: 0 | M106: 7
A107: 17 | B107: Promoci√≥n la igualdad de oportunidades para los grupos marginados de la sociedad | C107: 0.2857 | D107: 2 | E107: 0.4286 | F107: 3 | G107: 0.1429 | H107: 1 | I107: 0.1429 | J107: 1 | K107: 0 | L107: 0 | M107: 7
A108: 18 | B108: Desarrollo del dominio del profesorado en idiomas adicionales | C108: 0.2857 | D108: 2 | E108: 0.2857 | F108: 2 | G108: 0.4286 | H108: 3 | I108: 0 | J108: 0 | K108: 0 | L108: 0 | M108: 7
A109: 19 | B109: Desarrollo del conocimiento y la comprensi√≥n internacionales del profesorado | C109: 0.1429 | D109: 1 | E109: 0.4286 | F109: 3 | G109: 0.4286 | H109: 3 | I109: 0 | J109: 0 | K109: 0 | L109: 0 | M109: 7
A111: Q60 - Con base en su experiencia en la educaci√≥n superior latinoamericana, ¬øen qu√© medida deber√≠an los siguientes resultados ser una prioridad para la internacionalizaci√≥n a nivel institucional en Am√©rica Latina? 1 - Nada 2 - Bajo 3 - Medio 4 - Alto I - Inseguro
A112: # | B112: Question | C112: 1 | E112: 2 | G112: 3 | I112: 4 | K112: I | M112: Total
A113: 1 | B113: Colaboraci√≥n internacional en investigaci√≥n | C113: 0 | D113: 0 | E113: 0 | F113: 0 | G113: 0.2857 | H113: 2 | I113: 0.7143 | J113: 5 | K113: 0 | L113: 0 | M113: 7
A114: 2 | B114: Mejor√≠a la reputaci√≥n global de la universidad | C114: 0 | D114: 0 | E114: 0.1429 | F114: 1 | G114: 0.7143 | H114: 5 | I114: 0.1429 | J114: 1 | K114: 0 | L114: 0 | M114: 7
A115: 3 | B115: Establecimiento y crecimiento de parcer√≠as educativas internacionales | C115: 0 | D115: 0 | E115: 0 | F115: 0 | G115: 0.5714 | H115: 4 | I115: 0.4286 | J115: 3 | K115: 0 | L115: 0 | M115: 7
A116: 4 | B116: Reclutamiento de estudiantes | C116: 0 | D116: 0 | E116: 0 | F116: 0 | G116: 0.8571 | H116: 6 | I116: 0.1429 | J116: 1 | K116: 0 | L116: 0 | M116: 7
A117: 5 | B117: Programas de intercambio internacional | C117: 0 | D117: 0 | E117: 0 | F117: 0 | G117: 0.5714 | H117: 4 | I117: 0.4286 | J117: 3 | K117: 0 | L117: 0 | M117: 7
A118: 6 | B118: Reclutamiento internacional de profesores | C118: 0 | D118: 0 | E118: 0.1429 | F118: 1 | G118: 0.5714 | H118: 4 | I118: 0.2857 | J118: 2 | K118: 0 | L118: 0 | M118: 7
A119: 7 | B119: Internacionalizar el plan de estudios para todos los estudiantes | C119: 0 | D119: 0 | E119: 0 | F119: 0 | G119: 0.1429 | H119: 1 | I119: 0.8571 | J119: 6 | K119: 0 | L119: 0 | M119: 7
A120: 8 | B120: Ampliaci√≥n de los ingresos de la instituci√≥n | C120: 0 | D120: 0 | E120: 0.1429 | F120: 1 | G120: 0.7143 | H120: 5 | I120: 0.1429 | J120: 1 | K120: 0 | L120: 0 | M120: 7
A121: 9 | B121: Mejor√≠a de la calidad de la ense√±anza y el aprendizaje | C121: 0 | D121: 0 | E121: 0 | F121: 0 | G121: 0 | H121: 0 | I121: 1 | J121: 7 | K121: 0 | L121: 0 | M121: 7
A122: 10 | B122: Ampliar los ingresos para la instituci√≥n | C122: 0 | D122: 0 | E122: 0.1429 | F122: 1 | G122: 0.8571 | H122: 6 | I122: 0 | J122: 0 | K122: 0 | L122: 0 | M122: 7
A123: 11 | B123: Mejorar la calidad de la ense√±anza y el aprendizaje | C123: 0 | D123: 0 | E123: 0 | F123: 0 | G123: 0 | H123: 0 | I123: 1 | J123: 7 | K123: 0 | L123: 0 | M123: 7
A124: 12 | B124: Democratizaci√≥n del conocimiento | C124: 0 | D124: 0 | E124: 0 | F124: 0 | G124: 0.1429 | H124: 1 | I124: 0.8571 | J124: 6 | K124: 0 | L124: 0 | M124: 7
A125: 13 | B125: Abordaje de los problemas de inequidad y exclusi√≥n en la educaci√≥n superior | C125: 0 | D125: 0 | E125: 0 | F125: 0 | G125: 0.2857 | H125: 2 | I125: 0.7143 | J125: 5 | K125: 0 | L125: 0 | M125: 7
A126: 14 | B126: Abordaje de los problemas de inequidad y exclusi√≥n en la sociedad | C126: 0 | D126: 0 | E126: 0 | F126: 0 | G126: 0.2857 | H126: 2 | I126: 0.7143 | J126: 5 | K126: 0 | L126: 0 | M126: 7
A127: 15 | B127: Preparaci√≥n de todos los graduados para un mundo cada vez m√°s globalizado | C127: 0 | D127: 0 | E127: 0 | F127: 0 | G127: 0 | H127: 0 | I127: 1 | J127: 7 | K127: 0 | L127: 0 | M127: 7
A128: 16 | B128: Mejor√≠a de las oportunidades de empleo para graduados de la universidad | C128: 0 | D128: 0 | E128: 0 | F128: 0 | G128: 0.1429 | H128: 1 | I128: 0.8571 | J128: 6 | K128: 0 | L128: 0 | M128: 7
A129: 17 | B129: Promoci√≥n la igualdad de oportunidades para los grupos marginados de la sociedad | C129: 0 | D129: 0 | E129: 0 | F129: 0 | G129: 0.2857 | H129: 2 | I129: 0.7143 | J129: 5 | K129: 0 | L129: 0 | M129: 7
A130: 18 | B130: Desarrollo del dominio del profesorado en idiomas adicionales | C130: 0 | D130: 0 | E130: 0 | F130: 0 | G130: 0.5714 | H130: 4 | I130: 0.4286 | J130: 3 | K130: 0 | L130: 0 | M130: 7
A131: 19 | B131: Desarrollo del conocimiento y la comprensi√≥n internacionales del profesorado | C131: 0 | D131: 0 | E131: 0 | F131: 0 | G131: 0.2857 | H131: 2 | I131: 0.7143 | J131: 5 | K131: 0 | L131: 0 | M131: 7
A133: Q65 - Con base en su experiencia en la educaci√≥n superior latinoamericana, ¬øhay otros resultados que considere importantes en el contexto latinoamericano actual?
A134: Con base en su experiencia en la educaci√≥n superior latinoamericana, ¬øhay otros resultados que considere importantes en el contexto latinoamericano actual?
A135: El abordaje de problemas relacionados con la inequidad, exclusi√≥n, y democratizaci√≥n del conocimiento, no suelen ser resultados de procesos o actividades relacionadas con la Internacionalizaci√≥n del Curr√≠culo en Am√©rica Latina. De hecho se consideran a menudo actividades que responden a misiones distintas. Habria que hacer esfuerzos mayores para evidenciar los impactos de los procesos de internacionalizacion en este tipo de resultados. Adem√°s de estos resultados mencionados, agregar√≠a la mejora de la calidad de la investigaci√≥n, que va un poco m√°s all√° de la colaboraci√≥n. Mejora de los procesos de ense√±anza y aprendizaje. Entre otros.
A136: Creaci√≥n de un sistema de acreditaci√≥n de la educaci√≥n superior latinoamericana. Certificaci√≥n de agencias latinoamericanas de acreditaci√≥n.
A138: Q61 - Con base en su experiencia en la educaci√≥n superior latinoamericana, ¬øcu√°les son las prioridades actuales de los miembros del personal acad√©mico para la internacionalizaci√≥n? 1 - Nada 2 - Bajo 3 - Medio 4 - Alto I - Inseguro
A139: # | B139: Question | C139: 1 | E139: 2 | G139: 3 | I139: 4 | K139: I | M139: Total
A140: 1 | B140: Establecer y fomentar sus propias parcer√≠as internacionales de investigaci√≥n | C140: 0 | D140: 0 | E140: 0.4286 | F140: 3 | G140: 0.1429 | H140: 1 | I140: 0.4286 | J140: 3 | K140: 0 | L140: 0 | M140: 7
A141: 2 | B141: Organizar y/o ense√±ar en proyectos de aprendizaje internacional colaborativo en l√≠nea | C141: 0 | D141: 0 | E141: 0.8571 | F141: 6 | G141: 0.1429 | H141: 1 | I141: 0 | J141: 0 | K141: 0 | L141: 0 | M141: 7
A142: 3 | B142: Organizar proyectos de intercambio virtual | C142: 0 | D142: 0 | E142: 0.7143 | F142: 5 | G142: 0.2857 | H142: 2 | I142: 0 | J142: 0 | K142: 0 | L142: 0 | M142: 7
A143: 4 | B143: Conectarse con grupos comunitarios locales sobre proyectos interculturales | C143: 0.2857 | D143: 2 | E143: 0.5714 | F143: 4 | G143: 0.1429 | H143: 1 | I143: 0 | J143: 0 | K143: 0 | L143: 0 | M143: 7
A144: 5 | B144: Organizar programas de movilidad para sus estudiantes | C144: 0.2857 | D144: 2 | E144: 0.4286 | F144: 3 | G144: 0.2857 | H144: 2 | I144: 0 | J144: 0 | K144: 0 | L144: 0 | M144: 7
A145: 6 | B145: Internacionalizar el contenido de su ense√±anza | C145: 0 | D145: 0 | E145: 1 | F145: 7 | G145: 0 | H145: 0 | I145: 0 | J145: 0 | K145: 0 | L145: 0 | M145: 7
A146: 7 | B146: Desarrollar y aplicar pedagog√≠as interculturales | C146: 0.2857 | D146: 2 | E146: 0.5714 | F146: 4 | G146: 0.1429 | H146: 1 | I146: 0 | J146: 0 | K146: 0 | L146: 0 | M146: 7
A147: 8 | B147: Desarrollar y aplicar pedagog√≠as inclusivas | C147: 0.4286 | D147: 3 | E147: 0.2857 | F147: 2 | G147: 0.2857 | H147: 2 | I147: 0 | J147: 0 | K147: 0 | L147: 0 | M147: 7
A148: 9 | B148: Preparar a sus estudiantes para un ambiente de trabajo cada vez m√°s globalizado | C148: 0 | D148: 0 | E148: 0.7143 | F148: 5 | G148: 0.2857 | H148: 2 | I148: 0 | J148: 0 | K148: 0 | L148: 0 | M148: 7
A149: 10 | B149: Desarrollar las competencias t√©cnicas internacionales de los estudiantes | C149: 0 | D149: 0 | E149: 0.5714 | F149: 4 | G149: 0.1429 | H149: 1 | I149: 0.1429 | J149: 1 | K149: 0.1429 | L149: 1 | M149: 7
A150: 11 | B150: Desarrollar las habilidades de los estudiantes para comprender e interactuar entre culturas (habilidades blandas) | C150: 0 | D150: 0 | E150: 0.7143 | F150: 5 | G150: 0.2857 | H150: 2 | I150: 0 | J150: 0 | K150: 0 | L150: 0 | M150: 7
A151: 12 | B151: Desarrollar la comprensi√≥n te√≥rica de los estudiantes acerca de la interculturalidad | C151: 0.1429 | D151: 1 | E151: 0.8571 | F151: 6 | G151: 0 | H151: 0 | I151: 0 | J151: 0 | K151: 0 | L151: 0 | M151: 7
A152: 13 | B152: Expandir el conocimiento internacional de los profesores en disciplinas y/o campos profesionales relacionados | C152: 0 | D152: 0 | E152: 0.8571 | F152: 6 | G152: 0.1429 | H152: 1 | I152: 0 | J152: 0 | K152: 0 | L152: 0 | M152: 7
A153: 14 | B153: Descolonizar el curr√≠culo mediante, por ejemplo, la inclusi√≥n de conocimientos/perspectivas ind√≠genas en su ense√±anza | C153: 0.1429 | D153: 1 | E153: 0.8571 | F153: 6 | G153: 0 | H153: 0 | I153: 0 | J153: 0 | K153: 0 | L153: 0 | M153: 7
A154: 15 | B154: Lograr los Objetivos de Desarrollo Sostenible de la ONU | C154: 0 | D154: 0 | E154: 0.5714 | F154: 4 | G154: 0.2857 | H154: 2 | I154: 0.1429 | J154: 1 | K154: 0 | L154: 0 | M154: 7
A155: 16 | B155: Desarrollar los valores √©ticos y cosmopolitas de los estudiantes | C155: 0.1429 | D155: 1 | E155: 0.5714 | F155: 4 | G155: 0.2857 | H155: 2 | I155: 0 | J155: 0 | K155: 0 | L155: 0 | M155: 7
A156: 17 | B156: Desarrollar la comprensi√≥n de los estudiantes de sus responsabilidades sociales globales | C156: 0.1429 | D156: 1 | E156: 0.4286 | F156: 3 | G156: 0.4286 | H156: 3 | I156: 0 | J156: 0 | K156: 0 | L156: 0 | M156: 7
A157: 18 | B157: Desarrollar la comprensi√≥n internacional de los estudiantes | C157: 0 | D157: 0 | E157: 0.5714 | F157: 4 | G157: 0.4286 | H157: 3 | I157: 0 | J157: 0 | K157: 0 | L157: 0 | M157: 7
A158: 19 | B158: Desarrollar la competencia intercultural de los estudiantes | C158: 0.1429 | D158: 1 | E158: 0.7143 | F158: 5 | G158: 0.1429 | H158: 1 | I158: 0 | J158: 0 | K158: 0 | L158: 0 | M158: 7
A160: Q62 - Con base en su experiencia en la educaci√≥n superior latinoamericana, idealmente, ¬øcu√°les ser√≠an las prioridades de los miembros del personal acad√©mico para la internacionalizaci√≥n? 1 - Nada 2 - Bajo 3 - Medio 4 - Alto I - Inseguro
A161: # | B161: Question | C161: 1 | E161: 2 | G161: 3 | I161: 4 | K161: I | M161: Total
A162: 1 | B162: Establecer y fomentar sus propias parcer√≠as internacionales de investigaci√≥n | C162: 0 | D162: 0 | E162: 0.1429 | F162: 1 | G162: 0.4286 | H162: 3 | I162: 0.4286 | J162: 3 | K162: 0 | L162: 0 | M162: 7
A163: 2 | B163: Organizar y/o ense√±ar en proyectos de aprendizaje internacional colaborativo en l√≠nea | C163: 0 | D163: 0 | E163: 0.1429 | F163: 1 | G163: 0.7143 | H163: 5 | I163: 0.1429 | J163: 1 | K163: 0 | L163: 0 | M163: 7
A164: 3 | B164: Organizar proyectos de intercambio virtual | C164: 0 | D164: 0 | E164: 0.2857 | F164: 2 | G164: 0.5714 | H164: 4 | I164: 0.1429 | J164: 1 | K164: 0 | L164: 0 | M164: 7
A165: 4 | B165: Conectarse con grupos comunitarios locales sobre proyectos interculturales | C165: 0.1429 | D165: 1 | E165: 0.1429 | F165: 1 | G165: 0.2857 | H165: 2 | I165: 0.4286 | J165: 3 | K165: 0 | L165: 0 | M165: 7
A166: 5 | B166: Organizar programas de movilidad para sus estudiantes | C166: 0 | D166: 0 | E166: 0.2857 | F166: 2 | G166: 0.5714 | H166: 4 | I166: 0.1429 | J166: 1 | K166: 0 | L166: 0 | M166: 7
A167: 6 | B167: Internacionalizar el contenido de su ense√±anza | C167: 0 | D167: 0 | E167: 0 | F167: 0 | G167: 0.2857 | H167: 2 | I167: 0.7143 | J167: 5 | K167: 0 | L167: 0 | M167: 7
A168: 7 | B168: Desarrollar y aplicar pedagog√≠as interculturales | C168: 0 | D168: 0 | E168: 0 | F168: 0 | G168: 0.2857 | H168: 2 | I168: 0.7143 | J168: 5 | K168: 0 | L168: 0 | M168: 7
A169: 8 | B169: Desarrollar y aplicar pedagog√≠as inclusivas | C169: 0 | D169: 0 | E169: 0 | F169: 0 | G169: 0.2857 | H169: 2 | I169: 0.7143 | J169: 5 | K169: 0 | L169: 0 | M169: 7
A170: 9 | B170: Preparar a sus estudiantes para un ambiente de trabajo cada vez m√°s globalizado | C170: 0 | D170: 0 | E170: 0 | F170: 0 | G170: 0.2857 | H170: 2 | I170: 0.7143 | J170: 5 | K170: 0 | L170: 0 | M170: 7
A171: 10 | B171: Desarrollar las competencias t√©cnicas internacionales de los estudiantes | C171: 0 | D171: 0 | E171: 0 | F171: 0 | G171: 0.4286 | H171: 3 | I171: 0.5714 | J171: 4 | K171: 0 | L171: 0 | M171: 7
A172: 11 | B172: Desarrollar las habilidades de los estudiantes para comprender e interactuar entre culturas (habilidades blandas) | C172: 0 | D172: 0 | E172: 0 | F172: 0 | G172: 0.2857 | H172: 2 | I172: 0.7143 | J172: 5 | K172: 0 | L172: 0 | M172: 7
A173: 12 | B173: Desarrollar la comprensi√≥n te√≥rica de los estudiantes acerca de la interculturalidad | C173: 0 | D173: 0 | E173: 0 | F173: 0 | G173: 0.5714 | H173: 4 | I173: 0.4286 | J173: 3 | K173: 0 | L173: 0 | M173: 7
A174: 13 | B174: Expandir el conocimiento internacional de los profesores en disciplinas y/o campos profesionales relacionados | C174: 0 | D174: 0 | E174: 0 | F174: 0 | G174: 0.2857 | H174: 2 | I174: 0.7143 | J174: 5 | K174: 0 | L174: 0 | M174: 7
A175: 14 | B175: Descolonizar el curr√≠culo mediante, por ejemplo, la inclusi√≥n de conocimientos/perspectivas ind√≠genas en su ense√±anza | C175: 0 | D175: 0 | E175: 0 | F175: 0 | G175: 0.7143 | H175: 5 | I175: 0.2857 | J175: 2 | K175: 0 | L175: 0 | M175: 7
A176: 15 | B176: Lograr los Objetivos de Desarrollo Sostenible de la ONU | C176: 0 | D176: 0 | E176: 0 | F176: 0 | G176: 0.4286 | H176: 3 | I176: 0.5714 | J176: 4 | K176: 0 | L176: 0 | M176: 7
A177: 16 | B177: Desarrollar los valores √©ticos y cosmopolitas de los estudiantes | C177: 0 | D177: 0 | E177: 0 | F177: 0 | G177: 0.4286 | H177: 3 | I177: 0.5714 | J177: 4 | K177: 0 | L177: 0 | M177: 7
A178: 17 | B178: Desarrollar la comprensi√≥n de los estudiantes de sus responsabilidades sociales globales | C178: 0 | D178: 0 | E178: 0 | F178: 0 | G178: 0.4286 | H178: 3 | I178: 0.5714 | J178: 4 | K178: 0 | L178: 0 | M178: 7
A179: 18 | B179: Desarrollar la comprensi√≥n internacional de los estudiantes | C179: 0 | D179: 0 | E179: 0 | F179: 0 | G179: 0.2857 | H179: 2 | I179: 0.7143 | J179: 5 | K179: 0 | L179: 0 | M179: 7
A180: 19 | B180: Desarrollar la competencia intercultural de los estudiantes | C180: 0 | D180: 0 | E180: 0 | F180: 0 | G180: 0.2857 | H180: 2 | I180: 0.7143 | J180: 5 | K180: 0 | L180: 0 | M180: 7
A182: Q63 - Con base en su experiencia en la educaci√≥n superior latinoamericana, ¬øcu√°les considera que son los principales obst√°culos para la participaci√≥n del personal acad√©mico en la internacionalizaci√≥n del curr√≠culo en Am√©rica Latina en la actualidad?
A183: Con base en su experiencia en la educaci√≥n superior latinoamericana, ¬øcu√°les considera que son los principales obst√°culos para la participaci√≥n del personal acad√©mico en la internacionalizaci√≥n del curr√≠culo en Am√©rica Latina en la actualidad?
A184: Falta de reconocimiento, Falta de tiempo, Desconocimiento
A185: Estructuras muy inflexibles
A186: Falta de capacitaci√≥n del personal acad√©mico, falta de dominio de otros idiomas, principalmente
A187: Falta de apoyo institucional, direccionamiento, y capacidad para potenciar su talento. La endogamia, y la falta de conocimientos en idiomas ha sido tradicionalmente evaluada como obst√°culo, sin embargo, en instituciones se ha probado que se puede hacer una tipolog√≠a interesante de internacionalizaci√≥n incluso con profesores que no se han formado en el exterior.
A188: la falta de dominio de idiomas; la gran segmentaci√≥n y diversidad de perfiles (profesores de asignatura, profesores docentes, profesores investigadores, etc.), la falta de vinculaci√≥n entre las oficinas internacionales y los docentes (los administrativos/gestores no tienen idea de lo que sucede en las aulas); la falta de incentivos para los que s√≠ tienen el dominio de idiomas y el inter√©s; la falta de espacios para la participaci√≥n de los acad√©micos en el dise√±o y desarrollo de los programas educativos
A189: 1. Desconocimiento y poca sensibilidad de los altos funcionarios sobre el tema. 2. Escaso o nulo trabajo con √°reas estrat√©gicas (desarrollo curricular, innovaci√≥n educativa, acreditaci√≥n, planeaci√≥n institucional). 3. Ausencia de programas integrales de capacitaci√≥n y sensibilizaci√≥n sobre IdC a docentes.
A191: Q67 - Seg√∫n su experiencia en la educaci√≥n superior latinoamericana, ¬øen qu√© medida las siguientes personas est√°n actualmente involucradas en la internacionalizaci√≥n del curr√≠culo? 1 - Nada 2 - Bajo 3 - Medio 4 - Alto I - Inseguro
A192: # | B192: Question | C192: 1 | E192: 2 | G192: 3 | I192: 4 | K192: I | M192: Total
A193: 1 | B193: Todo el personal docente | C193: 0.4286 | D193: 3 | E193: 0.5714 | F193: 4 | G193: 0 | H193: 0 | I193: 0 | J193: 0 | K193: 0 | L193: 0 | M193: 7
A194: 2 | B194: Docentes individuales | C194: 0 | D194: 0 | E194: 0.7143 | F194: 5 | G194: 0.1429 | H194: 1 | I194: 0.1429 | J194: 1 | K194: 0 | L194: 0 | M194: 7
A195: 3 | B195: Docentes reclutados internacionalmente | C195: 0.2857 | D195: 2 | E195: 0.2857 | F195: 2 | G195: 0.1429 | H195: 1 | I195: 0.1429 | J195: 1 | K195: 0.1429 | L195: 1 | M195: 7
A196: 4 | B196: Personal de la oficina internacional | C196: 0.1429 | D196: 1 | E196: 0.4286 | F196: 3 | G196: 0.2857 | H196: 2 | I196: 0.1429 | J196: 1 | K196: 0 | L196: 0 | M196: 7
A197: 5 | B197: Aquellos que ense√±an en un idioma extranjero (por ejemplo, ingl√©s, portugu√©s) | C197: 0.1429 | D197: 1 | E197: 0.4286 | F197: 3 | G197: 0.2857 | H197: 2 | I197: 0.1429 | J197: 1 | K197: 0 | L197: 0 | M197: 7
A198: 6 | B198: Liderazgos acad√©micos, disciplinarios o departamentales | C198: 0.1429 | D198: 1 | E198: 0.7143 | F198: 5 | G198: 0.1429 | H198: 1 | I198: 0 | J198: 0 | K198: 0 | L198: 0 | M198: 7
A199: 7 | B199: Estudiantes de pregrado | C199: 0.4286 | D199: 3 | E199: 0.4286 | F199: 3 | G199: 0.1429 | H199: 1 | I199: 0 | J199: 0 | K199: 0 | L199: 0 | M199: 7
A200: 8 | B200: Estudiantes de posgrado | C200: 0.2857 | D200: 2 | E200: 0.5714 | F200: 4 | G200: 0.1429 | H200: 1 | I200: 0 | J200: 0 | K200: 0 | L200: 0 | M200: 7
A201: 9 | B201: Personal de servicios estudiantiles | C201: 0.4286 | D201: 3 | E201: 0.5714 | F201: 4 | G201: 0 | H201: 0 | I201: 0 | J201: 0 | K201: 0 | L201: 0 | M201: 7
A202: 10 | B202: Personal administrativo | C202: 0.5714 | D202: 4 | E202: 0.2857 | F202: 2 | G202: 0.1429 | H202: 1 | I202: 0 | J202: 0 | K202: 0 | L202: 0 | M202: 7
A203: 11 | B203: Ciudadanos de la comunidad local | C203: 0.7143 | D203: 5 | E203: 0.2857 | F203: 2 | G203: 0 | H203: 0 | I203: 0 | J203: 0 | K203: 0 | L203: 0 | M203: 7
A204: 12 | B204: Asociaciones profesionales | C204: 0.5714 | D204: 4 | E204: 0.2857 | F204: 2 | G204: 0.1429 | H204: 1 | I204: 0 | J204: 0 | K204: 0 | L204: 0 | M204: 7
A205: 13 | B205: Empleadores | C205: 0.7143 | D205: 5 | E205: 0.2857 | F205: 2 | G205: 0 | H205: 0 | I205: 0 | J205: 0 | K205: 0 | L205: 0 | M205: 7
A207: Q68 - ¬øEn qu√© medida cree que las siguientes personas deber√≠an participar en la internacionalizaci√≥n del plan de estudios?
A208: 1 - Nada
A210: 2 - Bajo
A212: 3 - Medio
A214: 4 - Alto
A216: I - Inseguro
A217: # | B217: Question | C217: 1 | E217: 2 | G217: 3 | I217: 4 | K217: I | M217: Total
A218: 1 | B218: Todo el personal docente | C218: 0 | D218: 0 | E218: 0 | F218: 0 | G218: 0.2857 | H218: 2 | I218: 0.7143 | J218: 5 | K218: 0 | L218: 0 | M218: 7
A219: 2 | B219: Docentes individuales | C219: 0 | D219: 0 | E219: 0 | F219: 0 | G219: 0.2857 | H219: 2 | I219: 0.7143 | J219: 5 | K219: 0 | L219: 0 | M219: 7
A220: 3 | B220: Docentes reclutados internacionalmente | C220: 0 | D220: 0 | E220: 0.1429 | F220: 1 | G220: 0.2857 | H220: 2 | I220: 0.5714 | J220: 4 | K220: 0 | L220: 0 | M220: 7
A221: 4 | B221: Personal de la oficina internacional | C221: 0 | D221: 0 | E221: 0 | F221: 0 | G221: 0.4286 | H221: 3 | I221: 0.5714 | J221: 4 | K221: 0 | L221: 0 | M221: 7
... 158 more rows

Sheet EnglishR3
A1: Tradu√ß√£o
A2: Last Modified: 2022-06-23 00:25:02 MDT
A5: Q9 - Based on your experience in universities in Latin America indicate the potential of Model 1 as a means to stimulate conversations about current and/or future approaches to IoC with the listed groups of people.
A9: 1 - No potential
A11: 2 - Limited potential
A13: 3 - Significant potential
A14: Unable to export widget. Please contact Qualtrics Support.
A16: Q64 - Other comments:
A17: Other comments:
A18: As you uncover layers of complexity in the curricular development process and incorporate aspects of the hidden and informal curriculum as relevant to the development of global citizenship, the lest palatable the model becomes to administrators and the average audience. We're stepping into "next-level complexity" and most people may simply tune out.
A19: I repeat that this also has significant potential but the model is complex and multi-layered so much depends on how it is presented. I appreciate the reference to curriculum, hidden etc but not sure it works in the way it is displayed. It looks as though it refers to the various segments. I think disciplinary knowledge still comes first. Emerging and dominant works for me - they appear equally important. Additional process information is helpful. The regional context makes sense. I agree with the addition of citizenship.
A21: Other comments:
A22: As you uncover layers of complexity in the curricular development process and incorporate aspects of the hidden and informal curriculum as relevant to the development of global citizenship, the lest palatable the model becomes to administrators and the average audience. We're stepping into "next-level complexity" and most people may simply tune out.
A23: I repeat that this also has significant potential but the model is complex and multi-layered so much depends on how it is presented. I appreciate the reference to curriculum, hidden etc but not sure it works in the way it is displayed. It looks as though it refers to the various segments. I think disciplinary knowledge still comes first. Emerging and dominant works for me - they appear equally important. Additional process information is helpful. The regional context makes sense. I agree with the addition of citizenship.
A25: Q56 - Based on your experience in universities in Latin America indicate the potential of Model 2 as a means to stimulate conversations about current and future approaches to internationalization of the curriculum with the listed groups of people.
A29: 1 - No potential
A31: 2 - Limited potential
A33: 3 - Significant potential
A34: Unable to export widget. Please contact Qualtrics Support.
A36: Q84 - Other comments:
A37: Other comments:
A38: Focusing on "formal curriculum" may be of greater interest to administrators. This third version may be more palatable for the purpose of assessment and metrics.
A39: There is already a growing awareness of the importance of general and interdisciplinary knowledge to complement discipline-specific knowledge. At my university this finds its expression in a curricular model that combines "curricular" activities (the academic discipine-specific core, including a mandatory general studies area), "cocurricular" activities (a mandatory component designed to develop soft skills and attitudes, e.g. through service learning), and "extracurricular" activities which are entirely student-driven.
A40: The curriculum hidden, formal etc is better illustrated here. I prefer learning activities to experiences and am confused by them appearing in a different colour to outcomes and assessment - it takes away from the idea of constructive alignment. Given the density of information, stronger colour differentiation would be helpful.
A42: Q57 - Based on your experience in universities in Latin America indicate the potential of Model 3 as a means to stimulate conversations about current and future approaches to internationalization of the curriculum with the listed groups of people.
A46: 1 - No potential
A48: 2 - Limited potential
A50: 3 - Significant potential
A51: Unable to export widget. Please contact Qualtrics Support.
A53: Q68 - Rank the relative importance of the domains of knowledge and understanding to be included in a professional learning program for internationalization of the curriculum.
A55: 1 - Not important
A57: 2 - Important
A59: 3 - Critical
A63: Domains of knowledge and understanding
A64: Unable to export widget. Please contact Qualtrics Support.
A66: Q70 - Comment in the text box if there are any additional domains (areas of knowledge and understanding) that you would like to see included.
A67: Comment in the text box if there are any additional domains (areas of knowledge and understanding) that you would like to see included.
A68: Understanding the rationales for IoC and contextual differences
A70: Q72 - Comment in the text box if there are any additional skill areas that you would like to see included.
A71: Comment in the text box if there are any additional skill areas that you would like to see included.
A73: Q73 - Overall, how useful do you think the Framework for Professional Learning would be for institutions, professional associations and other agencies interested in progressing for internationalization of the curriculum in Latin America?
A74: # | B74: Answer | C74: % | D74: Count
A75: 1 | B75: Not Useful | C75: 0 | D75: 0
A76: 2 | B76: Somewhat useful | C76: 0 | D76: 0
A77: 3 | B77: Useful | C77: 1 | D77: 5
B78: Total | C78: 1 | D78: 5
A80: Q110 - I believe I understand the purpose of my involvement in this project and I voluntarily consent to take part by participating in this e-Delphi study.
A81: # | B81: Field | C81: Minimum | D81: Maximum | E81: Mean | F81: Std Deviation | G81: Variance | H81: Count
A82: 1 | B82: I believe I understand the purpose of my involvement in this project and I voluntarily consent to take part by participating in this e-Delphi study. | C82: 1 | D82: 1 | E82: 1 | F82: 0 | G82: 0 | H82: 7
A84: # | B84: Answer | C84: % | D84: Count
A85: 1 | B85: Yes | C85: 1 | D85: 7
A86: 2 | B86: No | C86: 0 | D86: 0
B87: Total | C87: 1 | D87: 7
A89: Q115 - Other comments:
A90: Other comments:
A91: I think the original model still has significant potential as a tool to present IoC - the key is in how the information is presented since the model is dense.
A93: Q116 - If you indicated more than one model has significant potential, which of the models do you think has most potential to stimulate conversations about current and/or future approaches to IoC in Latin American universities or is it impossible to distinguish between them (i.e. some/all are equally valuable).
A94: # | B94: Field | C94: Minimum | D94: Maximum | E94: Mean | F94: Std Deviation | G94: Variance | H94: Count
A95: 1 | B95: Most Potential | C95: 7 | D95: 7 | E95: 7 | F95: 0 | G95: 0 | H95: 5
A97: # | B97: Answer | C97: % | D97: Count
A98: 1 | B98: Model 1 | C98: 0 | D98: 0
A99: 6 | B99: Model 2 | C99: 0 | D99: 0
A100: 7 | B100: Model 3 | C100: 1 | D100: 5
A101: 8 | B101: Cannot distinguish between them | C101: 0 | D101: 0
B102: Total | C102: 1 | D102: 5
A104: Q88 - Please help us understand your choice of model/s.
A105: Please help us understand your choice of model/s.
A106: It is the most complete of the three models.
A107: Model 3 is the one that is visually more communicative for me.
A109: Q126 - Principle 1. Lifelong and self-directed
A111: Professional learning is an ongoing and continuing process that may take many different forms. It can be formally organized by the institution or an external organization or occur informally and organically (often referred to as ‚Äòlearning on the job‚Äô or ‚Äòintegrated into the role‚Äô). Professional learning for internationalization of the curriculum is most effective when it is self-directed.
A112: # | B112: Field | C112: Minimum | D112: Maximum | E112: Mean | F112: Std Deviation | G112: Variance | H112: Count
A113: 1 | B113: Principle 1. Lifelong and self-directed Professional learning is an ongoing and continuing process that may take many different forms. It can be formally organized by the institution or an external organization or occur informally and organically (often referred to as ‚Äòlearning on the job‚Äô or ‚Äòintegrated into the role‚Äô). Professional learning for internationalization of the curriculum is most effective when it is self-directed. | C113: 1 | D113: 2 | E113: 1.2 | F113: 0.4 | G113: 0.16 | H113: 5
A115: # | B115: Answer | C115: % | D115: Count
A116: 1 | B116: Appropriate | C116: 0.8 | D116: 4
A117: 2 | B117: Not appropriate | C117: 0.2 | D117: 1
B118: Total | C118: 1 | D118: 5
A120: Q129 - Principle 2 . Needs-focused and engaging Knowledge about emerging paradigms of internationalization of the curriculum, teaching and learning.
A121: # | B121: Field | C121: Minimum | D121: Maximum | E121: Mean | F121: Std Deviation | G121: Variance | H121: Count
A122: 1 | B122: Principle 2 . Needs-focused and engaging Knowledge about emerging paradigms of internationalization of the curriculum, teaching and learning. | C122: 1 | D122: 1 | E122: 1 | F122: 0 | G122: 0 | H122: 5
A124: # | B124: Answer | C124: % | D124: Count
A125: 1 | B125: Appropriate | C125: 1 | D125: 5
A126: 2 | B126: Not appropriate | C126: 0 | D126: 0
B127: Total | C127: 1 | D127: 5
A129: Q128 - Principle 3. Praxis-orientated and context-relevant Professional learning for internationalization of the curriculum should be practice-focused and contextualized. Whether provided by the participants‚Äô department/school/unit, the university or an external consultant or professional association it should be focused on bringing theory and practice together (putting ideas into action in the context of participants‚Äô roles in internationalising the curriculum).
A130: # | B130: Field | C130: Minimum | D130: Maximum | E130: Mean | F130: Std Deviation | G130: Variance | H130: Count
A131: 1 | B131: Principle 3. Praxis-orientated and context-relevant Professional learning for internationalization of the curriculum should be practice-focused and contextualized. Whether provided by the participants‚Äô department/school/unit, the university or an external consultant or professional association it should be focused on bringing theory and practice together (putting ideas into action in the context of participants‚Äô roles in internationalising the curriculum). | C131: 1 | D131: 1 | E131: 1 | F131: 0 | G131: 0 | H131: 5
A133: # | B133: Answer | C133: % | D133: Count
A134: 1 | B134: Appropriate | C134: 1 | D134: 5
A135: 2 | B135: Not appropriate | C135: 0 | D135: 0
B136: Total | C136: 1 | D136: 5
A138: Q127 - Principle 4. Collaborative and integrative Inter-disciplinary, inter-professional and inter-personal conversations are at the heart of internationalization of the curriculum. Professional learning to support the process should integrate the diverse knowledge, skills and experience of different individuals and groups within and beyond the university. This includes for example the integration of the ideas and experiences of specialists in teaching, learning and curriculum design with those of academics working in different disciplines. It also includes discussion between those involved in planning and delivering the formal and informal curriculum. Such collaboration requires inter-personal interactions that are based on mutual respect and recognition of the value of the perspectives of others.
A139: # | B139: Field | C139: Minimum | D139: Maximum | E139: Mean | F139: Std Deviation | G139: Variance | H139: Count
A140: 1 | B140: Principle 4. Collaborative and integrative Inter-disciplinary, inter-professional and inter-personal conversations are at the heart of internationalization of the curriculum. Professional learning to support the process should integrate the diverse knowledge, skills and experience of different individuals and groups within and beyond the university. This includes for example the integration of the ideas and experiences of specialists in teaching, learning and curriculum design with those of academics working in different disciplines. It also includes discussion between those involved in planning and delivering the formal and informal curriculum. Such collaboration requires inter-personal interactions that are based on mutual respect and recognition of the value of the perspectives of others. | C140: 1 | D140: 1 | E140: 1 | F140: 0 | G140: 0 | H140: 5
A142: # | B142: Answer | C142: % | D142: Count
A143: 1 | B143: Appropriate | C143: 1 | D143: 5
A144: 2 | B144: Not appropriate | C144: 0 | D144: 0
B145: Total | C145: 1 | D145: 5
A147: Q96 - Other comments:
A148: Other comments:
A149: IoC must embrace and promote student-centred learning - it should also innovate.
A151: Q97 - Taken together do you think these principles provide a useful guide to the development of professional learning for internationalization of the curriculum in different institutional contexts in Latin America?
A152: # | B152: Field | C152: Minimum | D152: Maximum | E152: Mean | F152: Std Deviation | G152: Variance | H152: Count
A153: 1 | B153: Taken together do you think these principles provide a useful guide to the development of professional learning for internationalization of the curriculum in different institutional contexts in Latin America? | C153: 1 | D153: 1 | E153: 1 | F153: 0 | G153: 0 | H153: 5
A155: # | B155: Answer | C155: % | D155: Count
A156: 1 | B156: Yes | C156: 1 | D156: 5
A157: 2 | B157: No | C157: 0 | D157: 0
B158: Total | C158: 1 | D158: 5
A160: Q98 - Other comments:
A161: Other comments:
A162: It also needs to highlight the value of 'global learning' per se and how it contributes to and enriches these principles.
A164: Q99 - Rank the relative importance of the skills to be included in a professional learning program for internationalization of the curriculum
A165: 1 - Not important
A167: 2 - Important
A169: 3 - Critical
A173: Skills Domain for Professional Learning
A174: # | B174: Field | C174: Minimum | D174: Maximum | E174: Mean | F174: Std Deviation | G174: Variance | H174: Count
A175: 1 | B175: Designing international, intercultural, global learning outcomes. | C175: 2 | D175: 3 | E175: 2.8 | F175: 0.4 | G175: 0.16 | H175: 5
A176: 2 | B176: Ability to employ a range of different pedagogies that will facilitate the development of intended learning outcomes. | C176: 3 | D176: 3 | E176: 3 | F176: 0 | G176: 0 | H176: 5
A177: 3 | B177: Assessing students‚Äô achievement of international, intercultural and global learning outcomes. | C177: 2 | D177: 3 | E177: 2.8 | F177: 0.4 | G177: 0.16 | H177: 5
A178: 4 | B178: Facilitating active intercultural learning of students. | C178: 2 | D178: 3 | E178: 2.6 | F178: 0.49 | G178: 0.24 | H178: 5
A179: 5 | B179: Collaborating and negotiating with disciplinary colleagues. | C179: 2 | D179: 3 | E179: 2.2 | F179: 0.4 | G179: 0.16 | H179: 5
A180: 6 | B180: Collaborating and negotiating with colleagues from other disciplines. | C180: 2 | D180: 3 | E180: 2.4 | F180: 0.49 | G180: 0.24 | H180: 5
A181: 7 | B181: Collaborating and negotiating with people in different areas inside the university e.g. international office staff. | C181: 2 | D181: 3 | E181: 2.4 | F181: 0.49 | G181: 0.24 | H181: 5
A182: 8 | B182: Collaborating and negotiating with students. | C182: 2 | D182: 3 | E182: 2.6 | F182: 0.49 | G182: 0.24 | H182: 5
A183: 9 | B183: Collaborating and negotiating with employer and industry groups. | C183: 1 | D183: 3 | E183: 2.2 | F183: 0.75 | G183: 0.56 | H183: 5
A184: 10 | B184: Collaborating and negotiating with other people outside of the university e.g. local community organizations and representatives. | C184: 2 | D184: 3 | E184: 2.2 | F184: 0.4 | G184: 0.16 | H184: 5
A186: # | B186: Question | C186: 1 | E186: 2 | G186: 3 | I186: Total
A187: 1 | B187: Designing international, intercultural, global learning outcomes. | C187: 0 | D187: 0 | E187: 0.2 | F187: 1 | G187: 0.8 | H187: 4 | I187: 5
A188: 2 | B188: Ability to employ a range of different pedagogies that will facilitate the development of intended learning outcomes. | C188: 0 | D188: 0 | E188: 0 | F188: 0 | G188: 1 | H188: 5 | I188: 5
A189: 3 | B189: Assessing students‚Äô achievement of international, intercultural and global learning outcomes. | C189: 0 | D189: 0 | E189: 0.2 | F189: 1 | G189: 0.8 | H189: 4 | I189: 5
A190: 4 | B190: Facilitating active intercultural learning of students. | C190: 0 | D190: 0 | E190: 0.4 | F190: 2 | G190: 0.6 | H190: 3 | I190: 5
A191: 5 | B191: Collaborating and negotiating with disciplinary colleagues. | C191: 0 | D191: 0 | E191: 0.8 | F191: 4 | G191: 0.2 | H191: 1 | I191: 5
A192: 6 | B192: Collaborating and negotiating with colleagues from other disciplines. | C192: 0 | D192: 0 | E192: 0.6 | F192: 3 | G192: 0.4 | H192: 2 | I192: 5
A193: 7 | B193: Collaborating and negotiating with people in different areas inside the university e.g. international office staff. | C193: 0 | D193: 0 | E193: 0.6 | F193: 3 | G193: 0.4 | H193: 2 | I193: 5
A194: 8 | B194: Collaborating and negotiating with students. | C194: 0 | D194: 0 | E194: 0.4 | F194: 2 | G194: 0.6 | H194: 3 | I194: 5
A195: 9 | B195: Collaborating and negotiating with employer and industry groups. | C195: 0.2 | D195: 1 | E195: 0.4 | F195: 2 | G195: 0.4 | H195: 2 | I195: 5
A196: 10 | B196: Collaborating and negotiating with other people outside of the university e.g. local community organizations and representatives. | C196: 0 | D196: 0 | E196: 0.8 | F196: 4 | G196: 0.2 | H196: 1 | I196: 5
A198: Q100 - Rank the relative importance of emphasising the relevance of the following values for internationalization of the curriculum in the professional learning program
A199: 1 - Not important
A201: 2 - Important
A203: 3 - Critical
A207: Values Domain for Professional Learning
A208: # | B208: Field | C208: Minimum | D208: Maximum | E208: Mean | F208: Std Deviation | G208: Variance | H208: Count
A209: 1 | B209: Appreciation of the importance of inclusivity and diversity in the process of IoC. | C209: 2 | D209: 3 | E209: 2.6 | F209: 0.49 | G209: 0.24 | H209: 5
A210: 2 | B210: Positive mindset towards curriculum review and change. | C210: 2 | D210: 3 | E210: 2.8 | F210: 0.4 | G210: 0.16 | H210: 5
A211: 3 | B211: Openness to innovation and new ways of approaching education and/including IoC. | C211: 1 | D211: 3 | E211: 2.6 | F211: 0.8 | G211: 0.64 | H211: 5
A212: 4 | B212: Commitment to creating inclusive learning environments. | C212: 2 | D212: 3 | E212: 2.6 | F212: 0.49 | G212: 0.24 | H212: 5
A213: 5 | B213: Collegiality, solidarity, democracy (e.g. supporting negotiation, mutual respect, reciprocity). | C213: 2 | D213: 3 | E213: 2.8 | F213: 0.4 | G213: 0.16 | H213: 5
A215: # | B215: Question | C215: 1 | E215: 2 | G215: 3 | I215: Total
A216: 1 | B216: Appreciation of the importance of inclusivity and diversity in the process of IoC. | C216: 0 | D216: 0 | E216: 0.4 | F216: 2 | G216: 0.6 | H216: 3 | I216: 5
A217: 2 | B217: Positive mindset towards curriculum review and change. | C217: 0 | D217: 0 | E217: 0.2 | F217: 1 | G217: 0.8 | H217: 4 | I217: 5
A218: 3 | B218: Openness to innovation and new ways of approaching education and/including IoC. | C218: 0.2 | D218: 1 | E218: 0 | F218: 0 | G218: 0.8 | H218: 4 | I218: 5
A219: 4 | B219: Commitment to creating inclusive learning environments. | C219: 0 | D219: 0 | E219: 0.4 | F219: 2 | G219: 0.6 | H219: 3 | I219: 5
A220: 5 | B220: Collegiality, solidarity, democracy (e.g. supporting negotiation, mutual respect, reciprocity). | C220: 0 | D220: 0 | E220: 0.2 | F220: 1 | G220: 0.8 | H220: 4 | I220: 5
A222: Q101 - Comment in the text box if there are any additional values domains that you would like to see included.
A223: Comment in the text box if there are any additional values domains that you would like to see included.
A224: It's hard to say anything is less than fundamental
A226: Q102 - Other comments:
A227: Other comments:

Sheet PortuguesR3
A1: Tradu√ß√£o
A2: Last Modified: 2022-06-23 00:34:08 MDT
A5: Q5 - Entendo o prop√≥sito do meu envolvimento neste projeto e concordo em fazer parte, de maneira volunt√°ria, neste e-Delphi.
A6: # | B6: Field | C6: Minimum | D6: Maximum | E6: Mean | F6: Std Deviation | G6: Variance | H6: Count
A7: 1 | B7: Entendo o prop√≥sito do meu envolvimento neste projeto e concordo em fazer parte, de maneira volunt√°ria, neste e-Delphi. | C7: 1 | D7: 1 | E7: 1 | F7: 0 | G7: 0 | H7: 5
A9: # | B9: Answer | C9: % | D9: Count
A10: 1 | B10: Sim | C10: 1 | D10: 5
A11: 2 | B11: N√£o | C11: 0 | D11: 0
B12: Total | C12: 1 | D12: 5
A14: Q135 - Com base em sua experi√™ncia em universidades da Am√©rica Latina, classifique o potencial do Modelo 1 como forma de fomentar di√°logos sobre as abordagens atuais e / ou futuras de IoC com os grupos de pessoas listados. 1 - Nenhum 2 - Limitado 3 - Significativo
A15: # | B15: Field | C15: Minimum | D15: Maximum | E15: Mean | F15: Std Deviation | G15: Variance | H15: Count
A16: 1 | B16: L√≠deres universit√°rios. | C16: 2 | D16: 3 | E16: 2.5 | F16: 0.5 | G16: 0.25 | H16: 4
A17: 2 | B17: Alguns membros do corpo docente, em particular. | C17: 2 | D17: 3 | E17: 2.5 | F17: 0.5 | G17: 0.25 | H17: 4
A18: 3 | B18: Lideran√ßas acad√™micas/de disciplinas espec√≠ficas. | C18: 2 | D18: 3 | E18: 2.5 | F18: 0.5 | G18: 0.25 | H18: 4
A19: 4 | B19: Alunos. | C19: 2 | D19: 3 | E19: 2.5 | F19: 0.5 | G19: 0.25 | H19: 4
A20: 5 | B20: Equipe do Escrit√≥rio Internacional. | C20: 2 | D20: 3 | E20: 2.25 | F20: 0.43 | G20: 0.19 | H20: 4
A22: # | B22: Question | C22: 1 | E22: 2 | G22: 3 | I22: Total
A23: 1 | B23: L√≠deres universit√°rios. | C23: 0 | D23: 0 | E23: 0.5 | F23: 2 | G23: 0.5 | H23: 2 | I23: 4
A24: 2 | B24: Alguns membros do corpo docente, em particular. | C24: 0 | D24: 0 | E24: 0.5 | F24: 2 | G24: 0.5 | H24: 2 | I24: 4
A25: 3 | B25: Lideran√ßas acad√™micas/de disciplinas espec√≠ficas. | C25: 0 | D25: 0 | E25: 0.5 | F25: 2 | G25: 0.5 | H25: 2 | I25: 4
A26: 4 | B26: Alunos. | C26: 0 | D26: 0 | E26: 0.5 | F26: 2 | G26: 0.5 | H26: 2 | I26: 4
A27: 5 | B27: Equipe do Escrit√≥rio Internacional. | C27: 0 | D27: 0 | E27: 0.75 | F27: 3 | G27: 0.25 | H27: 1 | I27: 4
A29: Q64 - Outros coment√°rios:
A30: Outros coment√°rios:
A32: Q137 - Com base em sua experi√™ncia em universidades da Am√©rica Latina, classifique o potencial do Modelo 2 como forma de fomentar di√°logos sobre as abordagens atuais e futuras de IoC com os grupos de pessoas listados. 1 - Nenhum 2 - Limitado 3 - Significativo
A33: # | B33: Field | C33: Minimum | D33: Maximum | E33: Mean | F33: Std Deviation | G33: Variance | H33: Count
A34: 1 | B34: L√≠deres universit√°rios. | C34: 2 | D34: 3 | E34: 2.67 | F34: 0.47 | G34: 0.22 | H34: 3
A35: 2 | B35: Alguns membros do corpo docente, em particular. | C35: 3 | D35: 3 | E35: 3 | F35: 0 | G35: 0 | H35: 3
A36: 3 | B36: Lideran√ßas acad√™micas/de disciplinas espec√≠ficas. | C36: 2 | D36: 3 | E36: 2.67 | F36: 0.47 | G36: 0.22 | H36: 3
A37: 4 | B37: Alunos. | C37: 3 | D37: 3 | E37: 3 | F37: 0 | G37: 0 | H37: 3
A38: 5 | B38: Equipe do Escrit√≥rio Internacional. | C38: 2 | D38: 3 | E38: 2.67 | F38: 0.47 | G38: 0.22 | H38: 3
A40: # | B40: Question | C40: 1 | E40: 2 | G40: 3 | I40: Total
A41: 1 | B41: L√≠deres universit√°rios. | C41: 0 | D41: 0 | E41: 0.3333 | F41: 1 | G41: 0.6667 | H41: 2 | I41: 3
A42: 2 | B42: Alguns membros do corpo docente, em particular. | C42: 0 | D42: 0 | E42: 0 | F42: 0 | G42: 1 | H42: 3 | I42: 3
A43: 3 | B43: Lideran√ßas acad√™micas/de disciplinas espec√≠ficas. | C43: 0 | D43: 0 | E43: 0.3333 | F43: 1 | G43: 0.6667 | H43: 2 | I43: 3
A44: 4 | B44: Alunos. | C44: 0 | D44: 0 | E44: 0 | F44: 0 | G44: 1 | H44: 3 | I44: 3
A45: 5 | B45: Equipe do Escrit√≥rio Internacional. | C45: 0 | D45: 0 | E45: 0.3333 | F45: 1 | G45: 0.6667 | H45: 2 | I45: 3
A47: Q84 - Outros coment√°rios:
A48: Outros coment√°rios:
A50: Q138 - Com base em sua experi√™ncia em universidades da Am√©rica Latina, classifique o potencial do Modelo 3 como forma de fomentar di√°logos sobre as abordagens atuais e futuras de IoC com os grupos de pessoas listados. 1 - Nenhum 2 - Limitado 3 - Significativo
A51: # | B51: Field | C51: Minimum | D51: Maximum | E51: Mean | F51: Std Deviation | G51: Variance | H51: Count
A52: 1 | B52: L√≠deres universit√°rios. | C52: 2 | D52: 3 | E52: 2.67 | F52: 0.47 | G52: 0.22 | H52: 3
A53: 2 | B53: Alguns membros do corpo docente, em particular. | C53: 3 | D53: 3 | E53: 3 | F53: 0 | G53: 0 | H53: 3
A54: 3 | B54: Lideran√ßas acad√™micas/de disciplinas espec√≠ficas. | C54: 3 | D54: 3 | E54: 3 | F54: 0 | G54: 0 | H54: 3
A55: 4 | B55: Alunos. | C55: 2 | D55: 3 | E55: 2.67 | F55: 0.47 | G55: 0.22 | H55: 3
A56: 5 | B56: Equipe do Escrit√≥rio Internacional. | C56: 3 | D56: 3 | E56: 3 | F56: 0 | G56: 0 | H56: 3
A58: # | B58: Question | C58: 1 | E58: 2 | G58: 3 | I58: Total
A59: 1 | B59: L√≠deres universit√°rios. | C59: 0 | D59: 0 | E59: 0.3333 | F59: 1 | G59: 0.6667 | H59: 2 | I59: 3
A60: 2 | B60: Alguns membros do corpo docente, em particular. | C60: 0 | D60: 0 | E60: 0 | F60: 0 | G60: 1 | H60: 3 | I60: 3
A61: 3 | B61: Lideran√ßas acad√™micas/de disciplinas espec√≠ficas. | C61: 0 | D61: 0 | E61: 0 | F61: 0 | G61: 1 | H61: 3 | I61: 3
A62: 4 | B62: Alunos. | C62: 0 | D62: 0 | E62: 0.3333 | F62: 1 | G62: 0.6667 | H62: 2 | I62: 3
A63: 5 | B63: Equipe do Escrit√≥rio Internacional. | C63: 0 | D63: 0 | E63: 0 | F63: 0 | G63: 1 | H63: 3 | I63: 3
A65: Q87 - Outros coment√°rios:
A66: Outros coment√°rios:
A67: O escrt. de rela√ßoes internacionais provavelmente ser√° incluido, se tiver uma a√ß√£o al√©m da realiza√ßao de assinatura de conv√™nios e numa perspectiva intercultural, pautar seus principios
A68: Muito bom este modelo 3
A70: Q58 - Em sua opini√£o, qual modelo, ou modelos, seria (m) mais apropriado (s) para nortear as abordagens de internacionaliza√ß√£o do curr√≠culo no contexto latino-americano? Por qu√™?
A71: Unable to export widget. Please contact Qualtrics Support.
A73: Q88 - Justifique sua resposta:
A74: Justifique sua resposta:
A75: Pela considera√ß√£o da interculturalidade, com a respectivo respeito √†s culturas e a forma√ßao para al√©m do mercado
A76: O modelo 3 √© mais abrangente, preenche lacunas dos modelos 1! e 2.
A77: O modelo avan√ßa a partir da proposta inicial do modelo 1 e apresenta termos-chave de relev√¢ncia para o processo de internacionaliza√ß√£o de maneira mais transversal e fluida do que o modelo 3.
A79: Q141 - Princ√≠pio 1. Aprendizagem profissional como um processo permanente e autodirigido A aprendizagem profissional √© um processo cont√≠nuo e permanente que pode assumir muitas formas diferentes. Pode ser organizada formalmente pela institui√ß√£o ou uma organiza√ß√£o externa ou ocorrer informal e organicamente (muitas vezes referida como "aprendizagem no trabalho" ou "integrada √† fun√ß√£o"). A aprendizagem profissional para internacionaliza√ß√£o do curr√≠culo √© mais eficaz quando √© autodirigida.
A80: # | B80: Field | C80: Minimum | D80: Maximum | E80: Mean | F80: Std Deviation | G80: Variance | H80: Count
A81: 1 | B81: Princ√≠pio 1. Aprendizagem profissional como um processo permanente e autodirigido A aprendizagem profissional √© um processo cont√≠nuo e permanente que pode assumir muitas formas diferentes. Pode ser organizada formalmente pela institui√ß√£o ou uma organiza√ß√£o externa ou ocorrer informal e organicamente (muitas vezes referida como &quot;aprendizagem no trabalho&quot; ou &quot;integrada √† fun√ß√£o&quot;). A aprendizagem profissional para internacionaliza√ß√£o do curr√≠culo √© mais eficaz quando √© autodirigida. | C81: 1 | D81: 1 | E81: 1 | F81: 0 | G81: 0 | H81: 3
A83: # | B83: Answer | C83: % | D83: Count
A84: 1 | B84: Apropriada | C84: 1 | D84: 3
A85: 2 | B85: N√£o apropriada | C85: 0 | D85: 0
B86: Total | C86: 1 | D86: 3
A88: Q142 - Princ√≠pio 2. Aprendizagem profissional como um processo atrativo e focado nas necessidades Os programas de aprendizagem profissional formais devem atrair pessoas de variadas origens, compet√™ncias e fun√ß√µes e fornecer a esses indiv√≠duos a flexibilidade de adaptar os programas √†s suas pr√≥prias necessidades. Deve ser interativa e promover uma reflex√£o cr√≠tica dos participantes sobre seus papeis e responsabilidades em rela√ß√£o √† internacionaliza√ß√£o do curr√≠culo.
A89: # | B89: Field | C89: Minimum | D89: Maximum | E89: Mean | F89: Std Deviation | G89: Variance | H89: Count
A90: 1 | B90: Princ√≠pio 2. Aprendizagem profissional como um processo atrativo e focado nas necessidades Os programas de aprendizagem profissional formais devem atrair pessoas de variadas origens, compet√™ncias e fun√ß√µes e fornecer a esses indiv√≠duos a flexibilidade de adaptar os programas √†s suas pr√≥prias necessidades. Deve ser interativa e promover uma reflex√£o cr√≠tica dos participantes sobre seus papeis e responsabilidades em rela√ß√£o √† internacionaliza√ß√£o do curr√≠culo. | C90: 1 | D90: 1 | E90: 1 | F90: 0 | G90: 0 | H90: 3
A92: # | B92: Answer | C92: % | D92: Count
A93: 1 | B93: Apropriada | C93: 1 | D93: 3
A94: 2 | B94: N√£o apropriada | C94: 0 | D94: 0
B95: Total | C95: 1 | D95: 3
A97: Q145 - Princ√≠pio 3. Aprendizagem profissional como um processo orientado para a pr√°xis e relevante para o contexto A aprendizagem profissional da internacionaliza√ß√£o do curr√≠culo deve ser focada na pr√°tica e contextualizada. Seja fornecida pelo departamento / escola / unidade dos participantes, pela universidade, por um consultor externo ou associa√ß√£o profissional, ela deve conectar teoria e pr√°tica (colocar ideias em a√ß√£o no contexto das fun√ß√µes dos participantes na internacionaliza√ß√£o do curr√≠culo).
A98: # | B98: Field | C98: Minimum | D98: Maximum | E98: Mean | F98: Std Deviation | G98: Variance | H98: Count
A99: 1 | B99: Princ√≠pio 3. Aprendizagem profissional como um processo orientado para a pr√°xis e relevante para o contexto A aprendizagem profissional da internacionaliza√ß√£o do curr√≠culo deve ser focada na pr√°tica e contextualizada. Seja fornecida pelo departamento / escola / unidade dos participantes, pela universidade, por um consultor externo ou associa√ß√£o profissional, ela deve conectar teoria e pr√°tica (colocar ideias em a√ß√£o no contexto das fun√ß√µes dos participantes na internacionaliza√ß√£o do curr√≠culo). | C99: 1 | D99: 1 | E99: 1 | F99: 0 | G99: 0 | H99: 3
A101: # | B101: Answer | C101: % | D101: Count
A102: 1 | B102: Apropriada | C102: 1 | D102: 3
A103: 2 | B103: N√£o apropriada | C103: 0 | D103: 0
B104: Total | C104: 1 | D104: 3
A106: Q146 - Princ√≠po 4. Aprendizagem profissional como um processo colaborativo e integrador Os debates interdisciplinares, interprofissionais e interpessoais est√£o no centro da internacionaliza√ß√£o do curr√≠culo. A aprendizagem profissional para apoiar o processo deve integrar os diversos conhecimentos, habilidades e experi√™ncias de diferentes indiv√≠duos e grupos dentro e fora da universidade. Essa aprendizagem inclui, por exemplo, a integra√ß√£o das ideias e experi√™ncias de especialistas em ensino, aprendizagem e elabora√ß√£o de curr√≠culos com as de acad√™micos que trabalham em diferentes disciplinas. Tamb√©m inclui a discuss√£o entre os envolvidos no planejamento e entrega do curr√≠culo formal e informal. Tal colabora√ß√£o requer intera√ß√µes interpessoais baseadas no respeito m√∫tuo e no reconhecimento do valor das perspectivas dos outros.
A107: # | B107: Field | C107: Minimum | D107: Maximum | E107: Mean | F107: Std Deviation | G107: Variance | H107: Count
A108: 1 | B108: Princ√≠po 4. Aprendizagem profissional como um processo colaborativo e integrador Os debates interdisciplinares, interprofissionais e interpessoais est√£o no centro da internacionaliza√ß√£o do curr√≠culo. A aprendizagem profissional para apoiar o processo deve integrar os diversos conhecimentos, habilidades e experi√™ncias de diferentes indiv√≠duos e grupos dentro e fora da universidade. Essa aprendizagem inclui, por exemplo, a integra√ß√£o das ideias e experi√™ncias de especialistas em ensino, aprendizagem e elabora√ß√£o de curr√≠culos com as de acad√™micos que trabalham em diferentes disciplinas. Tamb√©m inclui a discuss√£o entre os envolvidos no planejamento e entrega do curr√≠culo formal e informal. Tal colabora√ß√£o requer intera√ß√µes interpessoais baseadas no respeito m√∫tuo e no reconhecimento do valor das perspectivas dos outros. | C108: 1 | D108: 1 | E108: 1 | F108: 0 | G108: 0 | H108: 3
A110: # | B110: Answer | C110: % | D110: Count
A111: 1 | B111: Apropriada | C111: 1 | D111: 3
A112: 2 | B112: N√£o apropriada | C112: 0 | D112: 0
B113: Total | C113: 1 | D113: 3
A115: Q96 - Outros coment√°rios:
A116: Outros coment√°rios:
A117: Selecionei todos os princ√≠pios como apropriados porque acredito que s√£o apontamentos pertinentes. Contudo, achei complicado unir conceitos distintos em um mesmo princ√≠pio. Por exemplo, o princ√≠pio 1 se refere a um processo permanente e autodirigido. Para mim s√£o coisas distintas. Entendo que deveria ser permanente, mas n√£o concordo plenamente que deveria ser autodirigido.
A119: Q97 - Esses princ√≠pios, quando tomados em conjunto, fornecem um par√¢metro √∫til para o desenvolvimento da aprendizagem profissional da internacionaliza√ß√£o do curr√≠culo em diferentes contextos institucionais na Am√©rica Latina?
A120: # | B120: Field | C120: Minimum | D120: Maximum | E120: Mean | F120: Std Deviation | G120: Variance | H120: Count
A121: 1 | B121: Esses princ√≠pios, quando tomados em conjunto, fornecem um par√¢metro √∫til para o desenvolvimento da aprendizagem profissional da internacionaliza√ß√£o do curr√≠culo em diferentes contextos institucionais na Am√©rica Latina? | C121: 1 | D121: 2 | E121: 1.33 | F121: 0.47 | G121: 0.22 | H121: 3
A123: # | B123: Answer | C123: % | D123: Count
A124: 1 | B124: Sim | C124: 0.6667 | D124: 2
A125: 2 | B125: N√£o | C125: 0.3333 | D125: 1
B126: Total | C126: 1 | D126: 3
A128: Q98 - Outros coment√°rios:
A129: Outros coment√°rios:
A130: A aprendizagem profissional na perspectiva da ALatina, deve considerar aperspectiva nao so do contexto imediato, mas o global, intercultural, regional, nacional e focar na forma√ßao de um cidad√£o global preocupado com uma educa√ßao planet√°ria.
A132: Q68 - Avalie a import√¢ncia relativa dos dom√≠nios de conhecimento e compreens√£o a serem inclu√≠dos em um programa de aprendizagem profissional da internacionaliza√ß√£o do curr√≠culo.
A133: 1 - Baixa
A135: 2 - M√©dia
A137: 3 - Alta
A141: Dom√≠nios de conhecimento e compreens√£o
A142: Unable to export widget. Please contact Qualtrics Support.
A144: Q70 - Deixe seu coment√°rio na caixa de texto se houver dom√≠nios adicionais (√°reas de conhecimento e compreens√£o) que voc√™ gostaria que fossem inclu√≠dos.
A145: Deixe seu coment√°rio na caixa de texto se houver dom√≠nios adicionais (√°reas de conhecimento e compreens√£o) que voc√™ gostaria que fossem inclu√≠dos.
A147: Q99 - Avalie a import√¢ncia relativa das habilidades a serem inclu√≠das em um programa de aprendizagem profissional de internacionaliza√ß√£o do curr√≠culo.
A148: 1 - Baixa
A150: 2 - M√©dia
A152: 3 - Alta
A156: Habilidades para aprendizagem profissional
A157: # | B157: Field | C157: Minimum | D157: Maximum | E157: Mean | F157: Std Deviation | G157: Variance | H157: Count
A158: 1 | B158: Defini√ß√£o dos resultados de aprendizagem internacional, intercultural e global pretendidos. | C158: 2 | D158: 3 | E158: 2.67 | F158: 0.47 | G158: 0.22 | H158: 3
A159: 2 | B159: Capacidade de empregar uma variedade de recursos pedag√≥gicos que facilitar√£o o desenvolvimento dos resultados de aprendizagem pretendidos. | C159: 2 | D159: 3 | E159: 2.67 | F159: 0.47 | G159: 0.22 | H159: 3
A160: 3 | B160: Avalia√ß√£o dos resultados de aprendizagem internacional/intercultural/global dos alunos | C160: 2 | D160: 3 | E160: 2.67 | F160: 0.47 | G160: 0.22 | H160: 3
A161: 4 | B161: Facilita√ß√£o da aprendizagem intercultural ativa dos alunos. | C161: 3 | D161: 3 | E161: 3 | F161: 0 | G161: 0 | H161: 3
A162: 5 | B162: Colabora√ß√£o e negocia√ß√£o com colegas da disciplina. | C162: 3 | D162: 3 | E162: 3 | F162: 0 | G162: 0 | H162: 3
A163: 6 | B163: Colabora√ß√£o e negocia√ß√£o com colegas de outras disciplinas. | C163: 2 | D163: 3 | E163: 2.67 | F163: 0.47 | G163: 0.22 | H163: 3
A164: 7 | B164: Colabora√ß√£o e negocia√ß√£o com pessoas em diferentes √°reas dentro da universidade (por exemplo, a equipe do escrit√≥rio internacional). | C164: 2 | D164: 3 | E164: 2.67 | F164: 0.47 | G164: 0.22 | H164: 3
A165: 8 | B165: Colabora√ß√£o e negocia√ß√£o com alunos. | C165: 3 | D165: 3 | E165: 3 | F165: 0 | G165: 0 | H165: 3
A166: 9 | B166: Colabora√ß√£o e negocia√ß√£o com empregadores e representantes do setor produtivo. | C166: 2 | D166: 3 | E166: 2.67 | F166: 0.47 | G166: 0.22 | H166: 3
A167: 10 | B167: Colabora√ß√£o e negocia√ß√£o com outras pessoas fora da universidade (por exemplo, organiza√ß√µes e representantes da comunidade local) . | C167: 3 | D167: 3 | E167: 3 | F167: 0 | G167: 0 | H167: 3
A169: # | B169: Question | C169: 1 | E169: 2 | G169: 3 | I169: Total
A170: 1 | B170: Defini√ß√£o dos resultados de aprendizagem internacional, intercultural e global pretendidos. | C170: 0 | D170: 0 | E170: 0.3333 | F170: 1 | G170: 0.6667 | H170: 2 | I170: 3
A171: 2 | B171: Capacidade de empregar uma variedade de recursos pedag√≥gicos que facilitar√£o o desenvolvimento dos resultados de aprendizagem pretendidos. | C171: 0 | D171: 0 | E171: 0.3333 | F171: 1 | G171: 0.6667 | H171: 2 | I171: 3
A172: 3 | B172: Avalia√ß√£o dos resultados de aprendizagem internacional/intercultural/global dos alunos | C172: 0 | D172: 0 | E172: 0.3333 | F172: 1 | G172: 0.6667 | H172: 2 | I172: 3
A173: 4 | B173: Facilita√ß√£o da aprendizagem intercultural ativa dos alunos. | C173: 0 | D173: 0 | E173: 0 | F173: 0 | G173: 1 | H173: 3 | I173: 3
A174: 5 | B174: Colabora√ß√£o e negocia√ß√£o com colegas da disciplina. | C174: 0 | D174: 0 | E174: 0 | F174: 0 | G174: 1 | H174: 3 | I174: 3
A175: 6 | B175: Colabora√ß√£o e negocia√ß√£o com colegas de outras disciplinas. | C175: 0 | D175: 0 | E175: 0.3333 | F175: 1 | G175: 0.6667 | H175: 2 | I175: 3
A176: 7 | B176: Colabora√ß√£o e negocia√ß√£o com pessoas em diferentes √°reas dentro da universidade (por exemplo, a equipe do escrit√≥rio internacional). | C176: 0 | D176: 0 | E176: 0.3333 | F176: 1 | G176: 0.6667 | H176: 2 | I176: 3
A177: 8 | B177: Colabora√ß√£o e negocia√ß√£o com alunos. | C177: 0 | D177: 0 | E177: 0 | F177: 0 | G177: 1 | H177: 3 | I177: 3
A178: 9 | B178: Colabora√ß√£o e negocia√ß√£o com empregadores e representantes do setor produtivo. | C178: 0 | D178: 0 | E178: 0.3333 | F178: 1 | G178: 0.6667 | H178: 2 | I178: 3
A179: 10 | B179: Colabora√ß√£o e negocia√ß√£o com outras pessoas fora da universidade (por exemplo, organiza√ß√µes e representantes da comunidade local) . | C179: 0 | D179: 0 | E179: 0 | F179: 0 | G179: 1 | H179: 3 | I179: 3
A181: Q72 - Deixe seu coment√°rio na caixa de texto se houver habilidades adicionais que voc√™ gostaria que fossem inclu√≠das.
A182: Deixe seu coment√°rio na caixa de texto se houver habilidades adicionais que voc√™ gostaria que fossem inclu√≠das.
A184: Q100 - Avalie a import√¢ncia relativa de enfatizar os seguintes valores da internacionaliza√ß√£o do curr√≠culo no programa de aprendizagem profissional
A185: 1 - Nenhuma
A187: 2 - Baixa
A189: 3 - Alta
A193: Valores para aprendizagem profissional
A194: # | B194: Field | C194: Minimum | D194: Maximum | E194: Mean | F194: Std Deviation | G194: Variance | H194: Count
A195: 1 | B195: Valoriza√ß√£o da import√¢ncia da inclus√£o e diversidade no processo de IoC. | C195: 3 | D195: 3 | E195: 3 | F195: 0 | G195: 0 | H195: 3
A196: 2 | B196: Atitude positiva com rela√ß√£o √† revis√£o e mudan√ßa de curr√≠culo. | C196: 3 | D196: 3 | E196: 3 | F196: 0 | G196: 0 | H196: 3
A197: 3 | B197: Abertura √† inova√ß√£o e novas formas de abordar a educa√ß√£o e/incluindo IoC | C197: 3 | D197: 3 | E197: 3 | F197: 0 | G197: 0 | H197: 3
A198: 4 | B198: Compromisso com a cria√ß√£o de ambientes de aprendizagem inclusivos. | C198: 3 | D198: 3 | E198: 3 | F198: 0 | G198: 0 | H198: 3
A199: 5 | B199: Colegialidade, solidariedade, democracia (por exemplo, apoio √† negocia√ß√£o, respeito m√∫tuo, reciprocidade). | C199: 3 | D199: 3 | E199: 3 | F199: 0 | G199: 0 | H199: 3
A201: # | B201: Question | C201: 1 | E201: 2 | G201: 3 | I201: Total
A202: 1 | B202: Valoriza√ß√£o da import√¢ncia da inclus√£o e diversidade no processo de IoC. | C202: 0 | D202: 0 | E202: 0 | F202: 0 | G202: 1 | H202: 3 | I202: 3
A203: 2 | B203: Atitude positiva com rela√ß√£o √† revis√£o e mudan√ßa de curr√≠culo. | C203: 0 | D203: 0 | E203: 0 | F203: 0 | G203: 1 | H203: 3 | I203: 3
A204: 3 | B204: Abertura √† inova√ß√£o e novas formas de abordar a educa√ß√£o e/incluindo IoC | C204: 0 | D204: 0 | E204: 0 | F204: 0 | G204: 1 | H204: 3 | I204: 3
A205: 4 | B205: Compromisso com a cria√ß√£o de ambientes de aprendizagem inclusivos. | C205: 0 | D205: 0 | E205: 0 | F205: 0 | G205: 1 | H205: 3 | I205: 3
A206: 5 | B206: Colegialidade, solidariedade, democracia (por exemplo, apoio √† negocia√ß√£o, respeito m√∫tuo, reciprocidade). | C206: 0 | D206: 0 | E206: 0 | F206: 0 | G206: 1 | H206: 3 | I206: 3
A208: Q101 - Deixe seu coment√°rio na caixa de texto se houver valores adicionais que voc√™ gostaria que fossem inclu√≠das.
A209: Deixe seu coment√°rio na caixa de texto se houver valores adicionais que voc√™ gostaria que fossem inclu√≠das.
A211: Q73 - De modo geral, at√© que ponto voc√™ acha que o Modelo para Aprendizagem Profissional seria √∫til para institui√ß√µes, associa√ß√µes profissionais e outras ag√™ncias interessadas em trabalhar a internacionaliza√ß√£o do curr√≠culo na Am√©rica Latina?
A212: # | B212: Answer | C212: % | D212: Count
A213: 1 | B213: Pouco √ötil | C213: 0 | D213: 0
A214: 2 | B214: √ötil, em alguma medida | C214: 0 | D214: 0
A215: 3 | B215: √ötil | C215: 1 | D215: 3
B216: Total | C216: 1 | D216: 3
A218: Q102 - Outros coment√°rios:
A219: Outros coment√°rios:
A220: A cria√ßao de um modelo de aprendizagem profissional com base na internacionaliza√ßao do curriculo √© fundamental para a ALatina, pois os dados apontam que a internac. por mobilidade presencial √© muitoo pequena (Unesc o 2021 - Br - 0, 4 (in) e 1,4% (out).

Sheet SpanishR3
A1: Tradu√ß√£o
A2: Last Modified: 2022-06-23 00:29:55 MDT
A5: Q5 - Comprendo el prop√≥sito de mi participaci√≥n en este proyecto y doy mi consentimiento para participar, de manera voluntaria, en ese estudio e-Delphi.
A6: # | B6: Field | C6: Minimum | D6: Maximum | E6: Mean | F6: Std Deviation | G6: Variance | H6: Count
A7: 1 | B7: Comprendo el prop√≥sito de mi participaci√≥n en este proyecto y doy mi consentimiento para participar, de manera voluntaria, en ese estudio e-Delphi. | C7: 1 | D7: 1 | E7: 1 | F7: 0 | G7: 0 | H7: 10
A9: # | B9: Answer | C9: % | D9: Count
A10: 1 | B10: S√≠ | C10: 1 | D10: 10
A11: 2 | B11: No | C11: 0 | D11: 0
B12: Total | C12: 1 | D12: 10
A14: Q9 - Con base en su experiencia en universidades latinoamericanas, califique el potencial del Modelo 1 como una forma de fomentar el di√°logo sobre enfoques actuales y/o futuros de la IoC con los grupos de personas enumerados.. 1 - Ninguno 2 - Limitado 3 - Significativo
A15: Unable to export widget. Please contact Qualtrics Support.
A17: Q64 - Otros comentarios:
A18: Otros comentarios:
A19: N/A
A20: No hay comentarios
A21: Muy importante esta dimension en el modelo
A22: no
A23: Los acad√©micos prestar√≠an atenci√≥n al m√≥dulo al focalizarse en el dise√±o curricular cl√°sico articulado con la evaluaci√≥n de resultados de aprendizaje que tributen a las metas planificadas dentro de un curr√≠culo internacionalizado. Los l√≠deres universitarios y los funcionarios de las ORI no poseen (en la generalidad de los casos) la formaci√≥n disciplinar en ciencias de la educaci√≥n que les motive o anime a tributar a este modelo de IoC.
A24: El impacto relativamente significativo del modelo deriva que se trata de un esquema conocido en las oficinas de relaciones internacionales y se puede adaptar a modelos educativos usados o en desarrollo en la educaci√≥n superior de Am√©rica Latina.
A26: Q145 - Con base en su experiencia en universidades en Am√©rica Latina, califique el potencial del Modelo 2 como una forma de fomentar el di√°logo sobre los enfoques actuales y futuros de la IoC con los grupos de personas enumerados. 1 - Ninguno 2 - Limitado 3 - Significativo
A27: # | B27: Field | C27: Minimum | D27: Maximum | E27: Mean | F27: Std Deviation | G27: Variance | H27: Count
A28: 1 | B28: L√≠deres universitarios. | C28: 2 | D28: 3 | E28: 2.17 | F28: 0.37 | G28: 0.14 | H28: 6
A29: 2 | B29: Algunos miembros de la faculdad en particular. | C29: 2 | D29: 3 | E29: 2.33 | F29: 0.47 | G29: 0.22 | H29: 6
A30: 3 | B30: Liderazgo acad√©mico/espec√≠fico de la disciplina. | C30: 2 | D30: 3 | E30: 2.5 | F30: 0.5 | G30: 0.25 | H30: 6
A31: 4 | B31: Estudiantes. | C31: 2 | D31: 3 | E31: 2.33 | F31: 0.47 | G31: 0.22 | H31: 6
A32: 5 | B32: Equipo de la oficina internacional. | C32: 1 | D32: 3 | E32: 2 | F32: 0.58 | G32: 0.33 | H32: 6
A34: # | B34: Question | C34: 1 | E34: 2 | G34: 3 | I34: Total
A35: 1 | B35: L√≠deres universitarios. | C35: 0 | D35: 0 | E35: 0.8333 | F35: 5 | G35: 0.1667 | H35: 1 | I35: 6
A36: 2 | B36: Algunos miembros de la faculdad en particular. | C36: 0 | D36: 0 | E36: 0.6667 | F36: 4 | G36: 0.3333 | H36: 2 | I36: 6
A37: 3 | B37: Liderazgo acad√©mico/espec√≠fico de la disciplina. | C37: 0 | D37: 0 | E37: 0.5 | F37: 3 | G37: 0.5 | H37: 3 | I37: 6
A38: 4 | B38: Estudiantes. | C38: 0 | D38: 0 | E38: 0.6667 | F38: 4 | G38: 0.3333 | H38: 2 | I38: 6
A39: 5 | B39: Equipo de la oficina internacional. | C39: 0.1667 | D39: 1 | E39: 0.6667 | F39: 4 | G39: 0.1667 | H39: 1 | I39: 6
A41: Q84 - Otros comentarios:
A42: Otros comentarios:
A43: N/A
A44: N
A45: En el modelo 2 se visualiza un planteamiento curricular formalizado que se desarrolla mediante pr√°cticas, actividades y recursos pedag√≥gicos "propuestos por el docente" junto a unos resultados de aprendizaje alcanzados por los estudiantes mediante su actividad, y que ser√°n evaluados acorde con lo previamente planificado. A mi parecer, si bien se consideran elementos provenientes de paradigmas emergentes, sigue manteni√©ndose la literalidad en el proceso de aprendizaje mediante objetivos previamente concebidos por el docente y sin la posibilidad de modificaci√≥n por parte del estudiante, lo que implicar√≠a que a√∫n no asume el rol activo primordial dentro del proceso.
A46: Los estudiantes y algunos l√≠deres acad√©micos podr√≠an ser altamente sensibles al modelo. Los l√≠deres no necesariamente han entendido un enfoque m√°s complejo al anterior y las ORI pueden entender la importancia del modelo, pero tienen a√∫n dificultades para vincular su trabajo a otras √°reas claves del profeso, como las de innovaci√≥n educativa, dise√±o curricular, etc.
A48: Q146 - Basado en su experiencia en universidades en Am√©rica Latina, califique el potencial del Modelo 3 como una forma de fomentar di√°logos sobre enfoques actuales y futuros de la IoC con los grupos de personas enumerados. 1 - Ninguno 2 - Limitado 3 - Significativo
A49: # | B49: Field | C49: Minimum | D49: Maximum | E49: Mean | F49: Std Deviation | G49: Variance | H49: Count
A50: 1 | B50: L√≠deres universitarios. | C50: 2 | D50: 3 | E50: 2.6 | F50: 0.49 | G50: 0.24 | H50: 5
A51: 2 | B51: Algunos miembros de la falculdad en particular. | C51: 2 | D51: 3 | E51: 2.2 | F51: 0.4 | G51: 0.16 | H51: 5
A52: 3 | B52: Liderazgo acad√©mico/espec√≠fico de la disciplina. | C52: 2 | D52: 3 | E52: 2.8 | F52: 0.4 | G52: 0.16 | H52: 5
A53: 4 | B53: Estudiantes. | C53: 2 | D53: 3 | E53: 2.6 | F53: 0.49 | G53: 0.24 | H53: 5
A54: 5 | B54: Equipo de la oficina internacional. | C54: 2 | D54: 3 | E54: 2.6 | F54: 0.49 | G54: 0.24 | H54: 5
A56: # | B56: Question | C56: 1 | E56: 2 | G56: 3 | I56: Total
A57: 1 | B57: L√≠deres universitarios. | C57: 0 | D57: 0 | E57: 0.4 | F57: 2 | G57: 0.6 | H57: 3 | I57: 5
A58: 2 | B58: Algunos miembros de la falculdad en particular. | C58: 0 | D58: 0 | E58: 0.8 | F58: 4 | G58: 0.2 | H58: 1 | I58: 5
A59: 3 | B59: Liderazgo acad√©mico/espec√≠fico de la disciplina. | C59: 0 | D59: 0 | E59: 0.2 | F59: 1 | G59: 0.8 | H59: 4 | I59: 5
A60: 4 | B60: Estudiantes. | C60: 0 | D60: 0 | E60: 0.4 | F60: 2 | G60: 0.6 | H60: 3 | I60: 5
A61: 5 | B61: Equipo de la oficina internacional. | C61: 0 | D61: 0 | E61: 0.4 | F61: 2 | G61: 0.6 | H61: 3 | I61: 5
A63: Q87 - Otros comentarios:
A64: Otros comentarios:
A65: N/A
A66: N
A67: Este modelo representa los paradigmas emergentes en los que se reconoce al sujeto de aprendizaje como un ser subjetivo que construye su experiencia individual e irrepetible, bajo las perspectivas propias de su orientaci√≥n disciplinar, visi√≥n del mundo y de la propia cultura en interacci√≥n y permanente reconstrucci√≥n en conjunto con otros. Este modelo denota un mayor nivel de flexibilidad, lo que posibilita al estudiante a gozar de un mayor nivel de libertad para la exploraci√≥n en diferentes contextos para la construcci√≥n de su experiencia de aprendizaje y por tanto darle un significado a su propio proceso de conocimiento: internacional, intercultural y global.
A68: El modelo es complejo y aparenta que no hay relaci√≥n entre el curr√≠culo oculto y el curr√≠culo informal con las experiencias de aprendizaje, pues las primeras son una excelente herramienta para la adquisici√≥n de saberes heur√≠sticos y axiol√≥gicos directamente en el aula, tanto en ambientes presenciales, como semipresenciales y en l√≠nea.
A70: Q58 - En su opini√≥n, ¬øqu√© modelo (o modelos) a seguir ser√≠a (n) el (los) m√°s apropiado (s) para guiar el enfoque de internacionalizaci√≥n del curr√≠culo en el contexto latinoamericano? ¬øPor qu√©?
A71: Unable to export widget. Please contact Qualtrics Support.
A73: Q88 - Justifica tu respuesta:
A74: Justifica tu respuesta:
A75: Es m√°s completo. El hecho de que hable de experiencoas de aprendizaje le permite adaptarse a cualquier contexto y momento. El enfoque en resultados de aprendizaje se acerca bastante y aporta a la evaluaci√≥n de impacto. impacto
A76: N
A77: Toma en cuenta el contexto nacional y regional
A78: Este modelo reconoce la experiencia diferenciada de los estudiantes al momento de acceder a la educaci√≥n superior, algunos de ellos receptores de menores oportunidades educativas que producen brechas en aspectos b√°sicos como su nivel de lecto-escritura, ciudadan√≠a digital, mentalidad global y competencias en un segundo idioma. Estas limitaciones se evidencian a nivel de la regi√≥n como se demuestra en los resultados de las pruebas PISA. El reconocimiento de las experiencias de aprendizaje diferenciadas de los estudiantes favorece a la par la comprensi√≥n de la multidimensionalidad del curr√≠culo por parte de todos los miembros de la comunidad, y ante ello se percibe un mayor nivel de oportunidades de participaci√≥n integral desde las disciplinas, las distintas funciones, roles y departamentos institucionales para integrarse y participar en las din√°micas de internacionalizaci√≥n del curr√≠culo al interior de la IES y en sus conexiones con el mundo externo. La visualizaci√≥n de los curr√≠culos formal, informal y oculto dentro del modelo es un abordaje a la internacionalizaci√≥n desde la pluralidad de visiones culturales dentro de una comunidad educativa en su territorio y la posibilidad de crear intercambios interculturales desde los propios ambientes de aprendizaje, en un di√°logo de saberes m√°s all√° de lo interdisciplinario dando lugar a nuevas ecolog√≠as de aprendizaje.
A79: Me parece que el Modelo 2 abre espacios para que los docentes se empoderen directamente del proceso y se constituyan en los actores m√°s relevantes del proceso, aunque requerir√° de una estrecha colaboraci√≥n con las ORI; pienso que falt√≥ tomar en cuenta un sector importante: las oficinas responsables de los modelos educativos, dise√±o curricular o de innovaci√≥n educativa. Pienso que el Modelo 2 tambi√©n ofrecer√° espacios din√°micos de autoaprendizaje a los estudiantes y favorecer√° procesos relacionados con la metacognici√≥n y la apropiaci√≥n del aprendizaje por parte de los propios estudiantes.
A81: Q148 - Principio 1. Aprendizaje como un proceso continuo, auto dirigido Aprendizaje es un proceso continuo y permanente que puede adoptar muchas formas diferentes. Puede ser organizado formalmente por la instituci√≥n o una organizaci√≥n externa u ocurrir de manera informal y org√°nica (a menudo denominado "aprendizaje en el trabajo" o "integrado en el trabajo"). El aprendizaje profesional de la internacionalizaci√≥n del curr√≠culo es m√°s eficaz cuando es auto dirigido.
A82: # | B82: Field | C82: Minimum | D82: Maximum | E82: Mean | F82: Std Deviation | G82: Variance | H82: Count
A83: 1 | B83: Principio 1. Aprendizaje como un proceso continuo, auto dirigido Aprendizaje es un proceso continuo y permanente que puede adoptar muchas formas diferentes. Puede ser organizado formalmente por la instituci√≥n o una organizaci√≥n externa u ocurrir de manera informal y org√°nica (a menudo denominado &quot;aprendizaje en el trabajo&quot; o &quot;integrado en el trabajo&quot;). El aprendizaje profesional de la internacionalizaci√≥n del curr√≠culo es m√°s eficaz cuando es auto dirigido. | C83: 1 | D83: 1 | E83: 1 | F83: 0 | G83: 0 | H83: 3
A85: # | B85: Answer | C85: % | D85: Count
A86: 1 | B86: Apropriado | C86: 1 | D86: 3
A87: 2 | B87: No apropriado | C87: 0 | D87: 0
B88: Total | C88: 1 | D88: 3
A90: Q151 - Principio 2. El aprendizaje como un proceso atractivo y centrado en las necesidades Los programas formales de aprendizaje deben atraer a personas de diversos or√≠genes, habilidades y funciones y brindarles a estas personas la flexibilidad de adaptar los programas a sus propias necesidades. Debe ser interactivo y promover la reflexi√≥n cr√≠tica de los participantes sobre sus roles y responsabilidades en relaci√≥n con la internacionalizaci√≥n del curr√≠culo.
A91: # | B91: Field | C91: Minimum | D91: Maximum | E91: Mean | F91: Std Deviation | G91: Variance | H91: Count
A92: 1 | B92: Principio 2. El aprendizaje como un proceso atractivo y centrado en las necesidades Los programas formales de aprendizaje deben atraer a personas de diversos or√≠genes, habilidades y funciones y brindarles a estas personas la flexibilidad de adaptar los programas a sus propias necesidades. Debe ser interactivo y promover la reflexi√≥n cr√≠tica de los participantes sobre sus roles y responsabilidades en relaci√≥n con la internacionalizaci√≥n del curr√≠culo. | C92: 1 | D92: 1 | E92: 1 | F92: 0 | G92: 0 | H92: 3
A94: # | B94: Answer | C94: % | D94: Count
A95: 1 | B95: Apropriado | C95: 1 | D95: 3
A96: 2 | B96: No apropriado | C96: 0 | D96: 0
B97: Total | C97: 1 | D97: 3
A99: Q150 - Principio 3. El aprendizaje profesional como un proceso orientado a la praxis y relevante al contexto El aprendizaje profesional en la internacionalizaci√≥n curricular debe estar centrado en la pr√°ctica y contextualizado. Ya sea que lo proporcione el departamento/escuela/unidad de los participantes, la universidad, un consultor externo o una asociaci√≥n profesional, debe conectar la teor√≠a y la pr√°ctica (poner las ideas en acci√≥n en el contexto de los roles de los participantes en la internacionalizaci√≥n del curr√≠culo).
A100: # | B100: Field | C100: Minimum | D100: Maximum | E100: Mean | F100: Std Deviation | G100: Variance | H100: Count
A101: 1 | B101: Principio 3. El aprendizaje profesional como un proceso orientado a la praxis y relevante al contexto El aprendizaje profesional en la internacionalizaci√≥n curricular debe estar centrado en la pr√°ctica y contextualizado. Ya sea que lo proporcione el departamento/escuela/unidad de los participantes, la universidad, un consultor externo o una asociaci√≥n profesional, debe conectar la teor√≠a y la pr√°ctica (poner las ideas en acci√≥n en el contexto de los roles de los participantes en la internacionalizaci√≥n del curr√≠culo). | C101: 1 | D101: 2 | E101: 1.33 | F101: 0.47 | G101: 0.22 | H101: 3
A103: # | B103: Answer | C103: % | D103: Count
A104: 1 | B104: Apropriado | C104: 0.6667 | D104: 2
A105: 2 | B105: No apropriado | C105: 0.3333 | D105: 1
B106: Total | C106: 1 | D106: 3
A108: Q149 - Principio 4. El aprendizaje profesional como proceso colaborativo e integrador Los debates interdisciplinarios, interprofesionales e interpersonales est√°n en el centro de la internacionalizaci√≥n del plan de estudios. Para apoyar el proceso, el aprendizaje profesional debe integrar los diversos conocimientos, habilidades y experiencias de diferentes individuos y grupos dentro y fuera de la universidad. Dicho aprendizaje incluye, por ejemplo, la integraci√≥n de las ideas y experiencias de expertos en ense√±anza, aprendizaje y dise√±o curricular con las de acad√©micos que trabajan en diferentes disciplinas. Tambi√©n incluye discusiones entre los involucrados en la planificaci√≥n y ejecuci√≥n del plan de curr√≠culo formal e informal. Tal colaboraci√≥n requiere interacciones interpersonales basadas en el respeto mutuo y el reconocimiento del valor de las perspectivas de los dem√°s.
A109: # | B109: Field | C109: Minimum | D109: Maximum | E109: Mean | F109: Std Deviation | G109: Variance | H109: Count
A110: 1 | B110: Principio 4. El aprendizaje profesional como proceso colaborativo e integrador Los debates interdisciplinarios, interprofesionales e interpersonales est√°n en el centro de la internacionalizaci√≥n del plan de estudios. Para apoyar el proceso, el aprendizaje profesional debe integrar los diversos conocimientos, habilidades y experiencias de diferentes individuos y grupos dentro y fuera de la universidad. Dicho aprendizaje incluye, por ejemplo, la integraci√≥n de las ideas y experiencias de expertos en ense√±anza, aprendizaje y dise√±o curricular con las de acad√©micos que trabajan en diferentes disciplinas. Tambi√©n incluye discusiones entre los involucrados en la planificaci√≥n y ejecuci√≥n del plan de curr√≠culo formal e informal. Tal colaboraci√≥n requiere interacciones interpersonales basadas en el respeto mutuo y el reconocimiento del valor de las perspectivas de los dem√°s. | C110: 1 | D110: 1 | E110: 1 | F110: 0 | G110: 0 | H110: 3
A112: # | B112: Answer | C112: % | D112: Count
A113: 1 | B113: Apropriado | C113: 1 | D113: 3
A114: 2 | B114: No apropriado | C114: 0 | D114: 0
B115: Total | C115: 1 | D115: 3
A117: Q96 - Otros comentarios:
A118: Otros comentarios:
A119: En estos principios faltar√≠a visibilizar dentro de la pertinencia o relevancia al contexto del aprendizaje profesional, a la comunidad receptora de dichos saberes. Toda profesi√≥n resuelve una problem√°tica de un sector de la sociedad global, y har√≠a falta incluir a esos seres sociales cuyas necesidades se resuelven a trav√©s de la pr√°ctica. Otro aspecto en la misma l√≠nea es que la 'praxis" es "pr√°ctica transformadora" y dicha experiencia de aprendizaje se obtiene a trav√©s de los intercambios con los actores culturales y sociales del entorno.
A120: Con relaci√≥n al Principio 3, me parece que es relevante, pero no es caracter√≠stica √∫nica del proceso de la internacionalizaci√≥n del curr√≠culo, pues la pr√°xis debe estar presente en la formaci√≥n de los estudiantes desde otras perspectivas, por ejemplo, las relacionadas con la tercera misi√≥n de la universidad. Por otro lado, me parece notable la ausencia de elementos enfocados hacia la ciudadan√≠a global, pues las referencias parecieran dirigidas hacia el mundo laboral.
A122: Q97 - ¬øEstos principios, tomados en conjunto, proporcionan un par√°metro √∫til para el desarrollo del aprendizaje profesional de la internacionalizaci√≥n curricular en diferentes contextos institucionales en Am√©rica Latina?
A123: # | B123: Field | C123: Minimum | D123: Maximum | E123: Mean | F123: Std Deviation | G123: Variance | H123: Count
A124: 1 | B124: ¬øEstos principios, tomados en conjunto, proporcionan un par√°metro √∫til para el desarrollo del aprendizaje profesional de la internacionalizaci√≥n curricular en diferentes contextos institucionales en Am√©rica Latina? | C124: 1 | D124: 1 | E124: 1 | F124: 0 | G124: 0 | H124: 3
A126: # | B126: Answer | C126: % | D126: Count
A127: 1 | B127: Si | C127: 1 | D127: 3
A128: 2 | B128: No | C128: 0 | D128: 0
B129: Total | C129: 1 | D129: 3
A131: Q98 - Otros comentarios:
A132: Otros comentarios:
A133: En los principios no se visibilizan el arte, las pr√°cticas culturales, los deportes, como necesidades de vivenciales de los estudiantes que deben contemplarse en el curr√≠culo informal ya que tienen la caracter√≠stica de convertirse en lenguajes universales que permiten estrechar lazos interinstitucionales m√°s all√° de las fronteras de un pa√≠s.
A135: Q68 - Eval√∫e la importancia relativa de los dominios de conocimiento y comprensi√≥n que se incluir√°n en un programa de aprendizaje profesional de internacionalizaci√≥n curricular.
A136: 1 - Bajo
A138: 2 - Medio
A140: 3 - Alto
A144: Dominios de conocimiento y comprensi√≥n
A145: Unable to export widget. Please contact Qualtrics Support.
A147: Q70 - Deje su comentario en el cuadro de texto si hay dominios adicionales (√°reas de conocimiento y comprensi√≥n) que le gustar√≠a incluir.
A148: Deje su comentario en el cuadro de texto si hay dominios adicionales (√°reas de conocimiento y comprensi√≥n) que le gustar√≠a incluir.
A149: El dominio afectivo que incluye los valores que permitir√°n la sostenibilidad de un curr√≠culo internacionalizado. Declarar los valores del modelo como podr√≠an ser la "flexibilidad, adaptabilidad, sensibilidad intercultural, esp√≠ritu colaborativo, respecto a las diferencias, pluralismo, di√°logo de saberes", fortalecer√≠an la propuesta del modelo.
A151: Q142 - Eval√∫e la importancia relativa de las habilidades que se incluir√°n en un programa de aprendizaje profesional de internacionalizaci√≥n curricular.
A152: 1 - Baja
A154: 2 - Media
A156: 3 - Alta
A160: Habilidades para el aprendizaje profesional
A161: # | B161: Field | C161: Minimum | D161: Maximum | E161: Mean | F161: Std Deviation | G161: Variance | H161: Count
A162: 1 | B162: Definici√≥n de los resultados deseados de aprendizaje internacionales, interculturales y globales. | C162: 2 | D162: 3 | E162: 2.67 | F162: 0.47 | G162: 0.22 | H162: 3
A163: 2 | B163: Capacidad para emplear una variedad de recursos pedag√≥gicos que facilitar√°n el desarrollo de los resultados de aprendizaje previstos. | C163: 3 | D163: 3 | E163: 3 | F163: 0 | G163: 0 | H163: 3
A164: 3 | B164: Evaluaci√≥n de los resultados del aprendizaje internacional/intercultural/global de los estudiantes. | C164: 2 | D164: 3 | E164: 2.67 | F164: 0.47 | G164: 0.22 | H164: 3
A165: 4 | B165: Facilitar el aprendizaje intercultural activo de los estudiantes. | C165: 3 | D165: 3 | E165: 3 | F165: 0 | G165: 0 | H165: 3
A166: 5 | B166: Colaboraci√≥n y negociaci√≥n con colegas de la disciplina. | C166: 3 | D166: 3 | E166: 3 | F166: 0 | G166: 0 | H166: 3
A167: 6 | B167: Colaboraci√≥n y negociaci√≥n con colegas de otras disciplinas. | C167: 2 | D167: 3 | E167: 2.67 | F167: 0.47 | G167: 0.22 | H167: 3
A168: 7 | B168: Colaboraci√≥n y negociaci√≥n con personas de diferentes campos dentro de la universidad (por ejemplo, el equipo de la oficina internacional). | C168: 3 | D168: 3 | E168: 3 | F168: 0 | G168: 0 | H168: 3
A169: 8 | B169: Colaboraci√≥n y negociaci√≥n con estudiantes. | C169: 3 | D169: 3 | E169: 3 | F169: 0 | G169: 0 | H169: 3
A170: 9 | B170: Colaboraci√≥n y negociaci√≥n con empresarios y representantes del sector productivo. | C170: 2 | D170: 3 | E170: 2.67 | F170: 0.47 | G170: 0.22 | H170: 3
A171: 10 | B171: Colaboraci√≥n y negociaci√≥n con otras personas fuera de la universidad (por ejemplo, organizaciones y representantes de la comunidad local) . | C171: 3 | D171: 3 | E171: 3 | F171: 0 | G171: 0 | H171: 3
A173: # | B173: Question | C173: 1 | E173: 2 | G173: 3 | I173: Total
A174: 1 | B174: Definici√≥n de los resultados deseados de aprendizaje internacionales, interculturales y globales. | C174: 0 | D174: 0 | E174: 0.3333 | F174: 1 | G174: 0.6667 | H174: 2 | I174: 3
A175: 2 | B175: Capacidad para emplear una variedad de recursos pedag√≥gicos que facilitar√°n el desarrollo de los resultados de aprendizaje previstos. | C175: 0 | D175: 0 | E175: 0 | F175: 0 | G175: 1 | H175: 3 | I175: 3
A176: 3 | B176: Evaluaci√≥n de los resultados del aprendizaje internacional/intercultural/global de los estudiantes. | C176: 0 | D176: 0 | E176: 0.3333 | F176: 1 | G176: 0.6667 | H176: 2 | I176: 3
A177: 4 | B177: Facilitar el aprendizaje intercultural activo de los estudiantes. | C177: 0 | D177: 0 | E177: 0 | F177: 0 | G177: 1 | H177: 3 | I177: 3
A178: 5 | B178: Colaboraci√≥n y negociaci√≥n con colegas de la disciplina. | C178: 0 | D178: 0 | E178: 0 | F178: 0 | G178: 1 | H178: 3 | I178: 3
A179: 6 | B179: Colaboraci√≥n y negociaci√≥n con colegas de otras disciplinas. | C179: 0 | D179: 0 | E179: 0.3333 | F179: 1 | G179: 0.6667 | H179: 2 | I179: 3
A180: 7 | B180: Colaboraci√≥n y negociaci√≥n con personas de diferentes campos dentro de la universidad (por ejemplo, el equipo de la oficina internacional). | C180: 0 | D180: 0 | E180: 0 | F180: 0 | G180: 1 | H180: 3 | I180: 3
A181: 8 | B181: Colaboraci√≥n y negociaci√≥n con estudiantes. | C181: 0 | D181: 0 | E181: 0 | F181: 0 | G181: 1 | H181: 3 | I181: 3
A182: 9 | B182: Colaboraci√≥n y negociaci√≥n con empresarios y representantes del sector productivo. | C182: 0 | D182: 0 | E182: 0.3333 | F182: 1 | G182: 0.6667 | H182: 2 | I182: 3
A183: 10 | B183: Colaboraci√≥n y negociaci√≥n con otras personas fuera de la universidad (por ejemplo, organizaciones y representantes de la comunidad local) . | C183: 0 | D183: 0 | E183: 0 | F183: 0 | G183: 1 | H183: 3 | I183: 3
A185: Q72 - Deje su comentario en el cuadro de texto si hay habilidades adicionales que le gustar√≠a incluir.
A186: Deje su comentario en el cuadro de texto si hay habilidades adicionales que le gustar√≠a incluir.
A187: Habilidades para conectarse con otros y conformar redes para la internacionalizaci√≥n del curr√≠culo.
A188: Adaptaci√≥n a espacios de aprendizaje y del mundo laboral din√°micos y en constante evoluci√≥n.
A190: Q143 - Eval√∫e la importancia relativa de enfatizar los siguientes valores para la internacionalizaci√≥n del curr√≠culo en el programa de aprendizaje
A191: 1 - Ninguno
A193: 2 - Medios
A195: 3 - Altos
A199: Valores para el aprendizaje profesional
A200: # | B200: Field | C200: Minimum | D200: Maximum | E200: Mean | F200: Std Deviation | G200: Variance | H200: Count
A201: 1 | B201: Valorar la importancia de la inclusi√≥n y la diversidad en el proceso de IoC. | C201: 3 | D201: 3 | E201: 3 | F201: 0 | G201: 0 | H201: 3
A202: 2 | B202: Actitud positiva hacia la relaci√≥n con revisi√≥n y cambio del curr√≠culo. | C202: 2 | D202: 3 | E202: 2.67 | F202: 0.47 | G202: 0.22 | H202: 3
A203: 3 | B203: Apertura a la innovaci√≥n y nuevas formas de abordar la educaci√≥n y/o incluyendo la IoC . | C203: 2 | D203: 3 | E203: 2.67 | F203: 0.47 | G203: 0.22 | H203: 3
A204: 4 | B204: Compromiso con la creaci√≥n de entornos de aprendizaje inclusivos. | C204: 3 | D204: 3 | E204: 3 | F204: 0 | G204: 0 | H204: 3
A205: 5 | B205: Colegialidad, solidaridad, democracia (por ejemplo, apoyo a la negociaci√≥n, respeto mutuo, reciprocidad). | C205: 3 | D205: 3 | E205: 3 | F205: 0 | G205: 0 | H205: 3
A207: # | B207: Question | C207: 1 | E207: 2 | G207: 3 | I207: Total
A208: 1 | B208: Valorar la importancia de la inclusi√≥n y la diversidad en el proceso de IoC. | C208: 0 | D208: 0 | E208: 0 | F208: 0 | G208: 1 | H208: 3 | I208: 3
A209: 2 | B209: Actitud positiva hacia la relaci√≥n con revisi√≥n y cambio del curr√≠culo. | C209: 0 | D209: 0 | E209: 0.3333 | F209: 1 | G209: 0.6667 | H209: 2 | I209: 3
A210: 3 | B210: Apertura a la innovaci√≥n y nuevas formas de abordar la educaci√≥n y/o incluyendo la IoC . | C210: 0 | D210: 0 | E210: 0.3333 | F210: 1 | G210: 0.6667 | H210: 2 | I210: 3
A211: 4 | B211: Compromiso con la creaci√≥n de entornos de aprendizaje inclusivos. | C211: 0 | D211: 0 | E211: 0 | F211: 0 | G211: 1 | H211: 3 | I211: 3
A212: 5 | B212: Colegialidad, solidaridad, democracia (por ejemplo, apoyo a la negociaci√≥n, respeto mutuo, reciprocidad). | C212: 0 | D212: 0 | E212: 0 | F212: 0 | G212: 1 | H212: 3 | I212: 3
A214: Q101 - Deje su comentario en el cuadro de texto si hay m√°s valores que le gustar√≠a incluir.
A215: Deje su comentario en el cuadro de texto si hay m√°s valores que le gustar√≠a incluir.
A216: Los inclui anteriormente ya que al ser los valores estructuras reguladoras de los sistemas considero que los principios que los sostienen deben estar al centro del modelo.
A217: Me parece que la apertura a la innovaci√≥n deber√≠a ser considerada una habilidad, aunque tambi√©n requiere ser parte de los valores.
A219: Q73 - En general, ¬øen qu√© medida cree que el Modelo de Aprendizaje Profesional ser√≠a √∫til para instituciones, asociaciones profesionales y otras agencias interesadas en trabajar en la internacionalizaci√≥n del curr√≠culo en Am√©rica Latina?
A220: # | B220: Answer | C220: % | D220: Count
A221: 1 | B221: No muy √∫til | C221: 0.3333 | D221: 1
A222: 2 | B222: √ötil hasta cierto punto | C222: 0 | D222: 0
A223: 3 | B223: √ötil | C223: 0.6667 | D223: 2
B224: Total | C224: 1 | D224: 3
A226: Q102 - Otros comentarios:
A227: Otros comentarios:
A228: Diversos aspectos de la internacionalizaci√≥n del curr√≠culo deben ser asuntos, habilidades y competencias a experimentarse y educarse desde la primera infancia por lo que el modelo de aprendizaje puede ser muy √∫til para formar a los docentes de las instituciones educativas p√∫blicas de Latinoam√©rica.
A229: Absolutamente relevante este v√≠nculo. Podr√≠a aprovecharse como la generaci√≥n de un espacio de evaluaci√≥n y acreditaci√≥n a nivel regional.
